{"text_format":"1","workbook":"xlsx","n_sheets":8,"sheets":["Introduction","Abbreviations","Input Worksheet","1x1 Rndabt ","1NS x 2 EW Rndabt","2 NS x 1 EW Rndabt","2x2 Rndabt","Output Worksheet"],"not_rendered":{"charts":0,"images":4,"macros":1,"external_links":0,"defined_names":227,"comments":0,"pivot_tables":0},"unopened":[],"bounds":{"document_bytes":16777216,"sheet_cells":100000,"rows_first":2000,"rows_last":500,"rows_between":2000,"halvings":0,"cell_chars":16384,"cell_head_chars":4096},"cells_cut":0,"cells_raw":0,"read":"whole","date_system":"1900"}

{"sheet":"Introduction","index":0,"n_rows":0,"n_cols":0,"rows_kept":0,"cut":false,"hidden":false,"merged":[]}

{"sheet":"Abbreviations","index":1,"n_rows":3,"n_cols":2,"rows_kept":3,"cut":false,"hidden":false,"merged":[[0,1,1,60],[2,1,3,60]]}
[null,"Capacity Analysis for Planning of Roundabouts"]
[]
[null,"Abbreviation Definition   "]

{"sheet":"Input Worksheet","index":2,"n_rows":75,"n_cols":110,"rows_kept":75,"cut":false,"hidden":false,"merged":[[27,58,28,58],[27,34,28,41],[35,4,36,9],[35,10,36,17],[35,34,36,41],[35,18,36,25],[35,26,36,33],[0,1,1,60],[2,1,3,60],[7,4,8,11],[9,4,10,11],[21,10,22,17],[23,10,26,17],[27,10,28,17],[21,18,22,25],[21,26,22,33],[23,34,26,41],[11,4,12,11],[13,4,14,11],[19,4,26,9],[27,4,28,9],[19,10,20,41],[7,12,8,58],[9,12,10,58],[11,12,12,58],[13,12,14,58],[60,10,61,17],[60,52,61,57],[62,52,63,57],[56,46,57,51],[56,34,57,41],[60,46,61,51],[62,46,63,51],[58,34,59,41],[19,58,26,58],[17,4,18,58],[29,18,30,25],[29,26,30,33],[29,34,30,41],[27,18,28,25],[27,26,28,33],[58,42,59,45],[52,52,55,57],[46,4,47,41],[56,26,57,33],[58,26,59,33],[56,18,57,25],[58,18,59,25],[62,4,63,9],[60,4,61,9],[60,34,61,41],[62,34,63,41],[60,26,61,33],[62,26,63,33],[60,18,61,25],[29,58,30,58],[31,58,32,58],[33,58,34,58],[31,18,32,25],[33,18,34,25],[31,26,32,33],[33,26,34,33],[31,34,32,41],[33,34,34,41],[29,54,30,57],[31,54,32,57],[31,4,32,9],[31,10,32,17],[33,10,34,17],[33,4,34,9],[29,4,30,9],[29,10,30,17],[56,10,57,17],[58,4,59,9],[56,4,57,9],[48,4,55,9],[58,10,59,17],[52,26,53,33],[52,34,53,41],[48,10,51,41],[46,42,47,57],[48,46,51,57],[48,42,55,45],[56,52,57,57],[24,103,24,108],[24,109,24,114],[25,91,25,96],[25,97,25,102],[25,103,25,108],[25,109,25,114],[37,4,38,9],[39,4,40,9],[41,4,42,9],[37,10,38,17],[41,10,42,17],[39,10,40,17],[33,42,34,48],[19,54,26,57],[27,49,28,53],[27,54,28,57],[21,34,22,41],[23,18,26,25],[23,26,26,33],[33,54,34,57],[29,49,30,53],[31,49,32,53],[33,49,34,53],[27,42,28,48],[69,5,69,57],[70,5,70,57],[71,5,71,57],[72,5,72,57],[68,5,68,57],[74,5,74,57],[25,80,25,90],[24,91,24,96],[24,97,24,102],[58,52,59,57],[56,42,57,45],[52,10,53,17],[52,18,53,25],[62,18,63,25],[62,10,63,17],[60,42,61,45],[62,42,63,45],[65,4,65,9],[29,42,30,48],[31,42,32,48],[19,42,26,48],[19,49,26,53],[52,46,55,51],[58,46,59,51]]}
[null,"Capacity Analysis for Planning of Roundabouts\n"]
[]
[null,"Input Worksheet"]
[]
[]
[]
[]
[null,null,null,null,"Project Name:",null,null,null,null,null,null,null,0]
[]
[null,null,null,null,"Project Number:",null,null,null,null,null,null,null,"Enter the Project Number here (Input worksheet)"]
[]
[null,null,null,null,"Location",null,null,null,null,null,null,null,"Enter the Project Location here (Input worksheet)"]
[]
[null,null,null,null,"Date",null,null,null,null,null,null,null,"Enter the date here (Input worksheet)"]
[]
[]
[]
[null,null,null,null,"Traffic Volume Demand"]
[]
[null,null,null,null,null,null,null,null,null,null,"Volume (Veh/h)",null,null,null,null,null,null,null,null,null,null,null,null,null,null,null,null,null,null,null,null,null,null,null,null,null,null,null,null,null,null,null,"Proportion of Trucks",null,null,null,null,null,null,"Traffic Volume Growth Rate",null,null,null,null,"nped (ped/h)",null,null,null," Lane   Discipline:   2-Lane Approach"]
[]
[null,null,null,null,null,null,null,null,null,null,"U-Turn",null,null,null,null,null,null,null,"Left",null,null,null,null,null,null,null,"Thru",null,null,null,null,null,null,null,"Right"]
[]
[]
[null,null,null,null,null,null,null,null,null,null,null,null,null,null,null,null,null,null,null,null,null,null,null,null,null,null,null,null,null,null,null,null,null,null,null,null,null,null,null,null,null,null,null,null,null,null,null,null,null,null,null,null,null,null,null,null,null,null,null,null,null,null,null,null,null,null,null,null,null,null,null,null,null,null,null,null,null,null,null,null,null,null,null,null,null,null,null,null,null,null,null,"EB",null,null,null,null,null,"WB",null,null,null,null,null,"SB",null,null,null,null,null,"NB"]
[null,null,null,null,null,null,null,null,null,null,null,null,null,null,null,null,null,null,null,null,null,null,null,null,null,null,null,null,null,null,null,null,null,null,null,null,null,null,null,null,null,null,null,null,null,null,null,null,null,null,null,null,null,null,null,null,null,null,null,null,null,null,null,null,null,null,null,null,null,null,null,null,null,null,null,null,null,null,null,1,"Traffic Volume Growth Factor",null,null,null,null,null,null,null,null,null,null,{"$f":"(1+EB_Growth_Rate)^(sDesignPeriod-1)","v":1},null,null,null,null,null,{"$f":"(1+WB_Growth_Rate)^(sDesignPeriod-1)","v":1},null,null,null,null,null,{"$f":"(1+SB_Growth_Rate)^(sDesignPeriod-1)","v":1},null,null,null,null,null,{"$f":"(1+NB_Growth_Rate)^(sDesignPeriod-1)","v":1}]
[]
[null,null,null,null,"Eastbound",null,null,null,null,null,0,null,null,null,null,null,null,null,50,null,null,null,null,null,null,null,30,null,null,null,null,null,null,null,150,null,null,null,null,null,null,null,0,null,null,null,null,null,null,0,null,null,null,null,0,null,null,null,"Not Sure",null,null,null,null,null,null,null,"EB","WB","SB","NB",null,null,null,null,null,null,null,null,null,2]
[]
[null,null,null,null,"Westbound",null,null,null,null,null,0,null,null,null,null,null,null,null,50,null,null,null,null,null,null,null,20,null,null,null,null,null,null,null,400,null,null,null,null,null,null,null,0,null,null,null,null,null,null,0,null,null,null,null,0,null,null,null,"Not Sure",null,null,null,null,null,null,null,"Not Sure","LTR,R","L,LTR","LTR,R",null,null,null,null,null,null,null,null,null,3]
[]
[null,null,null,null,"Southbound",null,null,null,null,null,0,null,null,null,null,null,null,null,350,null,null,null,null,null,null,null,300,null,null,null,null,null,null,null,200,null,null,null,null,null,null,null,0,null,null,null,null,null,null,0,null,null,null,null,0,null,null,null,"LT,TR",null,null,null,null,null,null,null,null,null,null,null,null,null,null,null,null,null,null,null,null,4]
[]
[null,null,null,null,"Northbound",null,null,null,null,null,0,null,null,null,null,null,null,null,530,null,null,null,null,null,null,null,510,null,null,null,null,null,null,null,10,null,null,null,null,null,null,null,0,null,null,null,null,null,null,0,null,null,null,null,0,null,null,null,"LT,TR",null,null,null,null,null,null,null,null,{"$f":"BG28","v":"Not Sure"},null,null,null,null,null,null,null,null,null,null,null,5]
[]
[null,null,null,null,"Peak Hour Factor",null,null,null,null,null,1,null,null,null,null,null,null,null,1,null,null,null,null,null,null,null,1,null,null,null,null,null,null,null,1,null,null,null,null,null,null,null,null,null,null,null,null,null,null,null,null,null,null,null,null,null,null,null,null,null,null,null,null,null,null,null,null,null,null,null,null,null,null,null,null,null,null,null,null,6]
[]
[null,null,null,null,"Truck to PCE Factor ",null,null,null,null,null,2,null,null,null,null,null,null,null,null,null,null,null,null,null,null,null,null,null,null,null,null,null,null,null,null,null,null,null,null,null,null,null,null,null,null,null,null,null,null,null,null,null,null,null,null,null,null,null,null,null,null,null,null,null,null,null,"Lane Designation",null,null,null,null,null,null,null,null,null,null,null,null,7]
[null,null,null,null,null,null,null,null,null,null,null,null,null,null,null,null,null,null,null,null,null,null,null,null,null,null,null,null,null,null,null,null,null,null,null,null,null,null,null,null,null,null,null,null,null,null,null,null,null,null,null,null,null,null,null,null,null,null,null,null,null,null,null,null,null,null,"LT,TR"]
[null,null,null,null,"Design Period (years)",null,null,null,null,null,20,null,null,null,null,null,null,null,null,null,null,null,null,null,null,null,null,null,null,null,null,null,null,null,null,null,null,null,null,null,null,null,null,null,null,null,null,null,null,null,null,null,null,null,null,null,null,null,null,null,null,null,null,null,null,null,"L,LTR"]
[null,null,null,null,null,null,null,null,null,null,null,null,null,null,null,null,null,null,null,null,null,null,null,null,null,null,null,null,null,null,null,null,null,null,null,null,null,null,null,null,null,null,null,null,null,null,null,null,null,null,null,null,null,null,null,null,null,null,null,null,null,null,null,null,null,null,"LTR,R"]
[null,null,null,null,"Construction Year",null,null,null,null,null,2015,null,null,null,null,null,null,null,null,null,null,null,null,null,null,null,null,null,null,null,null,null,null,null,null,null,null,null,null,null,null,null,null,null,null,null,null,null,null,null,null,null,null,null,null,null,null,null,null,null,null,null,null,null,null,null,"Not Sure"]
[]
[]
[]
[]
[null,null,null,null,"Demand Flow Rate (PCE)",null,null,null,null,null,null,null,null,null,null,null,null,null,null,null,null,null,null,null,null,null,null,null,null,null,null,null,null,null,null,null,null,null,null,null,null,null,"Adjustment Factors"]
[]
[null,null,null,null,null,null,null,null,null,null,"Volume (pc/h)",null,null,null,null,null,null,null,null,null,null,null,null,null,null,null,null,null,null,null,null,null,null,null,null,null,null,null,null,null,null,null,"fHV",null,null,null,"fped"]
[null,null,null,null,null,null,null,null,null,null,null,null,null,null,null,null,null,null,null,null,null,null,null,null,null,null,null,null,null,null,null,null,null,null,null,null,null,null,null,null,null,null,null,null,null,null,null,null,null,null,null,null,null,null,null,null,null,null,null,null,null,null,null,null,null,null,null,"LOS"]
[null,null,null,null,null,null,null,null,null,null,null,null,null,null,null,null,null,null,null,null,null,null,null,null,null,null,null,null,null,null,null,null,null,null,null,null,null,null,null,null,null,null,null,null,null,null,null,null,null,null,null,null,null,null,null,null,null,null,null,null,null,null,null,null,null,null,null,0,"A"]
[null,null,null,null,null,null,null,null,null,null,null,null,null,null,null,null,null,null,null,null,null,null,null,null,null,null,null,null,null,null,null,null,null,null,null,null,null,null,null,null,null,null,null,null,null,null,null,null,null,null,null,null,null,null,null,null,null,null,null,null,null,null,null,null,null,null,null,10.1,"B"]
[null,null,null,null,null,null,null,null,null,null,"U-Turn",null,null,null,null,null,null,null,"Left",null,null,null,null,null,null,null,"Thru",null,null,null,null,null,null,null,"Right",null,null,null,null,null,null,null,null,null,null,null,"Single-lane entry ",null,null,null,null,null,"Multilane entry",null,null,null,null,null,null,null,null,null,null,null,null,null,null,15.1,"C"]
[null,null,null,null,null,null,null,null,null,null,null,null,null,null,null,null,null,null,null,null,null,null,null,null,null,null,null,null,null,null,null,null,null,null,null,null,null,null,null,null,null,null,null,null,null,null,null,null,null,null,null,null,null,null,null,null,null,null,null,null,null,null,null,null,null,null,null,25.1,"D"]
[null,null,null,null,null,null,null,null,null,null,null,null,null,null,null,null,null,null,null,null,null,null,null,null,null,null,null,null,null,null,null,null,null,null,null,null,null,null,null,null,null,null,null,null,null,null,null,null,null,null,null,null,null,null,null,null,null,null,null,null,null,null,null,null,null,null,null,35.1,"E"]
[null,null,null,null,null,null,null,null,null,null,null,null,null,null,null,null,null,null,null,null,null,null,null,null,null,null,null,null,null,null,null,null,null,null,null,null,null,null,null,null,null,null,null,null,null,null,null,null,null,null,null,null,null,null,null,null,null,null,null,null,null,null,null,null,null,null,null,50,"F"]
[null,null,null,null,"Eastbound",null,null,null,null,null,{"$f":"+ROUND((K28*EB_Growth_Factor)/(FHV_EB*UTAF),0)","v":0},null,null,null,null,null,null,null,{"$f":"+ROUND((S28*EB_Growth_Factor)/(FHV_EB*LTAF),0)","v":50},null,null,null,null,null,null,null,{"$f":"+ROUND((AA28*EB_Growth_Factor)/(FHV_EB*TTAF),0)","v":30},null,null,null,null,null,null,null,{"$f":"+ROUND((AI28*EB_Growth_Factor)/(FHV_EB*RTAF),0)","v":150},null,null,null,null,null,null,null,{"$f":"1/(1+EB_Truck_Percentage*(Truck_Adjustment_Factor-1))","v":1},null,null,null,{"$f":"IF(EB_Conflict>881,1,(IF(EB_ped<101,(1-(0.000137*EB_ped)),((1119.5-(0.715*EB_Conflict)-(0.644*EB_ped)+(0.00073*EB_Conflict*EB_ped))/(1068.6-(0.654*EB_Conflict))))))","v":1},null,null,null,null,null,{"$f":"IF(EB_ped<100,(MIN((1-(EB_ped/100)*(1-(1260.6-(0.329*EB_Conflict)-(0.381*100))/(1380-(0.5*EB_Conflict)))),1)),(MIN(((1260.6-(0.329*EB_Conflict)-(0.381*EB_ped))/(1380-(0.5*EB_Conflict))),1)))","v":1}]
[]
[null,null,null,null,"Westbound",null,null,null,null,null,{"$f":"+ROUND((K30*WB_Growth_Factor)/(FHV_WB*UTAF),0)","v":0},null,null,null,null,null,null,null,{"$f":"+ROUND((S30*WB_Growth_Factor)/(FHV_WB*LTAF),0)","v":50},null,null,null,null,null,null,null,{"$f":"+ROUND((AA30*WB_Growth_Factor)/(FHV_WB*TTAF),0)","v":20},null,null,null,null,null,null,null,{"$f":"+ROUND((AI30*WB_Growth_Factor)/(FHV_WB*RTAF),0)","v":400},null,null,null,null,null,null,null,{"$f":"1/(1+WB_Truck_Percentage*(Truck_Adjustment_Factor-1))","v":1},null,null,null,{"$f":"IF(WB_Conflict>881,1,(IF(WB_ped<101,(1-(0.000137*WB_ped)),((1119.5-(0.715*WB_Conflict)-(0.644*WB_ped)+(0.00073*WB_Conflict*WB_ped))/(1068.6-(0.654*WB_Conflict))))))","v":1},null,null,null,null,null,{"$f":"IF(WB_ped<100,(MIN((1-(WB_ped/100)*(1-(1260.6-(0.329*WB_Conflict)-(0.381*100))/(1380-(0.5*WB_Conflict)))),1)),(MIN(((1260.6-(0.329*WB_Conflict)-(0.381*WB_ped))/(1380-(0.5*WB_Conflict))),1)))","v":1}]
[]
[null,null,null,null,"Southbound",null,null,null,null,null,{"$f":"+ROUND((K32*SB_Growth_Factor)/(FHV_SB*UTAF),0)","v":0},null,null,null,null,null,null,null,{"$f":"+ROUND((S32*SB_Growth_Factor)/(FHV_SB*LTAF),0)","v":350},null,null,null,null,null,null,null,{"$f":"+ROUND((AA32*SB_Growth_Factor)/(FHV_SB*TTAF),0)","v":300},null,null,null,null,null,null,null,{"$f":"+ROUND((AI32*SB_Growth_Factor)/(FHV_SB*RTAF),0)","v":200},null,null,null,null,null,null,null,{"$f":"1/(1+SB_Truck_Percentage*(Truck_Adjustment_Factor-1))","v":1},null,null,null,{"$f":"IF(SB_Conflict>881,1,(IF(SB_ped<101,(1-(0.000137*SB_ped)),((1119.5-(0.715*SB_Conflict)-(0.644*SB_ped)+(0.00073*SB_Conflict*SB_ped))/(1068.6-(0.654*SB_Conflict))))))","v":1},null,null,null,null,null,{"$f":"IF(SB_ped<100,(MIN((1-(SB_ped/100)*(1-(1260.6-(0.329*SB_Conflict)-(0.381*100))/(1380-(0.5*SB_Conflict)))),1)),(MIN(((1260.6-(0.329*SB_Conflict)-(0.381*SB_ped))/(1380-(0.5*SB_Conflict))),1)))","v":1}]
[]
[null,null,null,null,"Northbound",null,null,null,null,null,{"$f":"+ROUND((K34*NB_Growth_Factor)/(FHV_NB*UTAF),0)","v":0},null,null,null,null,null,null,null,{"$f":"+ROUND((S34*NB_Growth_Factor)/(FHV_NB*LTAF),0)","v":530},null,null,null,null,null,null,null,{"$f":"+ROUND((AA34*NB_Growth_Factor)/(FHV_NB*TTAF),0)","v":510},null,null,null,null,null,null,null,{"$f":"+ROUND((AI34*NB_Growth_Factor)/(FHV_NB*RTAF),0)","v":10},null,null,null,null,null,null,null,{"$f":"1/(1+NB_Truck_Percentage*(Truck_Adjustment_Factor-1))","v":1},null,null,null,{"$f":"IF(NB_Conflict>881,1,(IF(NB_ped<101,(1-(0.000137*NB_ped)),((1119.5-(0.715*NB_Conflict)-(0.644*NB_ped)+(0.00073*NB_Conflict*NB_ped))/(1068.6-(0.654*NB_Conflict))))))","v":1},null,null,null,null,null,{"$f":"IF(NB_ped<100,(MIN((1-(NB_ped/100)*(1-(1260.6-(0.329*NB_Conflict)-(0.381*100))/(1380-(0.5*NB_Conflict)))),1)),(MIN(((1260.6-(0.329*NB_Conflict)-(0.381*NB_ped))/(1380-(0.5*NB_Conflict))),1)))","v":1}]
[]
[]
[null,null,null,null,"Notes: "]
[null,null,null,null,1,"The Traffic Volume Demand input values are movement volumes for the year of construction completion"]
[null,null,null,null,2,"The proportion of truck traffic and growth rate values are to be entered as percentile eg. If growth rate or proportion of truck traffic is 2%, enter 2  and not 0.02"]
[null,null,null,null,3,"Growth rate values ranges from 0% to 4%. If no data available, use 0.5%"]
[null,null,null,null,4,"Lane Discipline refers to existing intersection approach (2 lanes) configuration as indicated by the existing pavement markings.  This may be different from the ultimate"]
[null,null,null,null,null," roundabout entry lane configuration depending on the traffic volume redistribution (See \"Design Sheet\" on subsequent worksheets). If no information is available, as "]
[null,null,null,null,null,"in the case of a new  road development, select \"Not Sure\". "]
[null,null,null,null,5,"The design period is typically 20 years as per Section 2.2.5 of ALDOT Roundabout Manual. A user may however, select a design year per their  design requirements"]
[null,null,null,null,6,"The Peak Hour Factor input cell default value is 0.95"]
[null,null,null,null,7,"Truck to PCE factor has default value of 2.0 per section 2.2.1 of the ALDOT Roundabout Manual."]

{"sheet":"1x1 Rndabt ","index":3,"n_rows":68,"n_cols":162,"rows_kept":68,"cut":false,"hidden":false,"merged":[[41,67,43,67],[41,68,43,68],[18,42,19,44],[20,46,27,48],[30,49,31,52],[30,53,31,57],[32,49,33,52],[32,53,33,57],[34,49,35,52],[34,53,35,57],[28,46,35,48],[20,49,21,52],[20,53,21,57],[28,49,29,52],[28,53,29,57],[22,49,23,52],[22,53,23,57],[24,49,25,52],[24,53,25,57],[26,49,27,52],[26,53,27,57],[17,46,19,57],[36,6,38,12],[36,13,38,17],[48,46,50,57],[44,63,46,66],[44,67,46,67],[44,68,46,68],[48,72,52,72],[48,73,52,73],[48,74,52,74],[48,71,52,71],[48,63,52,64],[36,46,38,52],[36,53,38,57],[37,74,37,77],[38,74,38,77],[38,63,40,66],[38,67,40,67],[38,68,40,68],[39,74,40,81],[41,74,42,77],[35,63,37,66],[35,67,37,67],[35,68,37,68],[41,63,43,66],[65,89,68,91],[65,92,68,94],[65,95,68,97],[65,98,68,100],[63,89,63,91],[63,92,63,94],[63,95,63,97],[63,98,63,100],[64,89,64,91],[64,92,64,94],[64,95,64,97],[64,98,64,100],[55,89,55,92],[56,89,56,92],[55,93,55,96],[56,93,56,96],[53,98,53,100],[54,98,54,100],[55,98,55,100],[59,93,60,96],[49,89,50,89],[56,98,59,100],[59,89,60,92],[57,89,58,96],[52,98,52,100],[48,98,51,100],[52,89,54,96],[9,115,10,119],[5,2,6,9],[5,10,6,35],[7,2,8,9],[7,10,8,35],[9,2,10,9],[9,10,10,35],[9,108,10,112],[9,113,10,114],[9,85,12,87],[11,2,12,9],[9,36,10,53],[9,54,10,59],[11,36,12,53],[11,54,12,59],[5,36,8,59],[7,108,8,119],[7,100,8,107],[9,100,10,105],[9,88,12,90],[11,106,12,107],[11,108,12,112],[11,115,12,119],[11,113,12,114],[9,78,12,83],[17,78,17,83],[18,78,18,83],[19,78,19,83],[20,78,20,83],[21,78,21,83],[22,78,22,83],[0,1,1,60],[2,1,3,60],[11,10,12,35],[0,63,1,122],[2,63,3,122],[20,100,23,101],[20,89,20,92],[14,91,14,93],[13,106,14,107],[9,91,12,93],[9,94,12,96],[14,94,14,96],[13,108,14,112],[13,113,14,114],[13,115,14,119],[13,100,14,105],[23,78,23,83],[30,85,31,87],[17,89,19,96],[9,106,10,107],[30,107,32,107],[13,85,13,87],[13,88,13,90],[13,91,13,93],[18,85,21,87],[14,85,14,87],[14,88,14,90],[20,93,20,96],[21,93,21,96],[11,100,12,105],[13,94,13,96],[27,90,28,92],[27,93,28,96],[24,85,24,87],[24,89,25,92],[24,93,25,96],[24,103,28,103],[24,100,28,100],[24,102,28,102],[24,104,28,105],[24,106,28,106],[39,119,41,122],[41,104,42,107],[41,108,42,111],[36,119,38,122],[36,118,38,118],[33,118,35,118],[30,118,32,118],[30,119,32,122],[30,117,32,117],[39,118,41,118],[24,110,28,110],[24,111,28,111],[24,112,28,112],[24,113,28,113],[24,114,28,114],[24,121,28,122],[37,108,37,111],[20,102,23,102],[24,108,28,108],[24,109,28,109],[30,108,32,108],[30,109,32,109],[30,110,32,113],[33,119,35,122],[56,102,56,107],[57,102,57,107],[58,102,58,107],[59,102,59,107],[36,117,38,117],[33,117,35,117],[34,103,42,103],[34,104,36,111],[60,102,60,107],[41,101,42,102],[39,104,40,111],[39,117,41,117],[55,102,55,107],[47,102,47,107],[48,102,48,107],[49,102,49,107],[38,101,40,102],[46,102,46,107],[38,104,38,107],[38,108,38,111],[44,72,46,75],[44,76,46,76],[44,77,46,77],[44,78,46,78],[48,78,52,78],[48,77,52,77],[21,89,21,92],[46,98,47,100],[51,89,51,96],[49,90,50,92],[49,93,50,96],[44,84,46,85],[48,84,52,84],[48,76,52,76],[48,75,52,75],[26,89,26,96],[34,82,42,82],[34,83,35,84],[44,79,46,79],[44,80,46,83],[22,85,22,87],[22,89,23,96],[23,85,23,87],[27,89,28,89],[48,85,52,85],[50,102,51,107],[52,102,52,107],[53,102,53,107],[54,102,54,107],[24,107,28,107],[39,83,42,84],[41,78,42,81],[24,101,28,101],[30,106,32,106],[30,102,32,105],[30,100,32,101],[48,83,52,83],[48,82,52,82],[48,79,52,79],[48,80,52,81],[36,83,38,84],[37,104,37,107],[34,101,37,102],[37,78,37,81],[38,78,38,81],[25,85,25,87],[26,85,29,87],[34,74,36,81],[24,78,24,83],[17,6,19,17],[20,6,27,8],[28,6,35,8],[28,9,29,12],[28,13,29,17],[30,9,31,12],[30,13,31,17],[32,9,33,12],[32,13,33,17],[34,9,35,12],[34,13,35,17],[20,13,21,17],[20,9,21,12],[22,9,23,12],[22,13,23,17],[24,9,25,12],[24,13,25,17],[26,9,27,12],[26,13,27,17],[30,78,30,83],[31,78,31,83],[67,6,69,12],[67,13,69,17],[53,9,54,12],[53,13,54,17],[55,9,56,12],[55,13,56,17],[57,9,58,12],[57,13,58,17],[53,49,54,52],[55,49,56,52],[57,49,58,52],[51,46,58,48],[59,46,66,48],[59,49,60,52],[61,49,62,52],[63,49,64,52],[65,49,66,52],[51,9,52,12],[48,6,50,17],[51,6,58,8],[59,6,66,8],[59,9,60,12],[59,13,60,17],[61,9,62,12],[61,13,62,17],[63,9,64,12],[63,13,64,17],[65,9,66,12],[65,13,66,17],[51,13,52,17],[48,65,49,70],[50,65,52,70],[24,115,25,120],[26,115,28,120],[13,78,14,83],[15,78,16,83],[61,102,62,107],[63,102,64,107],[67,46,69,52],[67,53,69,57],[53,53,54,57],[55,53,56,57],[57,53,58,57],[51,49,52,52],[51,53,52,57],[59,53,60,57],[61,53,62,57],[63,53,64,57],[65,53,66,57],[65,102,68,107],[25,78,25,83],[26,78,27,83],[28,78,28,83],[29,78,29,83]]}
[null,"1 NS x 1 EW Roundabout",null,null,null,null,null,null,null,null,null,null,null,null,null,null,null,null,null,null,null,null,null,null,null,null,null,null,null,null,null,null,null,null,null,null,null,null,null,null,null,null,null,null,null,null,null,null,null,null,null,null,null,null,null,null,null,null,null,null,null,null,null,"1 NS x 1 EW Lane Roundabout"]
[]
[null,"Results Sheet",null,null,null,null,null,null,null,null,null,null,null,null,null,null,null,null,null,null,null,null,null,null,null,null,null,null,null,null,null,null,null,null,null,null,null,null,null,null,null,null,null,null,null,null,null,null,null,null,null,null,null,null,null,null,null,null,null,null,null,null,null," Design Sheet"]
[]
[]
[null,null,"Project Name:",null,null,null,null,null,null,null,{"$f":"P_Name","v":0}]
[]
[null,null,"Project Number:",null,null,null,null,null,null,null,{"$f":"P_Number","v":"Enter the Project Number here (Input worksheet)"},null,null,null,null,null,null,null,null,null,null,null,null,null,null,null,null,null,null,null,null,null,null,null,null,null,null,null,null,null,null,null,null,null,null,null,null,null,null,null,null,null,null,null,null,null,null,null,null,null,null,null,null,null,null,null,null,null,null,null,null,null,null,null,null,null,null,null,null,null,null,null,null,null,null,null,null,null,null,null,null,null,null,null,null,null,null,null,null,null,"Equation",null,null,null,null,null,null,null,"A x exp(-B x Q)"]
[]
[null,null,"Location",null,null,null,null,null,null,null,{"$f":"Location","v":"Enter the Project Location here (Input worksheet)"},null,null,null,null,null,null,null,null,null,null,null,null,null,null,null,null,null,null,null,null,null,null,null,null,null,"Overal Roundabout Delay, s/veh",null,null,null,null,null,null,null,null,null,null,null,null,null,null,null,null,null,{"$f":"(N37*(CH26+SB_Appr)+BB37*(DC31+WB_Appr)+BB68*(CU53+NB_Appr)+N68*(CB45+EB_Appr))/(CH26+SB_Appr+DC31+WB_Appr+CU53+NB_Appr+CB45+EB_Appr)","v":51.629230769230766},null,null,null,null,null,null,null,null,null,null,null,null,null,null,null,null,null,null,null,null,null,null,null,"Right-turn Bypass Lane",null,null,null,null,null,null,null,null,null,null,null,null,null,null,null,null,null,null,null,null,null,"Single-Lane",null,null,null,null,null,"A",null,1380,null,null,null,null,"B",null,1.0200000000000001E-3]
[]
[null,null,"Date",null,null,null,null,null,null,null,{"$f":"Date","v":"Enter the date here (Input worksheet)"},null,null,null,null,null,null,null,null,null,null,null,null,null,null,null,null,null,null,null,null,null,null,null,null,null,"Overal Roundabout LOS",null,null,null,null,null,null,null,null,null,null,null,null,null,null,null,null,null,{"$f":"VLOOKUP(BC10,LOS,2,TRUE)","v":"F"},null,null,null,null,null,null,null,null,null,null,null,null,null,null,null,null,null,null,null,null,null,null,null,null,null,null,null,null,null,null,null,null,null,null,null,null,null,null,null,null,null,null,null,null,null,"Bypass Type1a",null,null,null,null,null,"A",null,1380,null,null,null,null,"B",null,1.0200000000000001E-3]
[]
[null,null,null,null,null,null,null,null,null,null,null,null,null,null,null,null,null,null,null,null,null,null,null,null,null,null,null,null,null,null,null,null,null,null,null,null,null,null,null,null,null,null,null,null,null,null,null,null,null,null,null,null,null,null,null,null,null,null,null,null,null,null,null,null,null,null,null,null,null,null,null,null,null,null,null,null,null,null,"Yes",null,null,null,null,null,null,"pc/h",null,null,"pc/h",null,null,"pc/h",null,null,"pc/h",null,null,null,null,null,"Bypass Type1b",null,null,null,null,null,"A",null,1420,null,null,null,null,"B",null,8.4999999999999995E-4,null,null,null,null,null,null,null,null,null,null,null,null,null,null,null,null,null,null,null,null,null,null,null,null,null,null,null,null,null,null,null,"Rigt-turn Slip Type",null,null,null,null,null,null,null,null,"EB","WB","SB","NB"]
[null,null,null,null,null,null,null,null,null,null,null,null,null,null,null,null,null,null,null,null,null,null,null,null,null,null,null,null,null,null,null,null,null,null,null,null,null,null,null,null,null,null,null,null,null,null,null,null,null,null,null,null,null,null,null,null,null,null,null,null,null,null,null,null,null,null,null,null,null,null,null,null,null,null,null,null,null,null,null,null,null,null,null,null,null,{"$f":"IF(SB_slipON=\"No\",SBR_Master,0)","v":0},null,null,{"$f":"SBT_Master","v":300},null,null,{"$f":"SBL_Master","v":350},null,null,{"$f":"SBU_Master","v":0},null,null,null,null,null,null,null,null,null,null,null,null,null,null,null,null,null,null,null,null,null,null,null,null,null,null,null,null,null,null,null,null,null,"Slip Approah vol",null,null,null,null,null,null,null,null,null,null,null,null,null,null,null,null,null,null,"Type1a (yielding)",0,null,null,null,null,null,null,null,{"$f":"VLOOKUP(BN51,RT_slip_type,2,FALSE)","v":0},{"$f":"VLOOKUP(DL27,RT_slip_type,2,FALSE)","v":2},{"$f":"VLOOKUP(CA16,RT_slip_type,2,FALSE)","v":2},{"$f":"VLOOKUP(CY64,RT_slip_type,2,FALSE)","v":1}]
[null,null,null,null,null,null,null,null,null,null,null,null,null,null,null,null,null,null,null,null,null,null,null,null,null,null,null,null,null,null,null,null,null,null,null,null,null,null,null,null,null,null,null,null,null,null,null,null,null,null,null,null,null,null,null,null,null,null,null,null,null,null,null,null,null,null,null,null,null,null,null,null,null,null,null,null,null,null,"Type2 (nonyielding)",null,null,null,null,null,null,null,null,null,null,null,null,null,null,null,null,null,null,null,null,null,null,null,null,null,null,null,null,null,null,null,null,null,null,null,null,null,null,null,null,null,null,null,null,null,null,null,null,null,{"$f":"IF(WB_slipON=\"No\",0,DH25)","v":400},null,null,null,null,null,null,null,null,null,null,null,null,null,null,null,null,null,null,"Type1b (yielding)",1]
[null,null,null,null,null,null,null,null,null,null,null,null,null,null,null,null,null,null,null,null,null,null,null,null,null,null,null,null,null,null,null,null,null,null,null,null,null,null,null,null,null,null,null,null,null,null,null,null,null,null,null,null,null,null,null,null,null,null,null,null,null,null,null,null,null,null,null,null,null,null,null,null,null,null,null,null,null,null,null,null,null,null,null,null,null,null,null,null,null,null,null,null,null,null,null,null,null,null,null,null,null,null,null,null,null,null,null,null,null,null,null,null,null,null,null,null,null,null,null,null,null,null,null,null,null,null,null,null,{"$f":"IF(EB_SlipON=\"No\",0,BW49)","v":150},null,null,null,null,null,null,null,null,null,null,null,null,null,null,null,null,null,null,"Type2 (nonyielding)",2]
[null,null,null,null,null,null,"Predicted approach MOE",null,null,null,null,null,null,null,null,null,null,null,null,null,null,null,null,null,null,null,null,null,null,null,null,null,null,null,null,null,null,null,null,null,null,null,null,null,null,null,"Predicted approach MOE",null,null,null,null,null,null,null,null,null,null,null,null,null,null,null,null,null,null,null,null,null,null,null,null,null,null,null,null,null,null,null,"pc/h",null,null,null,null,null,null,null,null,null,null,"Predicted approach capacity",null,null,null,null,null,null,null,null,null,null,null,null,null,null,null,null,null,null,null,null,null,null,null,null,null,null,null,null,null,null,null,null,null,null,null,null,null,null,{"$f":"IF(SB_slipON=\"No\",0,CA21)","v":200}]
[null,null,null,null,null,null,null,null,null,null,null,null,null,null,null,null,null,null,null,null,null,null,null,null,null,null,null,null,null,null,null,null,null,null,null,null,null,null,null,null,null,null,null,null,null,null,null,null,null,null,null,null,null,null,null,null,null,null,null,null,null,null,null,null,null,null,null,null,null,null,null,null,null,null,null,null,null,null,{"$f":"IF(SB_slipON=\"Yes\",SBR_Master,\"n/a\")","v":200},null,null,null,null,null,null,null,null,null,null,null,null,null,null,null,null,null,null,null,null,null,null,null,null,null,null,null,null,null,null,null,null,null,null,null,null,null,null,null,null,null,null,null,null,null,null,null,null,null,{"$f":"IF(NB_slipON=\"No\",0,CY58)","v":10}]
[null,null,null,null,null,null,null,null,null,null,null,null,null,null,null,null,null,null,null,null,null,null,null,null,null,null,null,null,null,null,null,null,null,null,null,null,null,null,null,null,null,null,null,null,null,null,null,null,null,null,null,null,null,null,null,null,null,null,null,null,null,null,null,null,null,null,null,null,null,null,null,null,null,null,null,null,null,null,"veh/h"]
[null,null,null,null,null,null,"Lane 1",null,null,{"$f":"CH31","v":0.86863557396766011},null,null,null,"V/C",null,null,null,null,null,null,null,null,null,null,null,null,null,null,null,null,null,null,null,null,null,null,null,null,null,null,null,null,null,null,null,null,"Lane 1",null,null,{"$f":"CW31","v":0.15418502202643172},null,null,null,"V/C",null,null,null,null,null,null,null,null,null,null,null,null,null,null,null,null,null,null,null,null,null,null,null,null,{"$f":"IF(SB_slipON=\"No\",\"n/a\",ROUND(FHV_SB*SB_fped_SL*CA19,1))","v":200},null,null,null,null,null,null,null,null,null,null,{"$f":"$DE$10*EXP(-$DL$10*CL25)","v":748.3260495732967},null,null,null,"pc/h"]
[null,null,null,null,null,null,null,null,null,null,null,null,null,null,null,null,null,null,null,null,null,null,null,null,null,null,null,null,null,null,null,null,null,null,null,null,null,null,null,null,null,null,null,null,null,null,null,null,null,null,null,null,null,null,null,null,null,null,null,null,null,null,null,null,null,null,null,null,null,null,null,null,null,null,null,null,null,null,"capacity",null,null,null,null,null,null,null,null,null,null,{"$f":"ROUND(FHV_SB*SB_fped_SL*CL21,1)","v":748.3},null,null,null,"veh/h"]
[null,null,null,null,null,null,null,null,null,{"$f":"ROUND(3600/CL22+900*0.25*(CH31-1+SQRT((CH31-1)^2+((3600/CL22)*CH31)/(450*0.25)))+(5*(MIN(CH31,1))),1)","v":32.1},null,null,null,"d, s/veh",null,null,null,null,null,null,null,null,null,null,null,null,null,null,null,null,null,null,null,null,null,null,null,null,null,null,null,null,null,null,null,null,null,null,null,{"$f":"ROUND(3600/DA39+900*0.25*(CW31-1+SQRT((CW31-1)^2+((3600/DA39)*CW31)/(450*0.25)))+(5*(MIN(CW31,1))),1)","v":10.1},null,null,null,"d, s/veh",null,null,null,null,null,null,null,null,null,null,null,null,null,null,null,null,null,null,null,null,null,null,null,null,"pc/h",null,null,null,null,null,null,"pc/h",null,null,null,"conflicting with"]
[null,null,null,null,null,null,null,null,null,null,null,null,null,null,null,null,null,null,null,null,null,null,null,null,null,null,null,null,null,null,null,null,null,null,null,null,null,null,null,null,null,null,null,null,null,null,null,null,null,null,null,null,null,null,null,null,null,null,null,null,null,null,null,null,null,null,null,null,null,null,null,null,null,null,null,null,null,null,{"$f":"IF(SB_slipON=\"No\",\"n/a\",IF(SB_slipType=0,$DE$12*EXP(-$DL$12*EBLeg_ExitFlow),IF(SB_slipType=1,$DE$14*EXP(-$DL$14*EBLeg_ExitFlow),\"large\")))","v":"large"},null,null,null,null,null,null,{"$f":"SUM(CH15:CS15)","v":650},null,null,null,null,null,null,null,null,null,null,null,null,null,null,null,null,null,null,null,null,null,null,null,null,null,null,null,null,null,null,null,null,null,null,null,null,null,null,null,null,null,null,null,null,null,null,null,null,null,null,null,null,null,null,null,null,null,null,null,null,null,"Right-turn Slip"]
[null,null,null,null,null,null,null,null,null,{"$f":"VLOOKUP(J23,LOS,2,TRUE)","v":"D"},null,null,null,"LOS",null,null,null,null,null,null,null,null,null,null,null,null,null,null,null,null,null,null,null,null,null,null,null,null,null,null,null,null,null,null,null,null,null,null,null,{"$f":"VLOOKUP(AX23,LOS,2,TRUE)","v":"B"},null,null,null,"LOS",null,null,null,null,null,null,null,null,null,null,null,null,null,null,null,null,null,null,null,null,null,null,null,null,"veh/h",null,null,null,null,null,null,"veh/h",null,null,null,{"$f":"DN34+DN37+DN40+CO64+CL64+BQ36","v":600},null,null,null,"pc/h",null,null,null,null,null,null,{"$f":"IF(WB_slipON=\"No\",\"n/a\",IF(AND(WB_slipON=\"Yes\",WB_slipType=2),0,DH25/DC25))","v":0},"V/C RATIO",{"$f":"IF(WB_slipON=\"No\",\"n/a\",$CR$64+$CQ$15+$BQ$39)","v":560},"pc/h","conflicting with",null,{"$f":"IF(WB_slipON=\"No\",\"n/a\",IF(WB_slipType=2,\"large\",ROUND(FHV_WB*WB_fped_SL*DE25,1)))","v":"large"},"veh/h",{"$f":"IF(WB_slipON=\"No\",\"n/a\",IF(WB_slipType=0,$DE$12*EXP(-$DL$12*SBLeg_ExitFlow),IF(WB_slipType=1,$DE$14*EXP(-$DL$14*SBLeg_ExitFlow),\"large\")))","v":"large"},"pc/h","capacity",{"$f":"IF(WB_slipON=\"No\",\"n/a\",ROUND(FHV_WB*WB_fped_SL*DJ25,1))","v":400},"veh/h",{"$f":"IF(WB_slipON=\"Yes\",WBR_Master,\"n/a\")","v":400},"pc/h","Yes",null,null,null,null,null,"Right-turn Bypass Lane",null,null,null,null,null,null,null,null,null,null,null,null,null,null,null,null,null,null,null,null,null,null,null,null,null,null,null,null,null,null,null,null,"EB",null,"WB",null,null,"SB",null,"NB"]
[null,null,null,null,null,null,null,null,null,null,null,null,null,null,null,null,null,null,null,null,null,null,null,null,null,null,null,null,null,null,null,null,null,null,null,null,null,null,null,null,null,null,null,null,null,null,null,null,null,null,null,null,null,null,null,null,null,null,null,null,null,null,null,null,null,null,null,null,null,null,null,null,null,null,null,null,null,null,{"$f":"IF(SB_slipON=\"no\",\"n/a\",IF(SB_slipType=2,\"large\",ROUND(FHV_SB*SB_fped_SL*CA24,1)))","v":"large"},null,null,null,null,null,null,{"$f":"ROUND(FHV_SB*CH24,1)","v":650},null,null,null,null,null,null,null,null,null,null,null,null,null,null,null,null,null,null,null,null,null,null,null,null,null,null,null,null,null,null,null,null,null,null,null,null,null,null,null,null,null,null,null,null,null,null,null,null,null,null,null,null,null,null,null,null,null,null,null,null,null,"No",0,null,null,null,null,null,{"$f":"BN49","v":"Yes"},null,{"$f":"DL25","v":"Yes"},null,null,{"$f":"CA14","v":"Yes"},null,{"$f":"CY62","v":"Yes"}]
[null,null,null,null,null,null,null,null,null,{"$f":"ROUNDUP(900*0.25*(CH31-1+SQRT((CH31-1)^2+((3600/CL22)*CH31)/(150*0.25)))*(CL22/3600),0)","v":11},null,null,null,"Q95, veh",null,null,null,null,null,null,null,null,null,null,null,null,null,null,null,null,null,null,null,null,null,null,null,null,null,null,null,null,null,null,null,null,null,null,null,{"$f":"ROUNDUP(900*0.25*(CW31-1+SQRT((CW31-1)^2+((3600/DA39)*CW31)/(150*0.25)))*(DA39/3600),0)","v":1},null,null,null,"Q95, veh",null,null,null,null,null,null,null,null,null,null,null,null,null,null,null,null,null,null,null,null,null,null,null,null,"conflicting with",null,null,null,null,null,null,"V/C RATIO",null,null,null,"Conflicting flow",null,null,null,null,null,null,null,null,null,null,null,null,null,null,null,null,null,null,null,null,null,null,null,null,null,"Type2 (nonyielding)",null,null,null,null,null,null,null,null,null,null,null,null,null,null,null,null,null,null,null,null,null,null,null,null,null,null,null,null,null,null,null,"Yes",1]
[null,null,null,null,null,null,null,null,null,null,null,null,null,null,null,null,null,null,null,null,null,null,null,null,null,null,null,null,null,null,null,null,null,null,null,null,null,null,null,null,null,null,null,null,null,null,null,null,null,null,null,null,null,null,null,null,null,null,null,null,null,null,null,null,null,null,null,null,null,null,null,null,null,null,null,null,null,null,null,null,null,null,null,null,null,null,null,null,null,1,"Lane"]
[null,null,null,null,null,null,"Right-turn Bypass",null,null,{"$f":"IF(SB_slipON=\"NO\",\"n/a\",IF(AND(SB_slipON=\"Yes\",SB_slipType=2),0,CA32))","v":0},null,null,null,"V/C",null,null,null,null,null,null,null,null,null,null,null,null,null,null,null,null,null,null,null,null,null,null,null,null,null,null,null,null,null,null,null,null,"Right-turn Bypass",null,null,{"$f":"IF(WB_slipON=\"No\",\"n/a\",IF(AND(WB_slipON=\"Yes\",WB_slipType=2),0,CW25))","v":0},null,null,null,"V/C",null,null,null,null,null,null,null,null,null,null,null,null,null,null,null,null,null,null,null,null,null,null,null,null,"pc/h",null,null,null,null,null,null,null,null,null,null,null,null,null,null,null,null,null,null,null,null,null,null,null,null,null,null,null,null,null,null,null,null,null,null,null,null,null,null,null,null,null,null,null,null,null,null,null,null,null,null,null,null,null,null,null,null,null,null,null,null,null,"capacity",null,null,null,null,"delay"]
[null,null,null,null,null,null,null,null,null,null,null,null,null,null,null,null,null,null,null,null,null,null,null,null,null,null,null,null,null,null,null,null,null,null,null,null,null,null,null,null,null,null,null,null,null,null,null,null,null,null,null,null,null,null,null,null,null,null,null,null,null,null,null,null,null,null,null,null,null,null,null,null,null,null,null,null,null,null,{"$f":"IF(SB_slipON=\"No\",\"n/a\",$DN$34+$CO$64+$BQ$36)","v":550},null,null,null,null,null,null,null,null,null,null,null,null,null,null,null,null,null,null,null,null,null,null,null,null,null,null,null,null,null,null,null,null,null,null,null,null,null,null,null,null,null,null,null,null,null,null,null,null,null,null,null,null,null,null,null,null,null,null,{"$f":"DH25","v":400},null,null,167619.10764886666,null,null,null,null,{"$f":"ROUND(3600/EK30+900*0.25*((DH25/EK30)-1+SQRT(((DH25/EK30)-1)^2+((3600/EK30)*(DH25/EK30))/(450*0.25)))+(5*(MIN((DH25/EK30),1))),1)","v":0}]
[null,null,null,null,null,null,null,null,null,{"$f":"IF(SB_slipON=\"NO\",\"n/a\",IF(AND(SB_slipON=\"Yes\",SB_slipType=2),0,ROUND(3600/CA26+900*0.25*(CA32-1+SQRT((CA32-1)^2+((3600/CA26)*CA32)/(450*0.25)))+(5*(MIN(CA32,1))),1)))","v":0},null,null,null,"d, s/veh",null,null,null,null,null,null,null,null,null,null,null,null,null,null,null,null,null,null,null,null,null,null,null,null,null,null,null,null,null,null,null,null,null,null,null,{"$f":"IF(WB_slipON=\"No\",\"n/a\",IF(AND(WB_slipON=\"Yes\",WB_slipType=2),0,ROUND(3600/DC25+900*0.25*(CW25-1+SQRT((CW25-1)^2+((3600/DC25)*CW25)/(450*0.25)))+(5*(MIN(CW25,1))),1)))","v":0},null,null,null,"d, s/veh",null,null,null,null,null,null,null,null,null,null,null,null,null,null,null,null,null,null,null,null,null,null,null,null,"V/C RATIO",null,null,null,null,null,null,{"$f":"CH26/CL22","v":0.86863557396766011},null,null,null,null,null,null,null,null,null,null,null,null,null,null,{"$f":"DC31/DA39","v":0.15418502202643172},null,"V/C RATIO",null,null,null,{"$f":"ROUND(FHV_WB*DE31,1)","v":70},"veh/h",{"$f":"SUM(DN31:DN42)","v":70},"pc/h",null,null,null,null,null,null,null,{"$f":"IF(WB_slipON=\"No\",WBR_Master,0)","v":0},"pc/h"]
[null,null,null,null,null,null,null,null,null,null,null,null,null,null,null,null,null,null,null,null,null,null,null,null,null,null,null,null,null,null,null,null,null,null,null,null,null,null,null,null,null,null,null,null,null,null,null,null,null,null,null,null,null,null,null,null,null,null,null,null,null,null,null,null,null,null,null,null,null,null,null,null,null,null,null,null,null,null,{"$f":"IF(SB_slipON=\"No\",\"n/a\",IF(AND(SB_slipON=\"Yes\",SB_slipType=2),0,CA21/CA26))","v":0}]
[null,null,null,null,null,null,null,null,null,{"$f":"IF(SB_slipON=\"Yes\",VLOOKUP(J31,LOS,2,TRUE),\"n/a\")","v":"A"},null,null,null,"LOS",null,null,null,null,null,null,null,null,null,null,null,null,null,null,null,null,null,null,null,null,null,null,null,null,null,null,null,null,null,null,null,null,null,null,null,{"$f":"IF(WB_slipON=\"Yes\",VLOOKUP(AX31,LOS,2,TRUE),\"n/a\")","v":"A"},null,null,null,"LOS"]
[null,null,null,null,null,null,null,null,null,null,null,null,null,null,null,null,null,null,null,null,null,null,null,null,null,null,null,null,null,null,null,null,null,null,null,null,null,null,null,null,null,null,null,null,null,null,null,null,null,null,null,null,null,null,null,null,null,null,null,null,null,null,null,null,null,null,null,null,null,null,null,null,null,null,null,null,null,null,null,null,null,null,null,null,null,null,null,null,null,null,null,null,null,null,null,null,null,null,null,null,null,null,null,null,null,null,null,null,null,null,null,null,null,null,null,null,null,{"$f":"WBT_Master","v":20},"pc/h"]
[null,null,null,null,null,null,null,null,null,{"$f":"IF(SB_slipON=\"NO\",\"n/a\",IF(AND(SB_slipON=\"yes\",SB_slipType=2),0,ROUNDUP(900*0.25*(CA32-1+SQRT((CA32-1)^2+((3600/CA26)*CA32)/(150*0.25)))*(CA26/3600),0)))","v":0},null,null,null,"Q95, veh",null,null,null,null,null,null,null,null,null,null,null,null,null,null,null,null,null,null,null,null,null,null,null,null,null,null,null,null,null,null,null,null,null,null,null,{"$f":"IF(WB_slipON=\"No\",\"n/a\",IF(AND(WB_slipON=\"yes\",WB_slipType=2),0,ROUNDUP(900*0.25*(CW25-1+SQRT((CW25-1)^2+((3600/DC25)*CW25)/(150*0.25)))*(DC25/3600),0)))","v":0},null,null,null,"Q95, veh",null,null,null,null,null,null,null,null,null,null,null,null,null,null,null,null,null,null,null,null,"Predicted approach capacity",null,null,null,null,null,null,null,"Conflicting flow",1,null,null,null,null,null,null,null,null,null,null,null,null,null,null,null,null,null,null,null,"Conflicting flow","Predicted approach capacity"]
[null,null,null,null,null,null,null,null,null,null,null,null,null,null,null,null,null,null,null,null,null,null,null,null,null,null,null,null,null,null,null,null,null,null,null,null,null,null,null,null,null,null,null,null,null,null,null,null,null,null,null,null,null,null,null,null,null,null,null,null,null,null,null,null,null,null,null,"pc/h",{"$f":"EBU_Master","v":0}]
[null,null,null,null,null,null,"Approach delay, s/veh",null,null,null,null,null,null,{"$f":"IF(SB_slipON=\"Yes\",(J23*CH26+J31*CA21)/(CH26+CA21),J23)","v":24.547058823529412},null,null,null,null,null,null,null,null,null,null,null,null,null,null,null,null,null,null,null,null,null,null,null,null,null,null,null,null,null,null,null,null,"Approach delay, s/veh",null,null,null,null,null,null,{"$f":"IF(WB_slipON=\"Yes\",(AX23*DC31+AX31*DH25)/(DC31+DH25),AX23)","v":1.5042553191489361},null,null,null,null,null,null,null,null,null,null,null,null,null,null,null,null,null,null,null,null,null,null,null,null,null,null,null,null,null,"Lane",null,null,null,null,null,null,null,null,null,null,null,null,null,null,null,null,null,null,null,null,null,null,null,null,null,null,null,null,null,null,null,null,null,{"$f":"WBL_Master","v":50},"pc/h"]
[null,null,null,null,null,null,null,null,null,null,null,null,null,null,null,null,null,null,null,null,null,null,null,null,null,null,null,null,null,null,null,null,null,null,null,null,null,null,null,null,null,null,null,null,null,null,null,null,null,null,null,null,null,null,null,null,null,null,null,null,null,null,null,null,null,null,null,null,null,null,null,null,null,null,{"$f":"$DE$10*EXP(-$DL$10*EB_Conflict)","v":675.76053704831588},null,null,null,"pc/h",null,null,null,null,null,null,null,null,null,null,null,null,null,null,null,null,null,null,null,null,null,null,null,null,null,{"$f":"$DE$10*EXP(-$DL$10*DA42)","v":453.97347814460511},null,null,null,"pc/h"]
[null,null,null,null,null,null,null,null,null,null,null,null,null,null,null,null,null,null,null,null,null,null,null,null,null,null,null,null,null,null,null,null,null,null,null,null,null,null,null,null,null,null,null,null,null,null,null,null,null,null,null,null,null,null,null,null,null,null,null,null,null,null,null,null,null,null,null,"pc/h",{"$f":"EBL_Master","v":50},null,null,null,null,null,{"$f":"ROUND(FHV_EB*EB_fped_SL*BW38,1)","v":675.8},null,null,null,"veh/h",null,null,null,null,null,null,null,null,null,null,null,null,null,null,null,null,null,null,null,null,null,null,"Lane",null,null,{"$f":"ROUND(FHV_WB*WB_fped_SL*DA38,1)","v":454},null,null,null,"veh/h",null,null,null,null,null,null,null,null,null,null,null,null,null,null,null,null,null,null,null,null,null,null,null,10000]
[null,null,null,null,null,null,null,null,null,null,null,null,null,null,null,null,null,null,null,null,null,null,null,null,null,null,null,null,null,null,null,null,null,null,null,null,null,null,null,null,null,null,null,null,null,null,null,null,null,null,null,null,null,null,null,null,null,null,null,null,null,null,null,null,null,null,null,null,null,null,null,null,null,null,"conflicting with",null,null,null,null,null,null,null,null,null,null,null,null,null,null,null,null,null,null,null,null,null,null,null,null,null,null,null,null,null,"conflicting with",null,null,null,null,null,null,null,null,null,null,null,null,{"$f":"WBU_Master","v":0},"pc/h",null,null,null,null,null,null,null,null,null,null,null,null,null,null,null,null,null,null,null,null,null,null,null,null,null,null,10]
[null,null,null,null,null,null,null,null,null,null,null,null,null,null,null,null,null,null,null,null,null,null,null,null,null,null,null,null,null,null,null,null,null,null,null,null,null,null,null,null,null,null,null,null,null,null,null,null,null,null,null,null,null,null,null,null,null,null,null,null,null,null,null,null,null,null,null,null,null,null,null,null,null,null,null,null,null,null,null,null,null,null,null,null,null,null,null,null,null,null,null,null,null,null,null,null,null,null,null,null,null,null,null,null,null,null,null,null,null,null,null,null,null,null,null,null,null,null,null,null,null,null,null,null,null,null,null,null,null,null,null,null,null,null,null,null,null,null,null,null,null,null,null,null,null,649]
[null,null,null,null,null,null,null,null,null,null,null,null,null,null,null,null,null,null,null,null,null,null,null,null,null,null,null,null,null,null,null,null,null,null,null,null,null,null,null,null,null,null,null,null,null,null,null,null,null,null,null,null,null,null,null,null,null,null,null,null,null,null,null,null,null,null,null,"pc/h",{"$f":"EBT_Master","v":30},null,null,null,null,null,{"$f":"CK15+CN15+CQ15+DN37+DN40+CL64","v":700},null,null,null,"pc/h",null,null,null,null,null,null,null,null,null,null,null,null,null,null,null,null,null,null,null,null,null,null,1,null,null,{"$f":"CL64+CO64+CR64+CQ15+BQ39+BQ36","v":1090},null,null,null,"pc/h"]
[null,null,null,null,null,null,null,null,null,null,null,null,null,null,null,null,null,null,null,null,null,null,null,null,null,null,null,null,null,null,null,null,null,null,null,null,null,null,null,null,null,null,null,null,null,null,null,null,null,null,null,null,null,null,null,null,null,null,null,null,null,null,null,null,null,null,null,null,null,null,null,null,null,null,null,null,null,null,null,null,null,null,null,null,null,null,null,null,null,null,null,null,null,null,null,null,null,null,null,null,null,null,null,null,null,null,null,null,null,null,null,null,null,null,null,null,null,null,null,null,null,null,null,null,null,null,null,null,null,null,null,null,null,null,null,null,null,null,null,null,{"$f":"(900*0.25*EP41+5*EP41+3600)/(EP40-900*0.25*(SQRT((EP41/EC39-1)^2+2*3600*EP41/(900*0.25*EC39*EC39))-1))","v":6219.9125613592469}]
[]
[null,null,null,null,null,null,null,null,null,null,null,null,null,null,null,null,null,null,null,null,null,null,null,null,null,null,null,null,null,null,null,null,null,null,null,null,null,null,null,null,null,null,null,null,null,null,null,null,null,null,null,null,null,null,null,null,null,null,null,null,null,null,null,null,null,null,null,"pc/h",{"$f":"IF(EB_SlipON=\"No\",EBR_Master,0)","v":0},null,null,null,null,null,null,null,"pc/h",{"$f":"SUM(BQ36:BQ47)","v":80},"veh/h",{"$f":"ROUND(FHV_EB*BZ45,1)","v":80},"V/C RATIO",null,null,null,{"$f":"CB45/BW39","v":0.11837821840781297}]
[]
[null,null,null,null,null,null,null,null,null,null,null,null,null,null,null,null,null,null,null,null,null,null,null,null,null,null,null,null,null,null,null,null,null,null,null,null,null,null,null,null,null,null,null,null,null,null,null,null,null,null,null,null,null,null,null,null,null,null,null,null,null,null,null,null,null,null,null,null,null,null,null,null,null,null,null,null,null,null,null,null,null,null,null,null,null,null,null,null,null,null,null,null,null,null,null,null,null,null,{"$f":"CU53/CL57","v":1.1685393258426966},null,null,null,{"$f":"IF(NB_slipON=\"No\",\"n/a\",IF(AND(NB_slipON=\"Yes\",NB_slipType=2),0,CY58/CY53))","v":9.727626459143969E-3}]
[null,null,null,null,null,null,null,null,null,null,null,null,null,null,null,null,null,null,null,null,null,null,null,null,null,null,null,null,null,null,null,null,null,null,null,null,null,null,null,null,null,null,null,null,null,null,null,null,null,null,null,null,null,null,null,null,null,null,null,null,null,null,null,null,null,null,null,null,null,null,null,null,null,null,null,null,null,null,null,null,null,null,null,null,null,null,null,null,null,null,null,null,null,null,null,null,null,null,null,null,null,null,"V/C RATIO"]
[null,null,null,null,null,null,"Predicted approach MOE",null,null,null,null,null,null,null,null,null,null,null,null,null,null,null,null,null,null,null,null,null,null,null,null,null,null,null,null,null,null,null,null,null,null,null,null,null,null,null,"Predicted approach MOE",null,null,null,null,null,null,null,null,null,null,null,null,null,null,null,null,"Right-turn Bypass Lane",null,"Yes",null,null,null,null,null,"pc/h",{"$f":"IF(EB_SlipON=\"Yes\",EBR_Master,\"n/a\")","v":150},"veh/h",{"$f":"IF(EB_SlipON=\"No\",\"n/a\",ROUND(BU49*FHV_EB*EB_fped_SL,1))","v":150},"capacity","pc/h",{"$f":"IF(EB_SlipON=\"No\",\"n/a\",IF(EB_slipType=0,$DE$12*EXP(-$DL$12*NBLeg_ExitFlow),IF(EB_slipType=1,$DE$14*EXP(-$DL$14*NBLeg_ExitFlow),\"large\")))","v":965.68604687376319},"veh/h",{"$f":"IF(EB_SlipON=\"No\",\"n/a\",IF(EB_slipType=2,\"large\",ROUND(FHV_EB*EB_fped_SL*BZ49,1)))","v":965.7},"conflicting with",null,"pc/h",{"$f":"IF(EB_SlipON=\"No\",\"n/a\",$CK$15+$DN$37+$CL$64)","v":350},"V/C Ratio",{"$f":"IF(EB_SlipON=\"No\",\"n/a\",IF(AND(EB_SlipON=\"Yes\",EB_slipType=2),0,BW49/CB49))","v":0.15532774153463808},null,null,null,null,null,null,null,null,null,null,null,null,"V/C RATIO",null,null,null,{"$f":"IF(NB_slipON=\"No\",\"n/a\",$BQ$42+$CN$15+$DN$40)","v":380}]
[null,null,null,null,null,null,null,null,null,null,null,null,null,null,null,null,null,null,null,null,null,null,null,null,null,null,null,null,null,null,null,null,null,null,null,null,null,null,null,null,null,null,null,null,null,null,null,null,null,null,null,null,null,null,null,null,null,null,null,null,null,null,null,null,null,null,null,null,null,null,null,null,null,null,null,null,null,null,null,null,null,null,null,null,null,null,null,null,null,1,"Lane",null,null,null,null,null,null,null,null,null,null,null,"pc/h"]
[null,null,null,null,null,null,null,null,null,null,null,null,null,null,null,null,null,null,null,null,null,null,null,null,null,null,null,null,null,null,null,null,null,null,null,null,null,null,null,null,null,null,null,null,null,null,null,null,null,null,null,null,null,null,null,null,null,null,null,null,null,null,null,null,null,"Type1a (yielding)",null,null,null,null,null,null,null,null,null,null,null,null,null,null,null,null,null,null,null,null,null,null,null,null,null,null,null,null,null,null,null,null,null,null,null,null,"conflicting with"]
[null,null,null,null,null,null,"Lane 1",null,null,{"$f":"CG45","v":0.11837821840781297},null,null,null,"V/C",null,null,null,null,null,null,null,null,null,null,null,null,null,null,null,null,null,null,null,null,null,null,null,null,null,null,null,null,null,null,null,null,"Lane 1",null,null,{"$f":"CU47","v":1.1685393258426966},null,null,null,"V/C",null,null,null,null,null,null,null,null,null,null,null,null,null,null,null,null,null,null,null,null,null,null,null,null,null,null,null,null,null,null,null,null,null,null,null,"Conflicting flow"]
[null,null,null,null,null,null,null,null,null,null,null,null,null,null,null,null,null,null,null,null,null,null,null,null,null,null,null,null,null,null,null,null,null,null,null,null,null,null,null,null,null,null,null,null,null,null,null,null,null,null,null,null,null,null,null,null,null,null,null,null,null,null,null,null,null,null,null,null,null,null,null,null,null,null,null,null,null,null,null,null,null,null,null,null,null,null,null,null,null,"Predicted approach capacity",null,null,null,null,null,null,null,null,{"$f":"ROUND(FHV_NB*CU55,1)","v":1040},null,null,null,{"$f":"IF(NB_slipON=\"No\",\"n/a\",IF(NB_slipType=2,\"large\",ROUND(FHV_NB*NB_fped_SL*CY55,1)))","v":1028}]
[null,null,null,null,null,null,null,null,null,{"$f":"ROUND(3600/BW39+900*0.25*(CG45-1+SQRT((CG45-1)^2+((3600/BW39)*CG45)/(450*0.25)))+(5*(MIN(BW39,1))),1)","v":11},null,null,null,"d, s/veh",null,null,null,null,null,null,null,null,null,null,null,null,null,null,null,null,null,null,null,null,null,null,null,null,null,null,null,null,null,null,null,null,null,null,null,{"$f":"ROUND(3600/CL57+900*0.25*(CU47-1+SQRT((CU47-1)^2+((3600/CL57)*CU47)/(450*0.25)))+(5*(MIN(CU47,1))),1)","v":106.7},null,null,null,"d, s/veh",null,null,null,null,null,null,null,null,null,null,null,null,null,null,null,null,null,null,null,null,null,null,null,null,null,null,null,null,null,null,null,null,null,null,null,null,null,null,null,null,null,null,null,null,"veh/h",null,null,null,"veh/h"]
[null,null,null,null,null,null,null,null,null,null,null,null,null,null,null,null,null,null,null,null,null,null,null,null,null,null,null,null,null,null,null,null,null,null,null,null,null,null,null,null,null,null,null,null,null,null,null,null,null,null,null,null,null,null,null,null,null,null,null,null,null,null,null,null,null,null,null,null,null,null,null,null,null,null,null,null,null,null,null,null,null,null,null,null,null,null,null,null,null,null,null,null,null,null,null,null,null,null,{"$f":"SUM(CL64:CW64)","v":1040},null,null,null,{"$f":"IF(NB_slipON=\"No\",\"n/a\",IF(NB_slipType=0,$DE$12*EXP(-$DL$12*WBLeg_ExitFlow),IF(NB_slipType=1,$DE$14*EXP(-$DL$14*WBLeg_ExitFlow),\"large\")))","v":1028.0428732024398}]
[null,null,null,null,null,null,null,null,null,{"$f":"IF(AND(J54>=0,J54<=10),\"A\",IF(AND(J54>10,J54<=15),\"B\",IF(AND(J54>15,J54<=25),\"C\",IF(AND(J54>25,J54<=35),\"D\",IF(AND(J54>35,J54<=50),\"E\",IF(J54>50,\"F\",\"F\"))))))","v":"B"},null,null,null,"LOS",null,null,null,null,null,null,null,null,null,null,null,null,null,null,null,null,null,null,null,null,null,null,null,null,null,null,null,null,null,null,null,null,null,null,null,{"$f":"VLOOKUP(AX54,LOS,2,TRUE)","v":"F"},null,null,null,"LOS",null,null,null,null,null,null,null,null,null,null,null,null,null,null,null,null,null,null,null,null,null,null,null,null,null,null,null,null,null,null,null,null,null,null,null,{"$f":"$DE$10*EXP(-$DL$10*CL60)","v":890.01541086173017},null,null,null,"pc/h",null,null,null,null,"pc/h",null,null,null,"pc/h"]
[null,null,null,null,null,null,null,null,null,null,null,null,null,null,null,null,null,null,null,null,null,null,null,null,null,null,null,null,null,null,null,null,null,null,null,null,null,null,null,null,null,null,null,null,null,null,null,null,null,null,null,null,null,null,null,null,null,null,null,null,null,null,null,null,null,null,null,null,null,null,null,null,null,null,null,null,null,null,null,null,null,null,null,null,null,null,null,null,null,{"$f":"ROUND(FHV_NB*NB_fped_SL*CL56,1)","v":890},null,null,null,"veh/h",null,null,null,null,null,null,null,null,"capacity"]
[null,null,null,null,null,null,null,null,null,{"$f":"ROUNDUP(900*0.25*(CG45-1+SQRT((CG45-1)^2+((3600/BW39)*CG45)/(150*0.25)))*(BW39/3600),0)","v":1},null,null,null,"Q95, veh",null,null,null,null,null,null,null,null,null,null,null,null,null,null,null,null,null,null,null,null,null,null,null,null,null,null,null,null,null,null,null,null,null,null,null,{"$f":"ROUNDUP(900*0.25*(CU47-1+SQRT((CU47-1)^2+((3600/CL57)*CU47)/(150*0.25)))*(CL57/3600),0)","v":32},null,null,null,"Q95, veh",null,null,null,null,null,null,null,null,null,null,null,null,null,null,null,null,null,null,null,null,null,null,null,null,null,null,null,null,null,null,null,null,null,null,null,"conflicting with",null,null,null,null,null,null,null,null,null,null,null,null,{"$f":"IF(NB_slipON=\"No\",\"n/a\",ROUND(FHV_NB*NB_fped_SL*CY60,1))","v":10}]
[null,null,null,null,null,null,null,null,null,null,null,null,null,null,null,null,null,null,null,null,null,null,null,null,null,null,null,null,null,null,null,null,null,null,null,null,null,null,null,null,null,null,null,null,null,null,null,null,null,null,null,null,null,null,null,null,null,null,null,null,null,null,null,null,null,null,null,null,null,null,null,null,null,null,null,null,null,null,null,null,null,null,null,null,null,null,null,null,null,null,null,null,null,null,null,null,null,null,null,null,null,null,"veh/h"]
[null,null,null,null,null,null,"Right-turn Bypass",null,null,{"$f":"IF(EB_SlipON=\"No\",\"n/a\",IF(AND(EB_SlipON=\"Yes\",EB_slipType=2),0,CH49))","v":0.15532774153463808},null,null,null,"V/C",null,null,null,null,null,null,null,null,null,null,null,null,null,null,null,null,null,null,null,null,null,null,null,null,null,null,null,null,null,null,null,null,"Right-turn Bypass",null,null,{"$f":"IF(NB_slipON=\"No\",\"n/a\",IF(AND(NB_slipON=\"Yes\",NB_slipType=2),0,CY47))","v":9.727626459143969E-3},null,null,null,"V/C",null,null,null,null,null,null,null,null,null,null,null,null,null,null,null,null,null,null,null,null,null,null,null,null,null,null,null,null,null,null,null,null,null,null,null,{"$f":"BQ36+BQ39+BQ42+CN15+CQ15+DN40","v":430},null,null,null,"pc/h",null,null,null,null,null,null,null,null,{"$f":"IF(NB_slipON=\"Yes\",NBR_Master,\"n/a\")","v":10}]
[null,null,null,null,null,null,null,null,null,null,null,null,null,null,null,null,null,null,null,null,null,null,null,null,null,null,null,null,null,null,null,null,null,null,null,null,null,null,null,null,null,null,null,null,null,null,null,null,null,null,null,null,null,null,null,null,null,null,null,null,null,null,null,null,null,null,null,null,null,null,null,null,null,null,null,null,null,null,null,null,null,null,null,null,null,null,null,null,null,null,null,null,null,null,null,null,null,null,null,null,null,null,"pc/h"]
[null,null,null,null,null,null,null,null,null,{"$f":"IF(EB_SlipON=\"No\",\"n/a\",IF(AND(EB_SlipON=\"Yes\",EB_slipType=2),0,ROUND(3600/CB49+900*0.25*(CH49-1+SQRT((CH49-1)^2+((3600/CB49)*CH49)/(450*0.25)))+(5*(MIN(CH49,1))),1)))","v":5.2},null,null,null,"d, s/veh",null,null,null,null,null,null,null,null,null,null,null,null,null,null,null,null,null,null,null,null,null,null,null,null,null,null,null,null,null,null,null,null,null,null,null,{"$f":"IF(NB_slipON=\"No\",\"n/a\",IF(AND(NB_slipON=\"Yes\",NB_slipType=2),0,ROUND(3600/CY53+900*0.25*(CY47-1+SQRT((CY47-1)^2+((3600/CY53)*CY47)/(450*0.25)))+(5*(MIN(CY47,1))),1)))","v":3.6},null,null,null,"d, s/veh",null,null,null,null,null,null,null,null,null,null,null,null,null,null,null,null,null,null,null,null,null,null,null,null,null,null,null,null,null,null,null,null,null,null,null,null,null,null,null,null,null,null,null,null,null,null,null,null,"Yes"]
[]
[null,null,null,null,null,null,null,null,null,{"$f":"IF(EB_SlipON=\"Yes\",VLOOKUP(J62,LOS,2,TRUE),\"n/a\")","v":"A"},null,null,null,"LOS",null,null,null,null,null,null,null,null,null,null,null,null,null,null,null,null,null,null,null,null,null,null,null,null,null,null,null,null,null,null,null,null,null,null,null,{"$f":"IF(NB_slipON=\"Yes\",VLOOKUP(AX62,LOS,2,TRUE),\"n/a\")","v":"A"},null,null,null,"LOS",null,null,null,null,null,null,null,null,null,null,null,null,null,null,null,null,null,null,null,null,null,null,null,null,null,null,null,null,null,null,null,null,null,null,null,{"$f":"NBU_Master","v":0},null,null,{"$f":"NBL_Master","v":530},null,null,{"$f":"NBT_Master","v":510},null,null,{"$f":"IF(NB_slipON=\"No\",NBR_Master,0)","v":0},null,null,null,"Type1b (yielding)"]
[null,null,null,null,null,null,null,null,null,null,null,null,null,null,null,null,null,null,null,null,null,null,null,null,null,null,null,null,null,null,null,null,null,null,null,null,null,null,null,null,null,null,null,null,null,null,null,null,null,null,null,null,null,null,null,null,null,null,null,null,null,null,null,null,null,null,null,null,null,null,null,null,null,null,null,null,null,null,null,null,null,null,null,null,null,null,null,null,null,"pc/h",null,null,"pc/h",null,null,"pc/h",null,null,"pc/h"]
[null,null,null,null,null,null,null,null,null,{"$f":"IF(EB_SlipON=\"No\",\"n/a\",IF(AND(EB_SlipON=\"yes\",EB_slipType=2),0,ROUNDUP(900*0.25*(CH49-1+SQRT((CH49-1)^2+((3600/CB49)*CH49)/(150*0.25)))*(CB49/3600),0)))","v":1},null,null,null,"Q95, veh",null,null,null,null,null,null,null,null,null,null,null,null,null,null,null,null,null,null,null,null,null,null,null,null,null,null,null,null,null,null,null,null,null,null,null,{"$f":"IF(NB_slipON=\"No\",\"n/a\",IF(AND(NB_slipON=\"yes\",NB_slipType=2),0,ROUNDUP(900*0.25*(CY47-1+SQRT((CY47-1)^2+((3600/CY53)*CY47)/(150*0.25)))*(CY53/3600),0)))","v":1},null,null,null,"Q95, veh",null,null,null,null,null,null,null,null,null,null,null,null,null,null,null,null,null,null,null,null,null,null,null,null,null,null,null,null,null,null,null,null,null,null,null,null,null,null,null,null,null,null,null,null,null,null,null,null,"Right-turn Bypass Lane"]
[]
[null,null,null,null,null,null,"Approach delay, s/veh",null,null,null,null,null,null,{"$f":"IF(EB_SlipON=\"Yes\",(J54*CB45+J62*BW49)/(CB45+BW49),J54)","v":7.2173913043478262},null,null,null,null,null,null,null,null,null,null,null,null,null,null,null,null,null,null,null,null,null,null,null,null,null,null,null,null,null,null,null,null,"Approach delay, s/veh",null,null,null,null,null,null,{"$f":"IF(NB_slipON=\"Yes\",(AX54*CU53+AX62*CY58)/(CU53+CY58),AX54)","v":105.71809523809524}]

{"sheet":"1NS x 2 EW Rndabt","index":4,"n_rows":78,"n_cols":147,"rows_kept":78,"cut":false,"hidden":false,"merged":[[25,6,26,9],[12,82,13,86],[12,87,13,88],[35,66,35,71],[36,66,36,71],[37,66,37,71],[62,80,63,81],[60,79,61,79],[42,66,42,71],[43,66,43,71],[44,66,45,71],[46,66,46,71],[47,66,47,71],[48,66,48,71],[49,66,49,71],[54,65,56,68],[54,69,56,69],[54,70,56,70],[55,76,63,76],[55,77,59,78],[57,65,59,68],[57,69,59,69],[57,70,59,70],[63,69,65,69],[8,89,9,100],[32,54,33,58],[23,79,23,81],[30,77,31,80],[33,73,33,75],[32,50,33,53],[31,73,31,75],[32,77,32,80],[32,81,32,82],[27,66,30,71],[28,54,29,58],[30,50,31,53],[30,54,31,58],[28,77,29,80],[32,83,32,84],[31,66,32,71],[33,66,34,71],[19,70,21,72],[19,73,21,75],[22,70,22,72],[22,73,22,75],[21,102,23,107],[26,111,28,112],[0,1,1,60],[2,1,3,60],[5,2,6,9],[5,10,6,35],[7,2,8,9],[7,10,8,35],[9,2,10,9],[9,10,10,35],[11,2,12,9],[11,10,12,35],[9,36,10,53],[9,54,10,59],[11,36,12,53],[5,36,8,59],[11,54,12,59],[10,89,11,93],[10,94,11,95],[10,96,11,100],[10,87,11,88],[10,82,11,86],[15,46,17,58],[8,82,9,88],[68,80,70,80],[68,81,70,81],[66,111,69,113],[65,102,66,105],[65,106,66,109],[32,109,40,109],[36,115,38,115],[36,116,38,116],[55,111,56,113],[69,102,69,109],[64,108,64,109],[59,111,61,113],[62,111,62,113],[63,111,63,113],[33,115,35,115],[33,81,34,82],[33,83,34,84],[32,107,35,108],[39,115,41,115],[39,116,41,116],[36,106,40,106],[55,115,55,120],[56,115,56,120],[47,115,47,120],[72,96,76,96],[57,115,57,120],[58,115,58,120],[59,115,59,120],[77,116,80,118],[75,110,75,112],[75,113,75,115],[75,116,75,118],[76,116,76,118],[65,111,65,113],[67,106,68,109],[76,110,76,112],[77,110,80,112],[75,107,75,109],[76,107,76,109],[67,102,68,105],[77,107,80,109],[72,97,76,97],[72,98,76,98],[77,113,80,115],[66,115,69,120],[62,115,63,120],[60,115,60,120],[61,115,61,120],[77,65,80,66],[76,113,76,115],[64,111,64,113],[77,67,80,68],[74,69,76,72],[74,73,76,74],[70,69,72,72],[70,73,72,74],[67,67,76,68],[77,71,79,72],[65,83,67,83],[68,87,70,88],[65,89,67,90],[68,89,70,90],[72,78,73,83],[74,78,76,83],[64,115,65,120],[72,84,76,84],[72,85,76,85],[63,70,65,70],[63,65,65,68],[67,71,69,72],[67,65,76,66],[68,76,70,79],[0,63,1,122],[2,63,3,122],[65,87,67,88],[64,102,64,105],[64,106,64,107],[39,117,41,120],[36,107,40,108],[42,115,44,115],[42,116,44,116],[42,117,44,120],[36,117,38,120],[28,104,30,104],[28,105,30,105],[28,106,30,109],[28,99,30,101],[28,102,30,102],[60,70,62,70],[38,73,39,75],[23,70,23,72],[23,73,23,75],[23,76,23,78],[55,80,59,81],[55,82,59,83],[19,102,20,107],[48,115,48,120],[49,115,49,120],[50,115,50,120],[51,115,52,120],[53,115,53,120],[54,115,54,120],[74,46,76,53],[74,54,76,58],[57,111,58,113],[60,77,63,78],[62,82,63,83],[65,84,67,86],[68,82,70,82],[68,83,70,83],[68,84,70,86],[62,79,63,79],[65,76,67,79],[65,80,67,80],[65,81,67,81],[55,79,59,79],[62,102,63,105],[62,108,63,109],[62,106,63,107],[72,76,76,77],[72,86,76,86],[72,87,76,87],[72,88,76,88],[72,89,76,89],[72,90,76,90],[72,91,76,91],[72,92,76,92],[72,93,76,94],[72,95,76,95],[65,82,67,82],[60,65,62,68],[60,69,62,69],[16,2,18,14],[24,50,25,53],[24,54,25,58],[26,46,33,49],[26,50,27,53],[26,54,27,58],[28,50,29,53],[23,10,24,14],[27,6,28,9],[27,10,28,14],[19,2,26,5],[19,10,20,14],[21,6,22,9],[21,10,22,14],[23,6,24,9],[25,10,26,14],[18,54,19,58],[20,54,21,58],[22,54,23,58],[18,50,19,53],[20,50,21,53],[19,6,20,9],[18,46,25,49],[22,50,23,53],[12,89,13,93],[12,94,13,95],[12,96,13,100],[14,82,15,86],[14,87,15,88],[14,89,15,93],[14,94,15,95],[14,96,15,100],[19,97,23,97],[19,98,23,98],[16,82,17,86],[16,87,17,88],[16,89,17,93],[16,94,17,95],[16,96,17,100],[25,95,27,96],[25,99,27,101],[25,97,27,98],[19,101,23,101],[19,87,23,87],[19,88,23,88],[60,82,61,83],[19,89,23,89],[19,90,23,90],[19,91,23,92],[19,93,23,93],[19,94,23,94],[19,95,23,95],[28,81,29,84],[27,77,27,84],[19,76,21,78],[19,79,21,81],[28,95,30,96],[30,81,31,84],[19,96,23,96],[60,80,61,81],[22,76,22,78],[22,79,22,81],[29,6,30,9],[29,10,30,14],[31,10,32,14],[31,6,32,9],[33,10,34,14],[33,6,34,9],[54,6,55,9],[54,10,55,14],[56,6,57,9],[56,10,57,14],[49,2,51,14],[52,6,53,9],[52,10,53,14],[27,2,34,5],[35,10,37,14],[35,2,37,9],[58,6,59,9],[58,10,59,14],[60,6,61,9],[60,10,61,14],[55,46,57,58],[58,46,65,49],[58,50,59,53],[64,50,65,53],[64,54,65,58],[54,32,58,34],[64,6,65,9],[62,54,63,58],[70,50,71,53],[72,54,73,58],[52,2,59,5],[60,2,67,5],[68,2,75,5],[68,6,69,9],[68,10,69,14],[70,6,71,9],[70,10,71,14],[72,6,73,9],[72,10,73,14],[74,6,75,9],[74,10,75,14],[72,50,73,53],[66,6,67,9],[66,10,67,14],[62,6,63,9],[62,10,63,14],[64,10,65,14],[70,54,71,58],[58,54,59,58],[60,50,61,53],[60,54,61,58],[62,50,63,53],[44,134,44,135],[44,136,44,137],[44,138,44,139],[33,25,36,27],[76,2,78,9],[76,10,78,14],[34,46,41,49],[34,50,35,53],[34,54,35,58],[36,50,37,53],[36,54,37,58],[38,50,39,53],[38,54,39,58],[40,50,41,53],[40,54,41,58],[42,46,44,53],[42,54,44,58],[66,46,73,49],[66,50,67,53],[66,54,67,58],[68,50,69,53],[68,54,69,58],[44,132,44,133],[38,66,38,71],[39,66,39,71],[40,66,40,71],[41,66,41,71],[33,77,34,80],[40,73,41,75],[27,73,30,75],[34,73,34,75],[32,102,33,103],[32,73,32,75],[36,102,40,103],[34,102,35,103],[25,102,27,102],[25,103,27,103],[28,103,30,103],[36,104,40,105],[35,73,37,75],[34,106,35,106],[33,116,35,116],[33,117,35,120],[28,97,30,98],[19,108,23,109],[26,113,28,116],[29,113,31,114],[32,104,33,105],[18,117,21,118],[18,119,21,120],[19,113,21,114],[34,104,35,105],[32,106,33,106],[22,111,24,112],[22,113,24,116],[22,119,31,120],[25,104,27,104],[25,105,27,105],[25,106,27,109],[19,99,23,99],[19,100,23,100],[22,117,31,118]]}
[null,"1 NS x 2 EW Lane Roundabout",null,null,null,null,null,null,null,null,null,null,null,null,null,null,null,null,null,null,null,null,null,null,null,null,null,null,null,null,null,null,null,null,null,null,null,null,null,null,null,null,null,null,null,null,null,null,null,null,null,null,null,null,null,null,null,null,null,null,null,null,null,"1 NS x 2 EW Lane Roundabout"]
[]
[null,"Results Sheet",null,null,null,null,null,null,null,null,null,null,null,null,null,null,null,null,null,null,null,null,null,null,null,null,null,null,null,null,null,null,null,null,null,null,null,null,null,null,null,null,null,null,null,null,null,null,null,null,null,null,null,null,null,null,null,null,null,null,null,null,null,"Design Sheet"]
[]
[null,null,null,null,null,null,null,null,null,null,null,null,null,null,null,null,null,null,null,null,null,null,null,null,null,null,null,null,null,null,null,null,null,null,null,null,null,null,null,null,null,null,null,null,null,null,null,null,null,null,null,null,null,null,null,null,null,null,null,null,null,null,null,null,null,null,null,null,null,null,null,null,null,null,null,null,null,null,null,null,null,null,null,null,null,null,null,null,null,null,null,null,null,null,null,null,null,null,null,null,null,null,null,null,null,null,null,null,null,null,null,null,null,null,null,null,null,null,null,null,null,null,null,null,null,null,null,null,null,null,null,null,"Rigt-turn Slip Type",null,null,null,null,null,null,null,null,"EB","WB","SB","NB"]
[null,null,"Project Name:",null,null,null,null,null,null,null,{"$f":"P_Name","v":0},null,null,null,null,null,null,null,null,null,null,null,null,null,null,null,null,null,null,null,null,null,null,null,null,null,null,null,null,null,null,null,null,null,null,null,null,null,null,null,null,null,null,null,null,null,null,null,null,null,null,null,null,null,null,null,null,null,null,null,null,null,null,null,null,null,null,null,null,null,null,null,null,null,null,null,null,null,null,null,null,null,null,null,null,null,null,null,null,null,null,null,null,null,null,null,null,null,null,null,null,null,null,null,null,null,null,null,null,null,null,null,null,null,null,null,null,null,null,null,null,null,"Type1a (yielding)",0,null,null,null,null,null,null,null,{"$f":"VLOOKUP(CA75,RT_slip_type,2,FALSE)","v":1},{"$f":"VLOOKUP(CY22,RT_slip_type,2,FALSE)","v":0},{"$f":"VLOOKUP(BO34,RT_slip_type,2,FALSE)","v":0},{"$f":"VLOOKUP(DL65,RT_slip_type,2,FALSE)","v":1}]
[null,null,null,null,null,null,null,null,null,null,null,null,null,null,null,null,null,null,null,null,null,null,null,null,null,null,null,null,null,null,null,null,null,null,null,null,null,null,null,null,null,null,null,null,null,null,null,null,null,null,null,null,null,null,null,null,null,null,null,null,null,null,null,null,null,null,null,null,null,null,null,null,null,null,null,null,null,null,null,null,null,null,null,null,null,null,null,null,null,null,null,null,null,null,null,null,null,null,null,null,null,null,null,null,null,null,null,null,null,null,null,null,null,null,null,null,null,null,null,null,null,null,null,null,null,null,null,null,null,null,null,null,"Type1b (yielding)",1]
[null,null,"Project Number:",null,null,null,null,null,null,null,{"$f":"P_Number","v":"Enter the Project Number here (Input worksheet)"},null,null,null,null,null,null,null,null,null,null,null,null,null,null,null,null,null,null,null,null,null,null,null,null,null,null,null,null,null,null,null,null,null,null,null,null,null,null,null,null,null,null,null,null,null,null,null,null,null,null,null,null,null,null,null,null,null,null,null,null,null,null,null,null,null,null,null,null,null,null,null,null,null,null,null,null,null,null,null,null,null,null,null,null,null,null,null,null,null,null,null,null,null,null,null,null,null,null,null,null,null,null,null,null,null,null,null,null,null,null,null,null,null,null,null,null,null,null,null,null,null,"Type2 (nonyielding)",2]
[null,null,null,null,null,null,null,null,null,null,null,null,null,null,null,null,null,null,null,null,null,null,null,null,null,null,null,null,null,null,null,null,null,null,null,null,null,null,null,null,null,null,null,null,null,null,null,null,null,null,null,null,null,null,null,null,null,null,null,null,null,null,null,null,null,null,null,null,null,null,null,null,null,null,null,null,null,null,null,null,null,null,"Equation",null,null,null,null,null,null,"A x exp(-B x Q)"]
[null,null,"Location",null,null,null,null,null,null,null,{"$f":"Location","v":"Enter the Project Location here (Input worksheet)"},null,null,null,null,null,null,null,null,null,null,null,null,null,null,null,null,null,null,null,null,null,null,null,null,null,"Overal Roundabout Delay, s/veh",null,null,null,null,null,null,null,null,null,null,null,null,null,null,null,null,null,{"$f":"(K36*(BV35+SB_1x2_ApprSlipVol)+BC43*(CY29+CY26+WB_1x2_ApprSlipVol)+BC75*(DH63+NB_1x2_ApprSlipVol)+K77*(CF66+CF69+EB_1x2_ApprSlipVol))/(SB_1x2_ApprSlipVol+BV35+CY29+CY26+WB_1x2_ApprSlipVol+DH63+EB_1x2_ApprSlipVol+CF66+CF69+NB_1x2_ApprSlipVol)","v":35.477692307692308}]
[null,null,null,null,null,null,null,null,null,null,null,null,null,null,null,null,null,null,null,null,null,null,null,null,null,null,null,null,null,null,null,null,null,null,null,null,null,null,null,null,null,null,null,null,null,null,null,null,null,null,null,null,null,null,null,null,null,null,null,null,null,null,null,null,null,null,null,null,null,null,null,null,null,null,null,null,null,null,null,null,null,null,"1 Entry, 2 Circ.",null,null,null,null,"A",null,1420,null,null,null,null,"B",null,8.4999999999999995E-4]
[null,null,"Date",null,null,null,null,null,null,null,{"$f":"Date","v":"Enter the date here (Input worksheet)"},null,null,null,null,null,null,null,null,null,null,null,null,null,null,null,null,null,null,null,null,null,null,null,null,null,"Overal Roundabout LOS",null,null,null,null,null,null,null,null,null,null,null,null,null,null,null,null,null,{"$f":"VLOOKUP(BC10,LOS,2,TRUE)","v":"E"}]
[null,null,null,null,null,null,null,null,null,null,null,null,null,null,null,null,null,null,null,null,null,null,null,null,null,null,null,null,null,null,null,null,null,null,null,null,null,null,null,null,null,null,null,null,null,null,null,null,null,null,null,null,null,null,null,null,null,null,null,null,null,null,null,null,null,null,null,null,null,null,null,null,null,null,null,null,null,null,null,null,null,null,"Bypass Type1a",null,null,null,null,"A",null,1380,null,null,null,null,"B",null,1.0200000000000001E-3]
[]
[null,null,null,null,null,null,null,null,null,null,null,null,null,null,null,null,null,null,null,null,null,null,null,null,null,null,null,null,null,null,null,null,null,null,null,null,null,null,null,null,null,null,null,null,null,null,null,null,null,null,null,null,null,null,null,null,null,null,null,null,null,null,null,null,null,null,null,null,null,null,null,null,null,null,null,null,null,null,null,null,null,null,"Bypass Type1b",null,null,null,null,"A",null,1420,null,null,null,null,"B",null,8.4999999999999995E-4,null,null,null,null,null,null,null,null,null,null,null,null,null,null,null,null,null,null,null,null,null,null,null,null,null,null,null,null,null,null,null,null,null,null,null,"Right-turn Slip"]
[null,null,null,null,null,null,null,null,null,null,null,null,null,null,null,null,null,null,null,null,null,null,null,null,null,null,null,null,null,null,null,null,null,null,null,null,null,null,null,null,null,null,null,null,null,null,"Predicted approach capacity",null,null,null,null,null,null,null,null,null,null,null,null,null,null,null,null,null,null,null,null,null,null,null,null,null,null,null,null,null,null,null,null,null,null,null,null,null,null,null,null,null,null,null,null,null,null,null,null,null,null,null,null,null,null,null,null,null,null,null,null,null,null,null,null,null,null,null,null,null,null,null,null,null,null,null,null,null,null,null,null,null,null,null,null,null,null,null,null,null,null,null,null,"EB",null,"WB",null,null,"SB",null,"NB"]
[null,null,"Predicted approach capacity",null,null,null,null,null,null,null,null,null,null,null,null,null,null,null,null,null,null,null,null,null,null,null,null,null,null,null,null,null,null,null,null,null,null,null,null,null,null,null,null,null,null,null,null,null,null,null,null,null,null,null,null,null,null,null,null,null,null,null,null,null,null,null,null,null,null,null,null,null,null,null,null,null,null,null,null,null,null,null,"2 Entry, 1 Circ.",null,null,null,null,"A",null,1420,null,null,null,null,"B",null,9.1E-4,null,null,null,null,null,null,null,null,null,null,null,null,null,null,null,null,null,null,null,null,null,null,null,null,null,null,null,null,null,null,null,null,null,null,null,"No",0,null,null,null,null,null,{"$f":"CA73","v":"Yes"},null,{"$f":"CY20","v":"Yes"},null,null,{"$f":"BO32","v":"Yes"},null,{"$f":"DL63","v":"No"}]
[null,null,null,null,null,null,null,null,null,null,null,null,null,null,null,null,null,null,null,null,null,null,null,null,null,null,null,null,null,null,null,null,null,null,null,null,null,null,null,null,null,null,null,null,null,null,null,null,null,null,null,null,null,null,null,null,null,null,null,null,null,null,null,null,null,null,null,null,null,null,null,null,null,null,null,null,null,null,null,null,null,null,null,null,null,null,null,null,null,null,null,null,null,null,null,null,null,null,null,null,null,null,null,null,null,null,null,null,null,null,null,null,null,null,null,null,null,null,null,null,null,null,null,null,null,null,null,null,null,null,null,null,"Yes",1]
[null,null,null,null,null,null,null,null,null,null,null,null,null,null,null,null,null,null,null,null,null,null,null,null,null,null,null,null,null,null,null,null,null,null,null,null,null,null,null,null,null,null,null,null,null,null,"Lane 1",null,null,null,{"$f":"CT29","v":9.4948727687048984E-2},null,null,null,"V/C",null,null,null,null,null,null,null,null,null,null,null,null,null,null,null,null,null,null,null,null,null,null,null,null,null,null,null,null,null,null,null,null,null,null,null,null,null,null,null,null,null,null,null,null,null,null,null,null,null,null,null,null,null,null,null,null,null,null,null,null,null,null,{"$f":"VLOOKUP(WB_LaneDesig,WB_1x2_lanedesignate,2,FALSE)","v":"L,TR"},null,{"$f":"DL34/(DL34+DL37+DL40+DL43)","v":0}]
[null,null,"Lane 1",null,null,null,{"$f":"BV39","v":0.76228450803330594},null,null,null,"V/C",null,null,null,null,null,null,null,null,null,null,null,null,null,null,null,null,null,null,null,null,null,null,null,null,null,null,null,null,null,null,null,null,null,null,null,null,null,null,null,null,null,null,null,null,null,null,null,null,null,null,null,null,null,null,null,null,null,null,null,null,null,null,null,null,null,null,null,null,null,null,null,null,null,null,null,null,{"$f":"IF(WB_1x2_slipON=\"No\",\"n/a\",IF(AND(WB_1x2_slipON=\"Yes\",WB_1x2_slipType=2),0,CU20/CP20))","v":0.51314945477870433},"V/C RATIO",{"$f":"IF(WB_1x2_slipON=\"No\",\"n/a\",$CB$24+$BS$58+$DJ$76)","v":560},"pc/h","conflicting with",null,{"$f":"IF(WB_1x2_slipON=\"No\",\"n/a\",IF(WB_1x2_slipType=2,\"large\",ROUND(FHV_WB*WB_fped_SL*CR20,1)))","v":779.5},"veh/h",{"$f":"IF(WB_1x2_slipON=\"No\",\"n/a\",IF(WB_1x2_slipType=0,CL13*EXP(-CS13*SB_1x2_Leg_ExitFlow),IF(WB_1x2_slipType=1,CL15*EXP(-CS15*SB_1x2_Leg_ExitFlow),\"large\")))","v":779.48915696025563},"pc/h","capacity",{"$f":"IF(WB_1x2_slipON=\"No\",\"n/a\",ROUND(FHV_WB*WB_fped_SL*CW20,1))","v":400},"veh/h",{"$f":"IF(WB_1x2_slipON=\"Yes\",WBR_Master,\"n/a\")","v":400},"pc/h","Yes",null,null,null,null,null,"Right-turn Bypass Lane",null,null,null,null,{"$f":"DL34","v":0}]
[null,null,null,null,null,null,null,null,null,null,null,null,null,null,null,null,null,null,null,null,null,null,null,null,null,null,null,null,null,null,null,null,null,null,null,null,null,null,null,null,null,null,null,null,null,null,null,null,null,null,{"$f":"ROUND(3600/CY35+900*0.25*(CT29-1+SQRT((CT29-1)^2+((3600/CY35)*CT29)/(450*0.25)))+(5*(MIN(CT29,1))),1)","v":8},null,null,null,"d, s/veh"]
[null,null,null,null,null,null,{"$f":"ROUND(3600/CF34+900*0.25*(BV39-1+SQRT((BV39-1)^2+((3600/CF34)*BV39)/(450*0.25)))+(5*(MIN(BV39,1))),1)","v":20.2},null,null,null,"d, s/veh",null,null,null,null,null,null,null,null,null,null,null,null,null,null,null,null,null,null,null,null,null,null,null,null,null,null,null,null,null,null,null,null,null,null,null,null,null,null,null,null,null,null,null,null,null,null,null,null,null,null,null,null,null,null,null,null,null,null,null,null,null,null,null,null,null,null,null,null,null,null,null,null,null,null,null,null,null,null,null,null,null,null,null,null,null,null,null,null,null,null,null,"Type1a (yielding)",null,null,null,null,null,null,null,null,null,null,null,null,null,null,null,null,null,null,null,null,null,null,null,null,null,null,null,null,null,"Slip Approach vol"]
[null,null,null,null,null,null,null,null,null,null,null,null,null,null,null,null,null,null,null,null,null,null,null,null,null,null,null,null,null,null,null,null,null,null,null,null,null,null,null,null,null,null,null,null,null,null,null,null,null,null,{"$f":"IF(AY19<=1,VLOOKUP(AY21,LOS,2,TRUE),\"F\")","v":"A"},null,null,null,"LOS",null,null,null,null,null,null,null,null,null,null,null,null,null,null,null,"pc/h",null,null,"pc/h",null,null,"pc/h",null,null,"pc/h",null,null,null,null,null,null,null,null,null,null,null,null,null,null,null,null,null,null,null,null,null,null,null,null,null,null,null,null,null,null,null,{"$f":"DA26-DJ20","v":20},null,null,null,null,null,"Roundabout Entry Lane Discipline",null,"Right turn to Total Flow Ratio",null,null,null,null,null,null,null,null,null,null,null,null,{"$f":"IF(EB_1x2_slipON=\"No\",0,CJ73)","v":150}]
[null,null,null,null,null,null,{"$f":"IF(G20<=1,VLOOKUP(G22,LOS,2,TRUE),\"F\")","v":"C"},null,null,null,"LOS",null,null,null,null,null,null,null,null,null,null,null,null,null,null,null,null,null,null,null,null,null,null,null,null,null,null,null,null,null,null,null,null,null,null,null,null,null,null,null,null,null,null,null,null,null,null,null,null,null,null,null,null,null,null,null,null,null,null,null,{"$f":"IF(SB_1x2_slipON=\"No\",SBR_Master,0)","v":0},null,null,{"$f":"SBT_Master","v":300},null,null,{"$f":"SBL_Master","v":350},null,null,{"$f":"SBU_Master","v":0},null,null,null,null,null,null,null,null,null,null,null,null,null,null,null,null,null,null,null,null,null,null,null,null,null,null,null,null,null,null,null,null,null,null,null,null,null,null,null,null,null,null,null,null,null,null,null,null,null,null,null,null,{"$f":"IF(WB_1x2_slipON=\"No\",0,CU20)","v":400}]
[null,null,null,null,null,null,null,null,null,null,null,null,null,null,null,null,null,null,null,null,null,null,null,null,null,null,null,null,null,null,null,null,null,null,null,null,null,null,null,null,null,null,null,null,null,null,null,null,null,null,{"$f":"ROUNDUP(900*0.25*(CT29-1+SQRT((CT29-1)^2+((3600/CY35)*CT29)/(150*0.25)))*(CY35/3600),0)","v":1},null,null,null,"Q95, veh",null,null,null,null,null,null,null,null,null,null,null,null,null,null,null,null,null,null,null,null,null,null,null,null,null,null,null,null,null,null,null,null,null,null,null,null,null,null,null,null,null,null,null,null,null,null,null,null,null,null,null,null,null,null,null,null,null,null,null,null,null,null,null,null,null,null,null,null,null,null,null,null,null,null,null,null,null,{"$f":"IF(NB_1x2_slipON=\"No\",0,DL59)","v":0}]
[null,null,null,null,null,null,{"$f":"ROUNDUP(900*0.25*(BV39-1+SQRT((BV39-1)^2+((3600/CF34)*BV39)/(150*0.25)))*(CF34/3600),0)","v":8},null,null,null,"Q95, veh",null,null,null,null,null,null,null,null,null,null,null,null,null,null,null,null,null,null,null,null,null,null,null,null,null,null,null,null,null,null,null,null,null,null,null,null,null,null,null,null,null,null,null,null,null,null,null,null,null,null,null,null,null,null,null,null,null,null,null,null,null,null,null,null,null,null,null,null,null,null,null,null,null,null,null,null,null,null,null,null,null,null,null,null,2,null,{"$f":"CY26/DA35","v":3.7979491074819599E-2},null,"V/C RATIO",null,null,{"$f":"ROUND(FHV_WB*DA26,1)","v":20},"veh/h",{"$f":"SUM(DL34:DL45)-DA29","v":20},"pc/h",null,null,null,null,null,null,null,null,null,null,null,null,null,null,null,null,null,null,null,null,null,null,null,null,null,null,{"$f":"IF(SB_1x2_slipON=\"No\",0,BO39)","v":200}]
[null,null,null,null,null,null,null,null,null,null,null,null,null,null,null,null,null,null,null,null,null,null,null,null,null,null,null,null,null,null,null,null,null,null,null,null,null,null,null,null,null,null,null,null,null,null,"Lane 2",null,null,null,{"$f":"CT26","v":3.7979491074819599E-2},null,null,null,"V/C",null,null,null,null,null,null,null,null,null,null,null,null,null,null,null,null,null,null,null,null,null,null,null,null,null,null,null,null,null,null,null,null,null,null,null,null,null,null,null,null,null,null,null,null,null,null,null,null,null,null,null,null,null,null,null,null,{"$f":"DA29-DJ30","v":0}]
[null,null,"Right-turn Bypass",null,null,null,{"$f":"IF(SB_1x2_slipON=\"NO\",\"n/a\",IF(AND(SB_1x2_slipON=\"Yes\",SB_slipType=2),0,BO50))","v":0},null,null,null,"V/C",null,null,null,null,null,null,null,null,null,null,null,null,null,null,null,null,null,null,null,null,null,null,null,null,null,null,null,null,null,null,null,null,null,null,null,null,null,null,null,null,null,null,null,null,null,null,null,null,null,null,null,null,null,null,null,"Right-turn Bypass Lane",null,null,null,null,null,null,null,null,null,null,"Conflicting flow"]
[null,null,null,null,null,null,null,null,null,null,null,null,null,null,null,null,null,null,null,null,null,null,null,null,null,null,null,null,null,null,null,null,null,null,null,null,null,null,null,null,null,null,null,null,null,null,null,null,null,null,{"$f":"ROUND(3600/DA35+900*0.25*(CT26-1+SQRT((CT26-1)^2+((3600/DA35)*CT26)/(450*0.25)))+(5*(MIN(CT26,1))),1)","v":7.3},null,null,null,"d, s/veh",null,null,null,null,null,null,null,null,null,null,null,null,null,null,null,null,null,null,null,null,null,null,{"$f":"DH23","v":20},null,null,null,null,null,null,null,null,null,null,null,null,null,null,null,null,null,1,null,{"$f":"CY29/CY35","v":9.4948727687048984E-2},null,"V/C RATIO",null,null,{"$f":"ROUND(FHV_WB*DA29,1)","v":50},"veh/h",{"$f":"VLOOKUP(DN19,WB_1x2_LeftLane_VolProp,3,FALSE)","v":50},"pc/h",null,null,null,null,null,null,null,null,null,null,null,null,null,null,null,null,null,null,null,null,null,null,null,null,null,null,"EB_LeftlaneVolProp"]
[null,null,null,null,null,null,{"$f":"IF(SB_1x2_slipON=\"NO\",\"n/a\",IF(AND(SB_1x2_slipON=\"Yes\",SB_1x2_slipType=2),0,ROUND(3600/BO44+900*0.25*(BO50-1+SQRT((BO50-1)^2+((3600/BO44)*BO50)/(450*0.25)))+(5*(MIN(BO50,1))),1)))","v":7.4},null,null,null,"d, s/veh",null,null,null,null,null,null,null,null,null,null,null,null,null,null,null,null,null,null,null,null,null,null,null,null,null,null,null,null,null,null,null,null,null,null,null,null,null,null,null,null,null,null,null,null,null,null,null,null,null,null,null,null,null,null,null,null,null,null,null,null,null,null,null,null,null,null,null,null,null,null,null,null,null,null,null,null,null,null,null,null,null,null,null,null,null,null,null,null,null,null,null,null,null,null,null,null,null,null,null,null,null,null,{"$f":"DL40+DL43","v":50},null,null,null,null,null,null,null,null,null,null,null,null,null,null,null,null,null,null,"L,TR",null,{"$f":"$BS$55+$BS$58","v":50}]
[null,null,null,null,null,null,null,null,null,null,null,null,null,null,null,null,null,null,null,null,null,null,null,null,null,null,null,null,null,null,null,null,null,null,null,null,null,null,null,null,null,null,null,null,null,null,null,null,null,null,{"$f":"IF(AY27<=1,VLOOKUP(AY29,LOS,2,TRUE),\"F\")","v":"A"},null,null,null,"LOS",null,null,null,null,null,null,null,null,null,null,null,null,null,null,null,null,null,null,null,null,null,null,{"$f":"DH27+DJ30+DD76+DG76+BS55","v":580},null,null,null,null,null,null,null,null,null,null,null,null,null,null,null,null,null,null,null,null,null,null,null,null,null,null,null,null,null,null,null,null,null,null,null,null,null,null,null,null,null,null,null,null,null,null,null,null,null,null,null,null,null,null,"LT,R",null,{"$f":"$BS$55+$BS$58+$BS$61","v":80}]
[null,null,null,null,null,null,{"$f":"IF(SB_1x2_slipON=\"Yes\",VLOOKUP(G30,LOS,2,TRUE),\"n/a\")","v":"A"},null,null,null,"LOS",null,null,null,null,null,null,null,null,null,null,null,null,null,null,null,null,null,null,null,null,null,null,null,null,null,null,null,null,null,null,null,null,null,null,null,null,null,null,null,null,null,null,null,null,null,null,null,null,null,null,null,null,null,null,null,"Yes",null,null,null,null,null,null,"pc/h",null,null,null,null,null,null,null,null,null,null,null,null,null,null,null,null,null,null,null,null,null,null,null,null,null,null,null,null,null,null,null,null,null,null,null,null,null,null,null,null,null,null,null,null,null,null,null,null,null,null,null,null,null,null,null,null,null,null,"LT,TR",null,{"$f":"0.47*SUM($BS$55:$BS$66)","v":37.599999999999994}]
[null,null,null,null,null,null,null,null,null,null,null,null,null,null,null,null,null,null,null,null,null,null,null,null,null,null,null,null,null,null,null,null,null,null,null,null,null,null,null,null,null,null,null,null,null,null,null,null,null,null,{"$f":"ROUNDUP(900*0.25*(CT26-1+SQRT((CT26-1)^2+((3600/DA35)*CT26)/(150*0.25)))*(DA35/3600),0)","v":1},null,null,null,"Q95, veh",null,null,null,null,null,null,null,null,null,null,null,null,null,null,null,null,null,null,{"$f":"BS24+BV24+BY24+CB24","v":650},null,null,null,"Lane Cap.",null,null,null,"pc/h",null,"veh/h",null,null,null,null,null,null,null,null,null,null,null,null,null,null,null,null,null,null,{"$f":"$CL$17*EXP(-$CS$17*DD37)","v":526.6373391242513},null,{"$f":"$CL$17*EXP(-$CS$17*DD37)","v":526.6373391242513},null,"pc/h",null,null,"Conflicting flow",null,null,null,null,null,null,null,null,null,null,null,null,null,null,null,null,null,null,null,null,null,null,"L,LTR",null,{"$f":"0.53*SUM($BS$55:$BS$66)","v":42.400000000000006}]
[null,null,null,null,null,null,{"$f":"IF(SB_1x2_slipON=\"NO\",\"n/a\",IF(AND(SB_1x2_slipON=\"yes\",SB_1x2_slipType=2),0,ROUNDUP(900*0.25*(BO50-1+SQRT((BO50-1)^2+((3600/BO44)*BO50)/(150*0.25)))*(BO44/3600),0)))","v":2},null,null,null,"Q95, veh",null,null,null,null,null,null,null,null,null,null,null,null,null,null,null,null,null,null,null,null,null,null,null,null,null,null,null,null,null,null,null,null,null,null,null,null,null,null,null,null,null,null,null,null,null,null,null,null,null,null,null,null,null,null,null,"Type1a (yielding)",null,null,null,null,null,null,"veh/h",null,null,null,1,null,null,null,{"$f":"$CL$11*EXP(-$CS$11*(BZ31+BZ29))","v":852.70372191341755},null,{"$f":"ROUND(FHV_SB*SB_fped_SL*CD34,1)","v":852.7},null,null,null,null,null,null,null,null,null,null,null,null,null,null,null,null,null,null,null,null,null,null,null,null,null,null,null,null,null,null,null,{"$f":"IF(WB_1x2_slipON=\"No\",WBR_Master,0)","v":0},"pc/h",null,null,null,null,null,null,null,null,null,null,null,null,null,null,null,"LTR,R",null,{"$f":"0.47*SUM($BS$55:$BS$66)","v":37.599999999999994}]
[null,null,null,null,null,null,null,null,null,null,null,null,null,null,null,null,null,null,null,null,null,null,null,null,null,null,null,null,null,null,null,null,null,null,null,null,null,null,null,null,null,null,null,null,null,null,"Right-turn Bypass",null,null,null,{"$f":"IF(WB_1x2_slipON=\"NO\",\"n/a\",IF(AND(WB_1x2_slipON=\"Yes\",WB_1x2_slipType=2),0,CJ20))","v":0.51314945477870433},null,null,null,"V/C",null,null,null,null,null,null,null,null,null,null,null,null,null,null,null,null,null,null,{"$f":"ROUND(FHV_SB*BV33,1)","v":650},null,null,null,null,null,null,null,null,null,null,null,null,null,null,null,null,null,null,null,null,null,null,null,null,null,null,null,null,{"$f":"ROUND(FHV_WB*WB_fped_ML*CY33,1)","v":526.6},null,{"$f":"ROUND(FHV_WB*WB_fped_ML*DA33,1)","v":526.6},null,"veh/h"]
[null,null,"Approach delay, s/veh",null,null,null,null,null,null,null,{"$f":"IF(SB_1x2_slipON=\"Yes\",(G22*BV35+G30*BO39)/(BV35+BO39),G22)","v":17.188235294117646},null,null,null,null,null,null,null,null,null,null,null,null,null,null,null,null,null,null,null,null,null,null,null,null,null,null,null,null,null,null,null,null,null,null,null,null,null,null,null,null,null,null,null,null,null,null,null,null,null,null,null,null,null,null,null,"pc/h",null,null,null,null,null,null,"V/C RATIO"]
[null,null,null,null,null,null,null,null,null,null,null,null,null,null,null,null,null,null,null,null,null,null,null,null,null,null,null,null,null,null,null,null,null,null,null,null,null,null,null,null,null,null,null,null,null,null,null,null,null,null,{"$f":"IF(WB_1x2_slipON=\"NO\",\"n/a\",IF(AND(WB_1x2_slipON=\"Yes\",WB_1x2_slipType=2),0,ROUND(3600/CP20+900*0.25*(CJ20-1+SQRT((CJ20-1)^2+((3600/CP20)*CJ20)/(450*0.25)))+(5*(MIN(CJ20,1))),1)))","v":11.9},null,null,null,"d, s/veh",null,null,null,null,null,null,null,null,null,null,null,{"$f":"IF(SB_1x2_slipON=\"Yes\",SBR_Master,\"n/a\")","v":200},null,null,null,null,null,null,null,null,null,null,null,null,null,null,null,null,null,null,null,null,null,null,null,null,null,null,null,null,null,null,null,null,null,null,null,1,null,2,null,"Lane Cap.",{"$f":"BT68+DD76+DG76+DJ76+CB24","v":1090},null,null,null,null,null,null,null,{"$f":"WBT_Master","v":20},"pc/h",null,null,null,null,null,null,null,null,null,null,null,null,null,null,null,"WB_leftlaneVolProp"]
[null,null,null,null,null,null,null,null,null,null,null,null,null,null,null,null,null,null,null,null,null,null,null,null,null,null,null,null,null,null,null,null,null,null,null,null,null,null,null,null,null,null,null,null,null,null,null,null,null,null,null,null,null,null,null,null,null,null,null,null,null,null,null,null,null,null,"veh/h",null,null,null,null,null,null,null,null,null,null,null,null,null,null,null,null,null,null,null,null,null,null,null,null,null,null,null,null,null,null,null,null,null,null,null,null,null,null,null,null,null,null,null,null,null,null,null,null,null,null,null,null,null,null,null,null,null,null,null,null,null,null,null,null,null,"L,TR",null,{"$f":"$DL$43+$DL$40","v":50}]
[null,null,null,null,null,null,null,null,null,null,null,null,null,null,null,null,null,null,null,null,null,null,null,null,null,null,null,null,null,null,null,null,null,null,null,null,null,null,null,null,null,null,null,null,null,null,null,null,null,null,{"$f":"IF(WB_1x2_slipON=\"Yes\",VLOOKUP(AY37,LOS,2,TRUE),\"n/a\")","v":"B"},null,null,null,"LOS",null,null,null,null,null,null,null,null,null,null,null,{"$f":"IF(SB_1x2_slipON=\"No\",\"n/a\",ROUND(FHV_SB*SB_fped_SL*BO37,1))","v":200},null,null,null,null,null,null,{"$f":"BV35/CF34","v":0.76228450803330594},null,null,null,null,null,null,null,null,null,null,null,null,null,null,null,null,null,null,null,null,null,null,null,null,null,null,null,null,null,null,null,null,null,null,null,null,null,null,null,null,null,null,null,null,null,null,null,null,null,null,null,null,null,null,null,null,null,null,"LT,R",null,{"$f":"$DL$43+$DL$40+$DL$37","v":70}]
[null,null,null,null,null,null,null,null,null,null,null,null,null,null,null,null,null,null,null,null,null,null,null,null,null,null,null,null,null,null,null,null,null,null,null,null,null,null,null,null,null,null,null,null,null,null,null,null,null,null,null,null,null,null,null,null,null,null,null,null,null,null,null,null,null,null,"capacity",null,null,null,null,null,null,null,null,null,null,null,null,null,null,null,null,null,null,null,null,null,null,null,null,null,null,null,null,null,null,null,null,null,null,null,null,null,null,null,null,null,null,null,null,null,null,null,null,{"$f":"WBL_Master","v":50},"pc/h",null,null,null,null,null,null,null,null,null,null,null,null,null,null,null,"LT,TR",null,{"$f":"0.47*SUM(DL34:DL45)","v":32.9}]
[null,null,null,null,null,null,null,null,null,null,null,null,null,null,null,null,null,null,null,null,null,null,null,null,null,null,null,null,null,null,null,null,null,null,null,null,null,null,null,null,null,null,null,null,null,"`",null,null,null,null,{"$f":"IF(WB_1x2_slipON=\"NO\",\"n/a\",IF(AND(WB_1x2_slipON=\"yes\",WB_1x2_slipType=2),0,ROUNDUP(900*0.25*(CJ20-1+SQRT((CJ20-1)^2+((3600/CP20)*CJ20)/(150*0.25)))*(CP20/3600),0)))","v":3},null,null,null,"Q95, veh",null,null,null,null,null,null,null,null,null,null,null,"pc/h",null,null,null,null,null,null,1,null,null,null,null,null,null,null,null,null,null,null,null,null,null,null,null,null,null,null,null,null,null,null,null,null,null,null,null,null,null,null,null,null,null,null,null,null,null,null,null,null,null,null,null,null,null,null,null,null,null,null,null,null,null,null,null,null,null,"L,LTR",null,{"$f":"0.53*SUM(DL34:DL45)","v":37.1}]
[null,null,null,null,null,null,null,null,null,null,null,null,null,null,null,null,null,null,null,null,null,null,null,null,null,null,null,null,null,null,null,null,null,null,null,null,null,null,null,null,null,null,null,null,null,null,null,null,null,null,null,null,null,null,null,null,null,null,null,null,null,null,null,null,null,null,{"$f":"IF(SB_1x2_slipON=\"No\",\"n/a\",IF(SB_1x2_slipType=0,$CL$13*EXP(-$CS$13*EB_1x2_Leg_ExitFlow),IF(SB_1x2_slipType=1,$CL$15*EXP(-$CS$15*EB_1x2_Leg_ExitFlow),\"large\")))","v":787.48063360616197},null,null,null,null,null,null,null,null,null,null,null,null,null,null,null,null,null,null,null,null,null,null,null,null,null,null,null,null,null,null,null,null,null,null,null,null,null,null,null,null,null,null,null,null,null,null,null,null,null,null,null,null,null,null,null,null,null,null,null,null,null,null,null,null,null,"LTR,R",null,{"$f":"0.47*SUM(DL34:DL45)","v":32.9}]
[null,null,null,null,null,null,null,null,null,null,null,null,null,null,null,null,null,null,null,null,null,null,null,null,null,null,null,null,null,null,null,null,null,null,null,null,null,null,null,null,null,null,null,null,null,null,"Approach delay, s/veh",null,null,null,null,null,null,null,{"$f":"IF(WB_1x2_slipON=\"Yes\",(AY21*CY29+AY29*CY26+AY37*CU20)/(CY29+CY26+CU20),(AY21*CY29+AY29*CY26)/(CY26+CY29))","v":11.28936170212766},null,null,null,null,null,null,null,null,null,null,null,"veh/h",null,null,null,null,null,null,null,null,null,null,null,null,null,null,null,null,null,null,null,null,null,null,null,null,null,null,null,null,null,null,null,null,null,null,null,null,null,null,null,null,null,null,null,null,null,null,null,null,{"$f":"WBU_Master","v":0},"pc/h"]
[null,null,null,null,null,null,null,null,null,null,null,null,null,null,null,null,null,null,null,null,null,null,null,null,null,null,null,null,null,null,null,null,null,null,null,null,null,null,null,null,null,null,null,null,null,null,null,null,null,null,null,null,null,null,null,null,null,null,null,null,null,null,null,null,null,null,{"$f":"IF(SB_1x2_slipON=\"no\",\"n/a\",IF(SB_1x2_slipType=2,\"large\",ROUND(FHV_SB*SB_fped_SL*BO42,1)))","v":787.5}]
[null,null,null,null,null,null,null,null,null,null,null,null,null,null,null,null,null,null,null,null,null,null,null,null,null,null,null,null,null,null,null,null,null,null,null,null,null,null,null,null,null,null,null,null,null,null,null,null,null,null,null,null,null,null,null,null,null,null,null,null,null,null,null,null,null,null,"conflicting with",null,null,null,null,null,null,null,null,null,null,null,null,null,null,null,null,null,null,null,null,null,null,null,null,null,null,null,null,null,null,null,null,null,null,null,null,null,null,null,null,null,null,null,null,null,null,null,null,null,null,null,null,null,null,null,null,null,null,null,null,null,null,null,null,null,"EB",null,"NB",null,"SB",null,"WB"]
[]
[null,null,null,null,null,null,null,null,null,null,null,null,null,null,null,null,null,null,null,null,null,null,null,null,null,null,null,null,null,null,null,null,null,null,null,null,null,null,null,null,null,null,null,null,null,null,null,null,null,null,null,null,null,null,null,null,null,null,null,null,null,null,null,null,null,null,"pc/h",null,null,null,null,null,null,null,null,null,null,null,null,null,null,null,null,null,null,null,null,null,null,null,null,null,null,null,null,null,null,null,null,null,null,null,null,null,null,null,null,null,null,null,null,null,null,null,null,null,null,null,null,null,null,null,null,null,null,null,null,null,null,null,null,null,"LT,TR",{"$f":"IF($BS$55+$BS$58>$BS$61+$BS$64,\"L,TR\",IF($BS$64>$BS$55+$BS$58+$BS$61,\"LT,R\",\"LT,TR\"))","v":"L,TR"},"LT,TR",{"$f":"IF(DD76+DG76>DJ76+DM76,\"L,TR\",IF(DM76>DD76+DG76+DJ76,\"LT,R\",\"LT,TR\"))","v":"L,TR"},"LT,TR",{"$f":"IF(CB24+BY24>BV24+BS24,\"L,TR\",IF(BS24>CB24+BY24+BV24,\"LT,R\",\"LT,TR\"))","v":"L,TR"},"LT,TR",{"$f":"IF($DL$43+$DL$40>$DL$37+$DL$34,\"L,TR\",IF($DL$34>$DL$43+$DL$40+$DL$37,\"LT,R\",\"LT,TR\"))","v":"L,TR"}]
[null,null,null,null,null,null,null,null,null,null,null,null,null,null,null,null,null,null,null,null,null,null,null,null,null,null,null,null,null,null,null,null,null,null,null,null,null,null,null,null,null,null,null,null,null,null,null,null,null,null,null,null,null,null,null,null,null,null,null,null,null,null,null,null,null,null,{"$f":"IF(SB_1x2_slipON=\"No\",\"n/a\",$BS$55+$DG$76+$DL$37)","v":550},null,null,null,null,null,null,null,null,null,null,null,null,null,null,null,null,null,null,null,null,null,null,null,null,null,null,null,null,null,null,null,null,null,null,null,null,null,null,null,null,null,null,null,null,null,null,null,null,{"$f":"IF(NB_1x2_slipON=\"No\",\"n/a\",IF(AND(NB_1x2_slipON=\"Yes\",NB_1x2_slipType=2),0,DL59/DL54))","v":"n/a"},null,null,null,null,null,null,null,null,null,null,null,null,null,null,null,null,"L,LTR",{"$f":"IF(BS61+BS64>BS55+BS58,\"L,TR\",\"L,LTR\")","v":"L,LTR"},"L,LTR",{"$f":"IF(DJ76+DM76>DD76+DG76,\"L,TR\",\"L,LTR\")","v":"L,LTR"},"L,LTR",{"$f":"IF(BV24+BS24>CB24+BY24,\"L,TR\",\"L,LTR\")","v":"L,LTR"},"L,LTR",{"$f":"IF(DL37+DL34>DL43+DL40,\"L,TR\",\"L,LTR\")","v":"L,LTR"}]
[null,null,null,null,null,null,null,null,null,null,null,null,null,null,null,null,null,null,null,null,null,null,null,null,null,null,null,null,null,null,null,null,null,null,null,null,null,null,null,null,null,null,null,null,null,null,null,null,null,null,null,null,null,null,null,null,null,null,null,null,null,null,null,null,null,null,"V/C RATIO",null,null,null,null,null,null,null,null,null,null,null,null,null,null,null,null,null,null,null,null,null,null,null,null,null,null,null,null,null,null,null,null,null,null,null,null,null,null,null,null,null,null,null,null,null,null,null,null,"V/C RATIO",null,null,null,null,null,null,null,null,null,null,null,null,null,null,null,null,"LTR,R",{"$f":"IF(BS55+BS58+BS61>BS64,\"LT,R\",\"LTR,R\")","v":"LT,R"},"LTR,R",{"$f":"IF(DD76+DG76+DJ76>DM76,\"LT,R\",\"LTR,R\")","v":"LT,R"},"LTR,R",{"$f":"IF(CB24+BY24+BV24>BS24,\"LT,R\",\"LTR,R\")","v":"LT,R"},"LTR,R",{"$f":"IF(DL43+DL40+DL37>DL34,\"LT,R\",\"LTR,R\")","v":"LT,R"}]
[null,null,"Predicted approach capacity",null,null,null,null,null,null,null,null,null,null,null,null,null,null,null,null,null,null,null,null,null,null,null,null,null,null,null,null,null,null,null,null,null,null,null,null,null,null,null,null,null,null,null,null,null,null,null,null,null,null,null,null,null,null,null,null,null,null,null,null,null,null,null,{"$f":"IF(SB_1x2_slipON=\"No\",\"n/a\",IF(AND(SB_1x2_slipON=\"Yes\",SB_1x2_slipType=2),0,BO39/BO44))","v":0.25396825396825395},null,null,null,null,null,null,null,null,null,null,null,null,null,null,null,null,null,null,null,null,null,null,null,null,null,null,null,null,null,null,null,null,null,null,null,null,null,null,null,null,null,null,null,null,null,null,null,null,{"$f":"IF(NB_slipON=\"No\",\"n/a\",$DL$43+$BY$24+$BS$61)","v":380},null,null,null,null,null,null,null,null,null,null,null,null,null,null,null,null,"Not Sure",{"$f":"IF($BS$55+$BS$58>$BS$61+$BS$64,\"L,TR\",IF($BS$64>$BS$55+$BS$58+$BS$61,\"LT,R\",\"LT,TR\"))","v":"L,TR"},null,null,null,null,"Not Sure",{"$f":"IF($DL$43+$DL$40>$DL$37+$DL$34,\"L,TR\",IF($DL$34>$DL$43+$DL$40+$DL$37,\"LT,R\",\"LT,TR\"))","v":"L,TR"}]
[null,null,null,null,null,null,null,null,null,null,null,null,null,null,null,null,null,null,null,null,null,null,null,null,null,null,null,null,null,null,null,null,null,null,null,null,null,null,null,null,null,null,null,null,null,null,null,null,null,null,null,null,null,null,null,null,null,null,null,null,null,null,null,null,null,null,null,null,null,null,null,null,null,null,null,null,null,null,null,null,null,null,null,null,null,null,null,null,null,null,null,null,null,null,null,null,null,null,null,null,null,null,null,null,null,null,null,null,null,null,null,null,null,null,null,"pc/h"]
[null,null,null,null,null,null,null,null,null,null,null,null,null,null,null,null,null,null,null,null,null,null,null,null,null,null,null,null,null,null,null,null,null,null,null,null,null,null,null,null,null,null,null,null,null,null,null,null,null,null,null,null,null,null,null,null,null,null,null,null,null,null,null,null,null,null,null,null,null,null,null,null,null,null,null,null,null,null,null,null,null,null,null,null,null,null,null,null,null,null,null,null,null,null,null,null,null,null,null,null,null,null,null,null,null,null,null,null,null,null,null,null,null,null,null,"conflicting with"]
[null,null,"Lane 1",null,null,null,{"$f":"CJ66","v":6.6577896138482029E-2},null,null,null,"V/C"]
[null,null,null,null,null,null,null,null,null,null,null,null,null,null,null,null,null,null,null,null,null,null,null,null,null,null,null,null,null,null,null,null,null,null,null,null,null,null,null,null,null,null,null,null,null,null,null,null,null,null,null,null,null,null,null,null,null,null,null,null,null,null,null,null,null,null,null,null,null,null,null,null,null,null,null,null,null,null,null,null,null,null,null,null,null,null,null,null,null,null,null,null,null,null,null,null,null,null,null,null,null,null,null,null,null,null,null,null,null,null,null,null,null,null,null,{"$f":"IF(NB_1x2_slipON=\"No\",\"n/a\",IF(NB_1x2_slipType=2,\"large\",ROUND(FHV_NB*NB_fped_SL*DL56,1)))","v":"n/a"}]
[null,null,null,null,null,null,{"$f":"ROUND(3600/CE63+900*0.25*(CJ66-1+SQRT((CJ66-1)^2+((3600/CE63)*CJ66)/(450*0.25)))+(5*(MIN(CJ66,1))),1)","v":5.5},null,null,null,"d, s/veh",null,null,null,null,null,null,null,null,null,null,null,null,null,null,null,null,null,null,null,null,null,null,null,null,null,null,null,null,null,null,null,null,null,{"$f":"+IF(AY59>1,1,0)","v":1},null,null,null,null,null,null,null,null,null,null,null,null,null,null,null,null,null,null,null,null,null,null,null,null,"pc/h",{"$f":"EBU_Master","v":0},null,null,null,null,null,null,null,null,null,null,null,null,null,null,null,null,null,null,null,null,null,null,null,null,null,null,null,null,null,null,null,null,null,null,null,null,null,null,null,null,null,null,null,null,"veh/h",null,null,null,null,null,null,null,null,null,null,null,null,null,null,null,null,"*NOTE"]
[null,null,null,null,null,null,null,null,null,null,null,null,null,null,null,null,null,null,null,null,null,null,null,null,null,null,null,null,null,null,null,null,null,null,null,null,null,null,null,null,null,null,null,null,null,null,"Predicted approach capacity",null,null,null,null,null,null,null,null,null,null,null,null,null,null,null,null,null,null,null,null,null,null,null,null,null,null,null,null,null,"Conflicting flow",{"$f":"DJ30+CB24+BY24+BV24+DD76","v":700},null,"Lane Cap.",2,null,1,null,null,null,null,null,null,null,null,null,null,null,null,null,null,null,null,null,null,null,null,null,null,null,null,null,null,null,null,1,null,null,null,{"$f":"IF(NB_1x2_slipON=\"No\",\"n/a\",IF(NB_1x2_slipType=0,CL13*EXP(-CS13*WB_1x2_Leg_ExitFlow),IF(NB_1x2_slipType=1,CL15*EXP(-CS15*WB_1x2_Leg_ExitFlow),\"large\")))","v":"n/a"},null,null,null,null,null,null,null,null,null,null,null,null,null,null,null,null,"\"Note Sure\"==LT,TR"]
[null,null,null,null,null,null,{"$f":"IF(G53<=1,VLOOKUP(G55,LOS,2,TRUE),\"F\")","v":"A"},null,null,null,"LOS",null,null,null,null,null,null,null,null,null,null,null,null,null,null,null,null,null,null,null,null,null,null,null,null,null,null,null,null,null,null,null,null,null,null,null,null,null,null,null,null,null,null,null,null,null,null,null,null,null,null,null,null,null,null,null,null,null,null,null,null,null,null,null,null,null,null,null,null,null,null,null,null,null,null,null,null,null,null,null,null,null,null,null,null,null,null,null,null,null,null,null,null,null,null,null,null,null,null,null,null,null,null,null,null,"pc/h"]
[null,null,null,null,null,null,null,null,null,null,null,null,null,null,null,null,null,null,null,null,null,null,null,null,null,null,null,null,null,null,null,null,null,null,null,null,null,null,null,null,null,null,null,null,null,null,null,null,null,null,null,null,null,null,null,null,null,null,null,null,null,null,null,null,null,null,null,null,null,"pc/h",{"$f":"EBL_Master","v":50},null,null,null,null,null,null,null,null,null,null,null,null,null,null,null,null,null,null,null,null,null,null,null,null,null,null,null,null,null,null,null,null,null,null,null,null,null,null,null,null,{"$f":"DH63/DE63","v":1.065665279610271},null,null,null,"capacity"]
[null,null,null,null,null,null,{"$f":"ROUNDUP(900*0.25*(CJ66-1+SQRT((CJ66-1)^2+((3600/CE63)*CJ66)/(150*0.25)))*(CE63/3600),0)","v":1},null,null,null,"Q95, veh",null,null,null,null,null,null,null,null,null,null,null,null,null,null,null,null,null,null,null,null,null,null,null,null,null,null,null,null,null,null,null,null,null,null,null,"Lane 1",null,null,null,{"$f":"DH58","v":1.065665279610271},null,null,null,"V/C",null,null,null,null,null,null,null,null,null,null,null,null,null,null,null,null,null,null,null,null,null,null,null,null,null,null,null,null,null,null,null,null,null,null,null,null,null,null,null,null,null,null,null,null,null,null,null,null,null,null,null,null,null,null,null,null,null,null,null,null,{"$f":"IF(NB_1x2_slipON=\"No\",\"n/a\",ROUND(FHV_NB*NB_fped_SL*DL61,1))","v":"n/a"}]
[null,null,null,null,null,null,null,null,null,null,null,null,null,null,null,null,null,null,null,null,null,null,null,null,null,null,null,null,null,null,null,null,null,null,null,null,null,null,null,null,null,null,null,null,null,null,null,null,null,null,null,null,null,null,null,null,null,null,null,null,null,null,null,null,null,null,null,null,null,null,null,null,null,null,null,null,null,null,null,null,null,null,null,null,null,null,null,null,null,null,null,null,null,null,null,null,null,null,null,null,null,null,null,null,null,null,null,null,null,null,null,"V/C RATIO",null,null,null,"veh/h"]
[null,null,"Lane 2",null,null,null,{"$f":"CJ69","v":3.9946737683089213E-2},null,null,null,"V/C",null,null,null,null,null,null,null,null,null,null,null,null,null,null,null,null,null,null,null,null,null,null,null,null,null,null,null,null,null,null,null,null,null,null,null,null,null,null,null,{"$f":"ROUND(3600/DE63+900*0.25*(DH58-1+SQRT((DH58-1)^2+((3600/DE63)*DH58)/(450*0.25)))+(5*(MIN(DH58,1))),1)","v":67.8},null,null,null,"d, s/veh",null,null,null,null,null,null,null,null,null,null,null,null,null,null,"pc/h",{"$f":"EBT_Master","v":30},null,null,null,null,null,null,null,null,"pc/h",{"$f":"$CL$17*EXP(-$CS$17*BZ56)","v":751.00488063806915},null,{"$f":"$CL$17*EXP(-$CS$17*BZ56)","v":751.00488063806915},null,null,null,null,null,null,null,null,null,null,null,null,null,null,null,null,null,null,null,null,null,null,null,null,null,null,null,null,null,null,null,null,{"$f":"IF(NB_1x2_slipON=\"Yes\",NBR_Master,\"n/a\")","v":"n/a"}]
[null,null,null,null,null,null,null,null,null,null,null,null,null,null,null,null,null,null,null,null,null,null,null,null,null,null,null,null,null,null,null,null,null,null,null,null,null,null,null,null,null,null,null,null,null,null,null,null,null,null,null,null,null,null,null,null,null,null,null,null,null,null,null,null,null,null,null,null,null,null,null,null,null,null,null,null,null,null,null,null,null,null,null,null,null,null,null,null,null,null,null,null,null,null,null,null,null,null,null,null,null,null,null,null,null,null,null,null,null,null,null,null,null,null,null,"pc/h"]
[null,null,null,null,null,null,{"$f":"ROUND(3600/CC63+900*0.25*(CJ69-1+SQRT((CJ69-1)^2+((3600/CC63)*CJ69)/(450*0.25)))+(5*(MIN(CJ69,1))),1)","v":5.2},null,null,null,"d, s/veh",null,null,null,null,null,null,null,null,null,null,null,null,null,null,null,null,null,null,null,null,null,null,null,null,null,null,null,null,null,null,null,null,null,null,null,null,null,null,null,{"$f":"IF(AY59<=1,VLOOKUP(AY61,LOS,2,TRUE),\"F\")","v":"F"},null,null,null,"LOS",null,null,null,null,null,null,null,null,null,null,null,null,null,null,null,null,null,null,null,null,null,null,null,null,"veh/h",{"$f":"ROUND(FHV_EB*EB_fped_ML*CC61,1)","v":751},null,{"$f":"ROUND(FHV_EB*EB_fped_ML*CE61,1)","v":751},null,null,null,null,null,null,null,null,null,null,null,null,null,null,null,null,null,null,null,1,null,null,null,{"$f":"$CL$11*EXP(-$CS$11*(CY66+CY68))","v":985.26648782397808},null,{"$f":"ROUND(FHV_NB*NB_fped_SL*DC63,1)","v":985.3},null,null,{"$f":"ROUND(FHV_NB*DH65,1)","v":1050},null,null,null,"No"]
[null,null,null,null,null,null,null,null,null,null,null,null,null,null,null,null,null,null,null,null,null,null,null,null,null,null,null,null,null,null,null,null,null,null,null,null,null,null,null,null,null,null,null,null,null,null,null,null,null,null,null,null,null,null,null,null,null,null,null,null,null,null,null,null,null,null,null,null,null,"pc/h",{"$f":"IF(EB_1x2_slipON=\"No\",EBR_Master,0)","v":0},null,null,null,null,null,null,null,null,null,null,null,null,null,null,null,null,null,null,null,null,null,null,null,null,null,null,null,null,null,null,null,null,null,null,null,null,null,null,null,null,"veh/h"]
[null,null,null,null,null,null,{"$f":"IF(G61<=1,VLOOKUP(G63,LOS,2,TRUE),\"F\")","v":"A"},null,null,null,"LOS",null,null,null,null,null,null,null,null,null,null,null,null,null,null,null,null,null,null,null,null,null,null,null,null,null,null,null,null,null,null,null,null,null,null,null,null,null,null,null,{"$f":"ROUNDUP(900*0.25*(DH58-1+SQRT((DH58-1)^2+((3600/DE63)*DH58)/(150*0.25)))*(DE63/3600),0)","v":25},null,null,null,"Q95, veh",null,null,null,null,null,null,null,null,null,null,null,null,null,null,null,null,null,null,null,null,null,null,null,null,null,null,null,null,null,null,null,null,null,null,null,null,null,null,null,null,null,null,null,null,null,null,null,"Lane Cap.",null,null,null,"pc/h",null,"veh/h",null,null,{"$f":"DG76+DJ76+DM76+DD76","v":1050},null,null,null,"Type1b (yielding)"]
[null,null,null,null,null,null,null,null,null,null,null,null,null,null,null,null,null,null,null,null,null,null,null,null,null,null,null,null,null,null,null,null,null,null,null,null,null,null,null,null,null,null,null,null,null,null,null,null,null,null,null,null,null,null,null,null,null,null,null,null,null,null,null,null,null,null,null,null,null,null,null,null,null,null,null,null,null,null,null,null,"pc/h",{"$f":"VLOOKUP(BP78,EB_1x2_LeftLane_VolProp,3,FALSE)","v":50},"veh/h",{"$f":"ROUND(FHV_EB*CD66,1)","v":50},"V/C RATIO",null,null,{"$f":"CF66/CE63","v":6.6577896138482029E-2},null,1,null,null,null,null,null,null,null,null,null,null,null,null,{"$f":"BT68","v":50},null,null,null,null,null,null,null,null,"pc/h"]
[null,null,null,null,null,null,{"$f":"ROUNDUP(900*0.25*(CJ69-1+SQRT((CJ69-1)^2+((3600/CC63)*CJ69)/(150*0.25)))*(CC63/3600),0)","v":1},null,null,null,"Q95, veh",null,null,null,null,null,null,null,null,null,null,null,null,null,null,null,null,null,null,null,null,null,null,null,null,null,null,null,null,null,null,null,null,null,null,null,"Right-turn Bypass",null,null,null,{"$f":"IF(NB_1x2_slipON=\"NO\",\"n/a\",IF(AND(NB_1x2_slipON=\"Yes\",NB_1x2_slipType=2),0,DL48))","v":"n/a"},null,null,null,"V/C",null,null,null,null,null,null,null,null,null,null,null,null,null,null,null,null,null,null,null,null,null,null,null,null,null,null,null,null,null,null,null,null,null,null,null,null,null,null,null,null,null,null,null,null,null,null,null,null,null,null,null,null,null,null,null,null,null,null,null,null,"Right-turn Bypass Lane"]
[null,null,null,null,null,null,null,null,null,null,null,null,null,null,null,null,null,null,null,null,null,null,null,null,null,null,null,null,null,null,null,null,null,null,null,null,null,null,null,null,null,null,null,null,null,null,null,null,null,null,null,null,null,null,null,null,null,null,null,null,null,null,null,null,null,"Right turn to Total Flow Ratio",null,"Roundabout Entry Lane Discipline",null,null,null,{"$f":"BS58+BS55","v":50},null,null,null,null,null,null,null,null,null,null,null,null,null,null,null,null,null,null,null,null,null,null,null,null,null,null,null,null,null,null,{"$f":"BV75+BY24+DL43+BV71+CB24","v":380}]
[null,null,"Right-turn Bypass",null,null,null,{"$f":"IF(EB_1x2_slipON=\"NO\",\"n/a\",IF(AND(EB_1x2_slipON=\"Yes\",EB_1x2_slipType=2),0,CU73))","v":0.14223402237815286},null,null,null,"V/C",null,null,null,null,null,null,null,null,null,null,null,null,null,null,null,null,null,null,null,null,null,null,null,null,null,null,null,null,null,null,null,null,null,null,null,null,null,null,null,{"$f":"IF(NB_1x2_slipON=\"NO\",\"n/a\",IF(AND(NB_1x2_slipON=\"Yes\",NB_1x2_slipType=2),0,ROUND(3600/DL54+900*0.25*(DL48-1+SQRT((DL48-1)^2+((3600/DL54)*DL48)/(450*0.25)))+(5*(MIN(DL48,1))),1)))","v":"n/a"},null,null,null,"d, s/veh",null,null,null,null,null,null,null,null,null,null,null,null,null,null,null,null,null,null,null,null,null,null,null,null,null,"pc/h",{"$f":"SUM(BS55:BS66)-CD66","v":30},"veh/h",{"$f":"ROUND(FHV_EB*CD69,1)","v":30},"V/C RATIO",null,null,{"$f":"CF69/CC63","v":3.9946737683089213E-2},null,2]
[null,null,null,null,null,null,null,null,null,null,null,null,null,null,null,null,null,null,null,null,null,null,null,null,null,null,null,null,null,null,null,null,null,null,null,null,null,null,null,null,null,null,null,null,null,null,null,null,null,null,null,null,null,null,null,null,null,null,null,null,null,null,null,null,null,null,null,null,null,null,null,null,null,null,null,null,null,null,null,null,null,null,null,null,null,null,null,null,null,null,null,null,null,null,null,null,null,null,null,null,null,null,"Conflicting flow"]
[null,null,null,null,null,null,{"$f":"IF(EB_1x2_slipON=\"NO\",\"n/a\",IF(AND(EB_1x2_slipON=\"Yes\",EB_1x2_slipType=2),0,ROUND(3600/CO73+900*0.25*(CU73-1+SQRT((CU73-1)^2+((3600/CO73)*CU73)/(450*0.25)))+(5*(MIN(CU73,1))),1)))","v":4.7},null,null,null,"d, s/veh",null,null,null,null,null,null,null,null,null,null,null,null,null,null,null,null,null,null,null,null,null,null,null,null,null,null,null,null,null,null,null,null,null,null,null,null,null,null,null,{"$f":"IF(NB_1x2_slipON=\"Yes\",VLOOKUP(AY69,LOS,2,TRUE),\"n/a\")","v":"n/a"},null,null,null,"LOS",null,null,null,null,null,null,null,null,null,null,null,null,null,null,null,null,null,null,{"$f":"CD66-BT68","v":0}]
[]
[null,null,null,null,null,null,{"$f":"IF(EB_1x2_slipON=\"Yes\",VLOOKUP(G71,LOS,2,TRUE),\"n/a\")","v":"A"},null,null,null,"LOS",null,null,null,null,null,null,null,null,null,null,null,null,null,null,null,null,null,null,null,null,null,null,null,null,null,null,null,null,null,null,null,null,null,null,null,null,null,null,null,{"$f":"IF(NB_1x2_slipON=\"NO\",\"n/a\",IF(AND(NB_1x2_slipON=\"yes\",NB_1x2_slipType=2),0,ROUNDUP(900*0.25*(DL48-1+SQRT((DL48-1)^2+((3600/DL54)*DL48)/(150*0.25)))*(DL54/3600),0)))","v":"n/a"},null,null,null,"Q95, veh",null,null,null,null,null,null,null,null,null,null,null,null,null,null,null,null,null,null,null,null,null,"Right-turn Bypass Lane",null,"Yes",null,null,null,null,null,"pc/h",{"$f":"IF(EB_1x2_slipON=\"Yes\",EBR_Master,\"n/a\")","v":150},"veh/h",{"$f":"IF(EB_1x2_slipON=\"No\",\"n/a\",ROUND(CH73*FHV_EB*EB_fped_SL,1))","v":150},"capacity","pc/h",{"$f":"IF(EB_1x2_slipON=\"No\",\"n/a\",IF(EB_1x2_slipType=0,$CL$13*EXP(-$CS$13*NB_1x2_Leg_ExitFlow),IF(EB_1x2_slipType=1,$CL$15*EXP(-$CS$15*NB_1x2_Leg_ExitFlow),\"large\")))","v":1054.595068173511},"veh/h",{"$f":"IF(EB_1x2_slipON=\"No\",\"n/a\",IF(EB_1x2_slipType=2,\"large\",ROUND(FHV_EB*EB_fped_SL*CM73,1)))","v":1054.5999999999999},"conflicting with",null,"pc/h",{"$f":"IF(EB_1x2_slipON=\"No\",\"n/a\",($DL$40+$BV$24+$DD$76))","v":350},"V/C Ratio",{"$f":"IF(EB_1x2_slipON=\"No\",\"n/a\",IF(AND(EB_1x2_slipON=\"Yes\",EB_1x2_slipType=2),0,CJ73/CO73))","v":0.14223402237815286}]
[]
[null,null,null,null,null,null,{"$f":"IF(EB_1x2_slipON=\"NO\",\"n/a\",IF(AND(EB_1x2_slipON=\"yes\",EB_1x2_slipType=2),0,ROUNDUP(900*0.25*(CU73-1+SQRT((CU73-1)^2+((3600/CO73)*CU73)/(150*0.25)))*(CO73/3600),0)))","v":1},null,null,null,"Q95, veh",null,null,null,null,null,null,null,null,null,null,null,null,null,null,null,null,null,null,null,null,null,null,null,null,null,null,null,null,null,null,null,null,null,null,null,"Approach delay, s/veh",null,null,null,null,null,null,null,{"$f":"IF(NB_1x2_slipON=\"Yes\",(AY61*DH63+AY69*DL59)/(DH63+DL59),AY61)","v":67.8},null,null,null,null,null,null,null,null,null,null,null,null,null,null,null,null,null,null,{"$f":"CD69-BT78","v":30},null,null,null,null,"Type1b (yielding)"]
[null,null,null,null,null,null,null,null,null,null,null,null,null,null,null,null,null,null,null,null,null,null,null,null,null,null,null,null,null,null,null,null,null,null,null,null,null,null,null,null,null,null,null,null,null,null,null,null,null,null,null,null,null,null,null,null,null,null,null,null,null,null,null,null,null,null,null,null,null,null,null,null,null,null,null,null,null,null,null,null,null,null,null,null,null,null,null,null,null,null,null,null,null,null,null,null,null,null,null,null,null,null,null,null,null,null,null,{"$f":"NBU_Master","v":0},null,null,{"$f":"NBL_Master","v":530},null,null,{"$f":"NBT_Master","v":510},null,null,{"$f":"IF(NB_1x2_slipON=\"No\",NBR_Master,0)","v":10}]
[null,null,"Approach delay, s/veh",null,null,null,null,null,null,null,{"$f":"IF(EB_1x2_slipON=\"Yes\",(G55*CF66+G63*CF69+G71*CJ73)/(CF66+CF69+CJ73),(G55*CF66+G63*CF69)/(CF66+CF69))","v":4.9391304347826086},null,null,null,null,null,null,null,null,null,null,null,null,null,null,null,null,null,null,null,null,null,null,null,null,null,null,null,null,null,null,null,null,null,null,null,null,null,null,null,null,null,null,null,null,null,null,null,null,null,null,null,null,null,null,null,null,null,null,null,null,null,null,null,null,null,null,null,null,null,null,null,null,null,null,null,null,null,null,null,null,null,null,null,null,null,null,null,null,null,null,null,null,null,null,null,null,"pc/h",null,null,"pc/h",null,null,"pc/h",null,null,"pc/h"]
[null,null,null,null,null,null,null,null,null,null,null,null,null,null,null,null,null,null,null,null,null,null,null,null,null,null,null,null,null,null,null,null,null,null,null,null,null,null,null,null,null,null,null,null,null,null,null,null,null,null,null,null,null,null,null,null,null,null,null,null,null,null,null,null,null,{"$f":"BS64/(BS64+BS61+BS58+BS55)","v":0},null,{"$f":"VLOOKUP(EB_LaneDesig,EB_1x2_lanedesignate,2,FALSE)","v":"L,TR"},null,null,null,{"$f":"BS64","v":0}]

{"sheet":"2 NS x 1 EW Rndabt","index":5,"n_rows":77,"n_cols":147,"rows_kept":77,"cut":false,"hidden":false,"merged":[[76,46,78,53],[76,54,78,58],[65,4,72,7],[65,8,66,11],[65,12,66,16],[67,8,68,11],[67,12,68,16],[69,8,70,11],[69,12,70,16],[71,8,72,11],[71,12,72,16],[73,4,75,11],[73,12,75,16],[68,46,75,49],[68,50,69,53],[68,54,69,58],[70,50,71,53],[70,54,71,58],[72,50,73,53],[72,54,73,58],[74,50,75,53],[74,54,75,58],[43,5,45,12],[43,13,45,17],[27,45,34,48],[27,49,28,52],[27,53,28,57],[29,49,30,52],[29,53,30,57],[31,49,32,52],[31,53,32,57],[33,49,34,52],[33,53,34,57],[35,5,42,8],[35,9,36,12],[35,13,36,17],[37,9,38,12],[37,13,38,17],[39,9,40,12],[39,13,40,17],[41,9,42,12],[41,13,42,17],[27,5,34,8],[27,9,28,12],[27,13,28,17],[29,9,30,12],[29,13,30,17],[31,9,32,12],[31,13,32,17],[33,9,34,12],[7,2,8,9],[7,10,8,35],[9,2,10,9],[9,10,10,35],[11,2,12,9],[11,10,12,35],[19,9,20,12],[21,9,22,12],[19,5,26,8],[19,13,20,17],[33,13,34,17],[25,9,26,12],[21,13,22,17],[23,9,24,12],[23,13,24,17],[25,13,26,17],[16,5,18,17],[16,45,18,57],[9,36,10,53],[9,54,10,59],[11,36,12,53],[11,54,12,59],[10,79,11,82],[10,84,13,86],[10,87,13,89],[10,90,13,92],[15,69,16,71],[15,79,16,81],[15,84,15,86],[15,87,15,89],[15,90,15,92],[12,69,13,78],[14,84,14,86],[14,87,14,89],[14,90,14,92],[0,1,1,60],[2,1,3,60],[5,2,6,9],[5,10,6,35],[5,36,8,59],[12,115,13,119],[14,101,15,105],[14,106,15,107],[14,108,15,112],[14,113,15,114],[0,63,1,122],[2,63,3,122],[10,101,11,105],[10,106,11,107],[10,108,11,112],[10,113,11,114],[10,115,11,119],[10,69,11,78],[10,93,13,95],[14,115,15,119],[15,93,15,95],[12,79,13,82],[14,72,17,74],[14,76,17,78],[14,93,14,95],[12,101,13,105],[12,106,13,107],[18,72,19,74],[18,76,19,78],[21,72,24,74],[21,75,24,77],[21,79,21,86],[26,107,28,110],[26,105,28,105],[26,106,28,106],[27,79,28,82],[25,72,25,74],[25,75,25,77],[26,98,28,99],[25,79,26,82],[22,79,23,82],[22,83,23,86],[20,90,24,90],[20,91,24,91],[20,92,24,93],[12,108,13,112],[27,72,27,74],[27,83,28,84],[12,113,13,114],[27,114,29,114],[27,115,29,115],[27,116,29,119],[26,103,28,103],[26,104,28,104],[20,109,24,110],[32,103,33,104],[16,101,17,105],[16,106,17,107],[16,108,17,112],[16,113,17,114],[16,115,17,119],[30,105,31,105],[32,105,33,105],[26,100,28,102],[72,105,73,114],[72,115,73,118],[66,115,67,117],[64,108,65,110],[64,112,65,114],[49,107,50,109],[49,110,50,112],[54,98,55,101],[70,98,73,100],[70,101,73,103],[66,112,69,114],[68,98,68,100],[68,101,68,103],[70,105,71,114],[66,105,67,107],[66,108,69,110],[69,98,69,100],[69,101,69,103],[57,107,57,109],[57,110,57,112],[54,102,55,103],[56,102,57,103],[54,104,55,105],[55,107,55,109],[69,92,69,94],[69,95,69,97],[50,69,52,69],[50,70,52,70],[56,69,58,69],[56,70,58,70],[47,74,55,74],[47,75,51,76],[70,115,71,118],[57,80,59,80],[57,81,59,81],[57,82,59,84],[55,110,55,112],[47,107,48,109],[47,110,48,112],[59,98,60,101],[59,102,60,105],[57,74,59,77],[57,78,59,78],[51,107,53,109],[51,110,53,112],[68,92,68,94],[68,95,68,97],[61,88,65,89],[56,54,57,58],[58,50,59,53],[58,54,59,58],[19,45,26,48],[19,53,20,57],[21,49,22,52],[21,53,22,57],[23,49,24,52],[23,53,24,57],[25,49,26,52],[25,53,26,57],[35,45,37,52],[35,53,37,57],[19,49,20,52],[70,92,73,94],[56,65,58,68],[61,91,65,91],[61,98,61,105],[49,46,51,58],[57,79,59,79],[57,85,59,86],[57,87,59,88],[60,54,61,58],[62,54,63,58],[52,50,53,53],[54,50,55,53],[64,50,65,53],[64,54,65,58],[66,50,67,53],[66,54,67,58],[58,98,58,101],[58,102,58,103],[58,104,58,105],[70,95,73,97],[52,46,59,49],[52,54,53,58],[54,54,55,58],[56,50,57,53],[61,8,62,11],[61,12,62,16],[63,8,64,11],[63,12,64,16],[54,4,56,16],[60,46,67,49],[60,50,61,53],[62,50,63,53],[57,8,58,11],[57,4,64,7],[57,12,58,16],[59,8,60,11],[59,12,60,16],[21,65,24,70],[20,97,24,97],[20,98,24,98],[20,99,24,99],[20,100,24,100],[20,101,24,101],[20,102,24,102],[56,107,56,109],[56,110,56,112],[52,75,55,76],[47,77,51,78],[50,65,52,68],[47,80,51,81],[52,80,53,81],[54,80,55,81],[47,79,51,79],[53,65,55,68],[53,69,55,69],[53,70,55,70],[52,77,55,78],[47,65,49,68],[47,69,49,69],[47,70,49,70],[52,79,53,79],[24,79,24,82],[20,94,24,94],[20,95,24,95],[20,96,24,96],[24,83,24,84],[24,85,24,86],[20,88,24,88],[20,89,24,89],[26,96,28,97],[27,75,27,77],[28,72,28,74],[28,75,28,77],[25,83,26,84],[26,72,26,74],[26,75,26,77],[56,114,56,119],[34,105,38,105],[34,65,34,70],[35,65,35,70],[36,65,36,70],[37,65,37,70],[38,65,39,70],[29,65,29,70],[30,65,30,70],[31,65,31,70],[32,65,32,70],[33,65,33,70],[32,72,33,74],[32,75,33,77],[25,85,26,86],[27,85,28,86],[36,134,36,135],[36,136,36,137],[36,138,36,139],[61,79,65,79],[61,80,65,80],[61,81,65,81],[61,82,65,82],[61,83,65,83],[61,84,65,84],[61,85,65,85],[61,86,65,86],[61,87,65,87],[61,90,65,90],[54,79,55,79],[54,107,54,109],[54,110,54,112],[48,114,48,119],[49,114,49,119],[50,114,50,119],[51,114,51,119],[61,92,65,92],[61,93,65,93],[42,114,42,119],[43,114,43,119],[36,132,36,133],[40,65,40,70],[41,65,41,70],[42,65,42,70],[43,65,43,70],[44,114,44,119],[45,114,45,119],[46,114,47,119],[61,72,65,73],[60,114,61,119],[52,114,52,119],[53,114,53,119],[54,114,54,119],[56,104,57,105],[56,98,57,101],[58,107,61,109],[58,110,61,112],[34,106,38,107],[34,108,38,109],[36,114,38,114],[36,115,38,115],[30,110,38,110],[30,114,32,114],[30,115,32,115],[8,101,9,107],[8,108,9,119],[61,74,62,78],[63,74,65,78],[57,114,57,119],[58,114,59,119],[20,103,21,108],[22,103,24,108],[25,65,26,70],[27,65,28,70],[34,72,35,74],[34,75,35,77],[29,72,31,74],[29,75,31,77],[30,103,31,104],[33,115,35,115],[33,116,35,119],[30,106,33,107],[30,108,33,109],[36,116,38,119],[30,116,32,119],[33,114,35,114],[34,103,38,104],[55,114,55,119]]}
[null,"2 NS x 1 EW Lane Roundabout",null,null,null,null,null,null,null,null,null,null,null,null,null,null,null,null,null,null,null,null,null,null,null,null,null,null,null,null,null,null,null,null,null,null,null,null,null,null,null,null,null,null,null,null,null,null,null,null,null,null,null,null,null,null,null,null,null,null,null,null,null,"2 NS x 1 EW Lane Roundabout"]
[]
[null,"Results Sheet",null,null,null,null,null,null,null,null,null,null,null,null,null,null,null,null,null,null,null,null,null,null,null,null,null,null,null,null,null,null,null,null,null,null,null,null,null,null,null,null,null,null,null,null,null,null,null,null,null,null,null,null,null,null,null,null,null,null,null,null,null,"Design Sheet"]
[null,null,null,null,null,null,null,null,null,null,null,null,null,null,null,null,null,null,null,null,null,null,null,null,null,null,null,null,null,null,null,null,null,null,null,null,null,null,null,null,null,null,null,null,null,null,null,null,null,null,null,null,null,null,null,null,null,null,null,null,null,null,null,null,null,null,null,null,null,null,null,null,null,null,null,null,null,null,null,null,null,null,null,null,null,null,null,null,null,null,null,null,null,null,null,null,null,null,null,null,null,null,null,null,null,null,null,null,null,null,null,null,null,null,null,null,null,null,null,null,null,null,null,null,null,null,null,null,null,null,null,null,"SB_LeftlaneVolProp",null,null,null,null,null,null,null,null,"NB_leftlaneVolProp"]
[null,null,null,null,null,null,null,null,null,null,null,null,null,null,null,null,null,null,null,null,null,null,null,null,null,null,null,null,null,null,null,null,null,null,null,null,null,null,null,null,null,null,null,null,null,null,null,null,null,null,null,null,null,null,null,null,null,null,null,null,null,null,null,null,null,null,null,null,null,null,null,null,null,null,null,null,null,null,null,null,null,null,null,null,null,null,null,null,null,null,null,null,null,null,null,null,null,null,null,null,null,null,null,null,null,null,null,null,null,null,null,null,null,null,null,null,null,null,null,null,null,null,null,null,null,null,null,null,null,null,null,null,"L,TR",null,{"$f":"SUM(CM16:CR16)","v":350},null,null,null,null,null,null,"L,TR",null,{"$f":"SUM($CO$69:$CT$69)","v":530}]
[null,null,"Project Name:",null,null,null,null,null,null,null,{"$f":"P_Name","v":0},null,null,null,null,null,null,null,null,null,null,null,null,null,null,null,null,null,null,null,null,null,null,null,null,null,null,null,null,null,null,null,null,null,null,null,null,null,null,null,null,null,null,null,null,null,null,null,null,null,null,null,null,null,null,null,null,null,null,null,null,null,null,null,null,null,null,null,null,null,null,null,null,null,null,null,null,null,null,null,null,null,null,null,null,null,null,null,null,null,null,null,null,null,null,null,null,null,null,null,null,null,null,null,null,null,null,null,null,null,null,null,null,null,null,null,null,null,null,null,null,null,"LT,R",null,{"$f":"SUM(CJ16:CR16)","v":650},null,null,null,null,null,null,"LT,R",null,{"$f":"SUM($CO$69:$CW$69)","v":1040}]
[null,null,null,null,null,null,null,null,null,null,null,null,null,null,null,null,null,null,null,null,null,null,null,null,null,null,null,null,null,null,null,null,null,null,null,null,null,null,null,null,null,null,null,null,null,null,null,null,null,null,null,null,null,null,null,null,null,null,null,null,null,null,null,null,null,null,null,null,null,null,null,null,null,null,null,null,null,null,null,null,null,null,null,null,null,null,null,null,null,null,null,null,null,null,null,null,null,null,null,null,null,null,null,null,null,null,null,null,null,null,null,null,null,null,null,null,null,null,null,null,null,null,null,null,null,null,null,null,null,null,null,null,"LT,TR",null,{"$f":"0.47*SUM(CG16:CR16)","v":305.5},null,null,null,null,null,null,"LT,TR",null,{"$f":"0.47*SUM(CO69:CZ69)","v":488.79999999999995}]
[null,null,"Project Number:",null,null,null,null,null,null,null,{"$f":"P_Number","v":"Enter the Project Number here (Input worksheet)"},null,null,null,null,null,null,null,null,null,null,null,null,null,null,null,null,null,null,null,null,null,null,null,null,null,null,null,null,null,null,null,null,null,null,null,null,null,null,null,null,null,null,null,null,null,null,null,null,null,null,null,null,null,null,null,null,null,null,null,null,null,null,null,null,null,null,null,null,null,null,null,null,null,null,null,null,null,null,null,null,null,null,null,null,null,null,null,null,null,null,null,null,null,null,null,null,null,null,null,null,null,null,null,null,null,null,null,null,null,null,null,null,null,null,null,null,null,null,null,null,null,"L,LTR",null,{"$f":"0.53*SUM(CG16:CR16)","v":344.5},null,null,null,null,null,null,"L,LTR",null,{"$f":"0.53*SUM(CO69:CZ69)","v":551.20000000000005}]
[null,null,null,null,null,null,null,null,null,null,null,null,null,null,null,null,null,null,null,null,null,null,null,null,null,null,null,null,null,null,null,null,null,null,null,null,null,null,null,null,null,null,null,null,null,null,null,null,null,null,null,null,null,null,null,null,null,null,null,null,null,null,null,null,null,null,null,null,null,null,null,null,null,null,null,null,null,null,null,null,null,null,null,null,null,null,null,null,null,null,null,null,null,null,null,null,null,null,null,null,null,"Equation",null,null,null,null,null,null,"A x exp(-B x Q)",null,null,null,null,null,null,null,null,null,null,null,null,null,null,null,null,null,null,null,null,null,null,null,"LTR,R",null,{"$f":"0.47*SUM(CG16:CR16)","v":305.5},null,null,null,null,null,null,"LTR,R",null,{"$f":"0.47*SUM(CO69:CZ69)","v":488.79999999999995}]
[null,null,"Location",null,null,null,null,null,null,null,{"$f":"Location","v":"Enter the Project Location here (Input worksheet)"},null,null,null,null,null,null,null,null,null,null,null,null,null,null,null,null,null,null,null,null,null,null,null,null,null,"Overal Roundabout Delay, s/veh",null,null,null,null,null,null,null,null,null,null,null,null,null,null,null,null,null,{"$f":"(N44*(BU29+BX29+SB_2x1_ApprSlipVol)+BB36*(CZ27+WB_2x1_ApprSlipVol)+BC77*(DD55+DG55+NB_2x1_ApprSlipVol)+M74*(CD58+EB_2x1_ApprSlipVol))/(BX29+BU29+SB_2x1_ApprSlipVol+CZ27+WB_2x1_ApprSlipVol+DD55+DG55+NB_2x1_ApprSlipVol+CD58+EB_2x1_ApprSlipVol)","v":9.3973076923076917}]
[null,null,null,null,null,null,null,null,null,null,null,null,null,null,null,null,null,null,null,null,null,null,null,null,null,null,null,null,null,null,null,null,null,null,null,null,null,null,null,null,null,null,null,null,null,null,null,null,null,null,null,null,null,null,null,null,null,null,null,null,null,null,null,null,null,null,null,null,null,"Right turn to Total Flow Ratio",null,null,null,null,null,null,null,null,null,{"$f":"CG16/(CG16+CJ16+CM16+CP16)","v":0},null,null,null,null,null,null,null,null,null,null,null,null,null,null,null,null,null,null,null,null,null,"1 Entry, 2 Circ.",null,null,null,null,"A",null,1420,null,null,null,null,"B",null,8.4999999999999995E-4]
[null,null,"Date",null,null,null,null,null,null,null,{"$f":"Date","v":"Enter the date here (Input worksheet)"},null,null,null,null,null,null,null,null,null,null,null,null,null,null,null,null,null,null,null,null,null,null,null,null,null,"Overal Roundabout LOS",null,null,null,null,null,null,null,null,null,null,null,null,null,null,null,null,null,{"$f":"VLOOKUP(BC10,LOS,2,TRUE)","v":"A"},null,null,null,null,null,null,null,null,null,null,null,null,null,null,null,null,null,null,null,null,null,null,null,null,null,null,null,null,null,null,null,null,null,null,null,null,null,null,null,null,null,null,null,null,null,null,null,null,null,null,null,null,null,null,null,null,null,null,null,null,null,null,null,null,null,null,null,null,null,null,null,null,null,null,null,null,null,"Rigt-turn Slip Type",null,null,null,null,null,null,null,null,"EB","WB","SB","NB"]
[null,null,null,null,null,null,null,null,null,null,null,null,null,null,null,null,null,null,null,null,null,null,null,null,null,null,null,null,null,null,null,null,null,null,null,null,null,null,null,null,null,null,null,null,null,null,null,null,null,null,null,null,null,null,null,null,null,null,null,null,null,null,null,null,null,null,null,null,null,"Roundabout Entry Lane Discipline",null,null,null,null,null,null,null,null,null,{"$f":"VLOOKUP(SB_LaneDesig,SB_2x1_lanedesignate,2,FALSE)","v":"L,TR"},null,null,null,null,null,null,null,null,null,null,null,null,null,null,null,null,null,null,null,null,null,"Bypass Type1a",null,null,null,null,"A",null,1380,null,null,null,null,"B",null,1.0200000000000001E-3,null,null,null,null,null,null,null,null,null,null,null,null,null,null,null,null,"Type1a (yielding)",0,null,null,null,null,null,null,null,{"$f":"VLOOKUP(BW64,RT_slip_type,2,FALSE)","v":1},{"$f":"VLOOKUP(CZ23,RT_slip_type,2,FALSE)","v":0},{"$f":"VLOOKUP(BN28,RT_slip_type,2,FALSE)","v":2},{"$f":"VLOOKUP(DK59,RT_slip_type,2,FALSE)","v":0}]
[null,null,null,null,null,null,null,null,null,null,null,null,null,null,null,null,null,null,null,null,null,null,null,null,null,null,null,null,null,null,null,null,null,null,null,null,null,null,null,null,null,null,null,null,null,null,null,null,null,null,null,null,null,null,null,null,null,null,null,null,null,null,null,null,null,null,null,null,null,null,null,null,null,null,null,null,null,null,null,null,null,null,null,null,null,null,null,null,null,null,null,null,null,null,null,null,null,null,null,null,null,null,null,null,null,null,null,null,null,null,null,null,null,null,null,null,null,null,null,null,null,null,null,null,null,null,null,null,null,null,null,null,"Type1b (yielding)",1]
[null,null,null,null,null,null,null,null,null,null,null,null,null,null,null,null,null,null,null,null,null,null,null,null,null,null,null,null,null,null,null,null,null,null,null,null,null,null,null,null,null,null,null,null,null,null,null,null,null,null,null,null,null,null,null,null,null,null,null,null,null,null,null,null,null,null,null,null,null,null,null,null,null,null,null,null,null,null,null,null,null,null,null,null,"pc/h",null,null,"pc/h",null,null,"pc/h",null,null,"pc/h",null,null,null,null,null,null,null,"Bypass Type1b",null,null,null,null,"A",null,1420,null,null,null,null,"B",null,8.4999999999999995E-4,null,null,null,null,null,null,null,null,null,null,null,null,null,null,null,null,"Type2 (nonyielding)",2]
[null,null,null,null,null,null,null,null,null,null,null,null,null,null,null,null,null,null,null,null,null,null,null,null,null,null,null,null,null,null,null,null,null,null,null,null,null,null,null,null,null,null,null,null,null,null,null,null,null,null,null,null,null,null,null,null,null,null,null,null,null,null,null,null,null,null,null,null,null,{"$f":"CG16","v":0},null,null,null,null,null,null,null,null,null,{"$f":"CM16+CP16","v":350},null,null,null,null,{"$f":"IF(SB_2x1_slipON=\"No\",SBR_Master,0)","v":0},null,null,{"$f":"SBT_Master","v":300},null,null,{"$f":"SBL_Master","v":350},null,null,{"$f":"SBU_Master","v":0}]
[null,null,null,null,null,"Predicted approach capacity",null,null,null,null,null,null,null,null,null,null,null,null,null,null,null,null,null,null,null,null,null,null,null,null,null,null,null,null,null,null,null,null,null,null,null,null,null,null,null,"Predicted approach capacity",null,null,null,null,null,null,null,null,null,null,null,null,null,null,null,null,null,null,null,null,null,null,null,null,null,null,null,null,null,null,null,null,null,null,null,null,null,null,null,null,null,null,null,null,null,null,null,null,null,null,null,null,null,null,null,"2 Entry, 1 Circ.",null,null,null,null,"A",null,1420,null,null,null,null,"B",null,9.1E-4]
[]
[null,null,null,null,null,null,null,null,null,null,null,null,null,null,null,null,null,null,null,null,null,null,null,null,null,null,null,null,null,null,null,null,null,null,null,null,null,null,null,null,null,null,null,null,null,null,null,null,null,null,null,null,null,null,null,null,null,null,null,null,null,null,null,null,null,null,null,null,null,null,null,null,{"$f":"BU27-BR16","v":300},null,null,null,{"$f":"BX27-CB16","v":0}]
[null,null,null,null,null,"Lane 1",null,null,null,{"$f":"BX33","v":0.42548018477996596},null,null,null,"V/C",null,null,null,null,null,null,null,null,null,null,null,null,null,null,null,null,null,null,null,null,null,null,null,null,null,null,null,null,null,null,null,"Lane 1",null,null,null,{"$f":"CU27","v":0.12451085023123443},null,null,null,"V/C"]
[null,null,null,null,null,null,null,null,null,null,null,null,null,null,null,null,null,null,null,null,null,null,null,null,null,null,null,null,null,null,null,null,null,null,null,null,null,null,null,null,null,null,null,null,null,null,null,null,null,null,null,null,null,null,null,null,null,null,null,null,null,null,null,null,null,null,null,null,null,null,null,null,null,null,null,null,null,null,null,null,null,null,null,null,null,null,null,null,{"$f":"IF(WB_2x1_slipON=\"No\",\"n/a\",IF(AND(WB_2x1_slipON=\"Yes\",WB_2x1_slipType=2),0,CV21/CQ21))","v":0.51314945477870433},"V/C RATIO",{"$f":"IF(WB_2x1_slipON=\"No\",\"n/a\",$CU$69+$CP$16+$BS$51)","v":560},"pc/h","conflicting with",null,{"$f":"IF(WB_2x1_slipON=\"No\",\"n/a\",IF(WB_2x1_slipType=2,\"large\",ROUND(FHV_WB*WB_fped_SL*CS21,1)))","v":779.5},"veh/h",{"$f":"IF(WB_2x1_slipON=\"No\",\"n/a\",IF(WB_2x1_slipType=0,$DE$13*EXP(-$DL$13*SB_2x1_Leg_ExitFlow),IF(WB_2x1_slipType=1,$DE$15*EXP(-$DL$15*SB_2x1_Leg_ExitFlow),\"large\")))","v":779.48915696025563},"pc/h","capacity",{"$f":"IF(WB_2x1_slipON=\"No\",\"n/a\",ROUND(FHV_WB*WB_fped_SL*CX21,1))","v":400},"veh/h",{"$f":"IF(WB_2x1_slipON=\"Yes\",WBR_Master,\"n/a\")","v":400},"pc/h","Yes",null,null,null,null,null,"Right-turn Bypass Lane"]
[null,null,null,null,null,null,null,null,null,{"$f":"ROUND(3600/CH26+900*0.25*(BX33-1+SQRT((BX33-1)^2+((3600/CH26)*BX33)/(450*0.25)))+(5*(MIN(BX33,1))),1)","v":9.6999999999999993},null,null,null,"d, s/veh",null,null,null,null,null,null,null,null,null,null,null,null,null,null,null,null,null,null,null,null,null,null,null,null,null,null,null,null,null,null,null,null,null,null,null,{"$f":"ROUND(3600/CZ33+900*0.25*(CU27-1+SQRT((CU27-1)^2+((3600/CZ33)*CU27)/(450*0.25)))+(5*(MIN(CU27,1))),1)","v":7.9},null,null,null,"d, s/veh",null,null,null,null,null,null,null,null,null,null,null,"Right-turn Bypass Lane",null,null,null,null,null,null,null,null,null,null,null,null,null,"Conflicting flow",null,null,null,null,null,null,null,null,null,null,null,null,null,null,null,null,null,null,null,null,null,null,null,null,null,null,null,null,null,null,null,null,null,null,null,null,null,null,null,null,null,null,null,null,null,null,null,null,null,null,null,null,"Right-turn Slip"]
[null,null,null,null,null,null,null,null,null,null,null,null,null,null,null,null,null,null,null,null,null,null,null,null,null,null,null,null,null,null,null,null,null,null,null,null,null,null,null,null,null,null,null,null,null,null,null,null,null,null,null,null,null,null,null,null,null,null,null,null,null,null,null,null,null,null,null,null,null,null,null,null,null,null,null,null,null,null,null,{"$f":"DB67+DK37+DK34+DK31+BS48","v":600},null,null,null,null,null,null,null,null,null,null,null,null,null,null,null,null,null,null,null,null,null,null,null,"Type1a (yielding)",null,null,null,null,null,null,null,null,null,null,null,null,null,null,null,null,null,null,null,null,null,null,null,null,null,null,null,null,null,null,null,null,null,null,null,"EB",null,"WB",null,null,"SB",null,"NB"]
[null,null,null,null,null,null,null,null,null,{"$f":"IF(J20<=1,VLOOKUP(J22,LOS,2,TRUE),\"F\")","v":"A"},null,null,null,"LOS",null,null,null,null,null,null,null,null,null,null,null,null,null,null,null,null,null,null,null,null,null,null,null,null,null,null,null,null,null,null,null,null,null,null,null,{"$f":"IF(AX20<=1,VLOOKUP(AX22,LOS,2,TRUE),\"F\")","v":"A"},null,null,null,"LOS",null,null,null,null,null,null,null,null,null,null,null,null,null,null,null,null,null,null,null,null,null,null,null,null,null,null,null,null,null,null,null,null,null,null,null,null,null,null,null,null,null,null,null,null,null,null,null,null,null,null,null,null,null,null,null,null,null,null,null,null,null,null,null,null,null,null,null,null,null,null,null,null,null,null,null,null,null,null,"No",0,null,null,null,null,null,{"$f":"BW62","v":"No"},null,{"$f":"CZ21","v":"Yes"},null,null,{"$f":"BN26","v":"Yes"},null,{"$f":"DK58","v":"Yes"}]
[null,null,null,null,null,null,null,null,null,null,null,null,null,null,null,null,null,null,null,null,null,null,null,null,null,null,null,null,null,null,null,null,null,null,null,null,null,null,null,null,null,null,null,null,null,null,null,null,null,null,null,null,null,null,null,null,null,null,null,null,null,null,null,null,null,null,null,null,null,null,null,null,null,null,null,null,null,null,null,"Lane Cap.",null,null,null,"pc/h",null,"veh/h",null,null,null,null,null,null,null,null,null,null,null,null,null,null,null,null,null,null,null,null,null,null,null,null,null,null,null,null,null,null,null,null,null,null,null,null,null,null,null,null,null,null,null,null,null,null,"Yes",1]
[null,null,null,null,null,null,null,null,null,{"$f":"ROUNDUP(900*0.25*(BX33-1+SQRT((BX33-1)^2+((3600/CH26)*BX33)/(150*0.25)))*(CH26/3600),0)","v":3},null,null,null,"Q95, veh",null,null,null,null,null,null,null,null,null,null,null,null,null,null,null,null,null,null,null,null,null,null,null,null,null,null,null,null,null,null,null,null,null,null,null,{"$f":"ROUNDUP(900*0.25*(CU27-1+SQRT((CU27-1)^2+((3600/CZ33)*CU27)/(150*0.25)))*(CZ33/3600),0)","v":1},null,null,null,"Q95, veh",null,null,null,null,null,null,null,null,null,null,null,"Yes",null,null,null,null,null,null,"pc/h",null,null,"pc/h",null,null,null,1,null,null,null,{"$f":"$DE$17*EXP(-$DL$17*CB23)","v":822.55236856071053},null,{"$f":"ROUND(FHV_SB*SB_fped_ML*CF26,1)","v":822.6}]
[null,null,null,null,null,null,null,null,null,null,null,null,null,null,null,null,null,null,null,null,null,null,null,null,null,null,null,null,null,null,null,null,null,null,null,null,null,null,null,null,null,null,null,null,null,null,null,null,null,null,null,null,null,null,null,null,null,null,null,null,null,null,null,null,null,null,null,null,null,null,null,null,{"$f":"SUM(CG16:CR16)-BX27","v":300},null,null,{"$f":"VLOOKUP(CB13,SB_2x1_Leftlane_VolProp,3,FALSE)","v":350},null,null,null,null,null,null,null,null,null,null,null,null,null,null,null,null,null,null,null,null,1,null,{"$f":"CZ27/CZ33","v":0.12451085023123443},null,"V/C RATIO",null,null,{"$f":"ROUND(FHV_WB*DB27,1)","v":70},"veh/h",{"$f":"DK34+DK31+DK28+DK37","v":70},"pc/h"]
[null,null,null,null,null,"Lane 2",null,null,null,{"$f":"BU33","v":0.36469730123997079},null,null,null,"V/C",null,null,null,null,null,null,null,null,null,null,null,null,null,null,null,null,null,null,null,null,null,null,null,null,null,null,null,null,null,null,null,"Right-turn Bypass",null,null,null,{"$f":"IF(WB_2x1_slipON=\"NO\",\"n/a\",IF(AND(WB_2x1_slipON=\"Yes\",WB_2x1_slipType=2),0,CK21))","v":0.51314945477870433},null,null,null,"V/C",null,null,null,null,null,null,null,null,null,null,null,"Type2 (nonyielding)",null,null,null,null,null,null,"veh/h",null,null,"veh/h",null,null,null,2,null,null,null,{"$f":"$DE$17*EXP(-$DL$17*CB23)","v":822.55236856071053},null,{"$f":"ROUND(FHV_SB*SB_fped_ML*CF28,1)","v":822.6},null,null,null,null,null,null,null,null,null,null,null,null,null,null,null,null,null,null,null,null,null,null,null,null,null,null,null,null,{"$f":"IF(WB_2x1_slipON=\"No\",WBR_Master,0)","v":0},"pc/h"]
[null,null,null,null,null,null,null,null,null,null,null,null,null,null,null,null,null,null,null,null,null,null,null,null,null,null,null,null,null,null,null,null,null,null,null,null,null,null,null,null,null,null,null,null,null,null,null,null,null,null,null,null,null,null,null,null,null,null,null,null,null,null,null,null,null,null,null,null,null,null,null,null,{"$f":"ROUND(FHV_SB*BU27,1)","v":300},null,null,{"$f":"ROUND(FHV_SB*BX27,1)","v":350}]
[null,null,null,null,null,null,null,null,null,{"$f":"ROUND(3600/CH28+900*0.25*(BU33-1+SQRT((BU33-1)^2+((3600/CH28)*BU33)/(450*0.25)))+(5*(MIN(BU33,1))),1)","v":8.6999999999999993},null,null,null,"d, s/veh",null,null,null,null,null,null,null,null,null,null,null,null,null,null,null,null,null,null,null,null,null,null,null,null,null,null,null,null,null,null,null,null,null,null,null,{"$f":"IF(WB_2x1_slipON=\"NO\",\"n/a\",IF(AND(WB_2x1_slipON=\"Yes\",WB_2x1_slipType=2),0,ROUND(3600/CQ21+900*0.25*(CK21-1+SQRT((CK21-1)^2+((3600/CQ21)*CK21)/(450*0.25)))+(5*(MIN(CK21,1))),1)))","v":11.9},null,null,null,"d, s/veh",null,null,null,null,null,null,null,null,null,null,null,"pc/h",null,null,null,null,null,null,"V/C RATIO",null,null,"V/C RATIO",null,null,null,null,null,null,null,null,null,null,null,null,null,null,null,null,null,null,null,null,null,null,null,null,null,null,null,null,null,null,null,null,null,null,null,null,null,null,null,null,null,null,null,null,null,null,null,null,null,null,null,null,null,null,null,null,"Slip Approach vol"]
[null,null,null,null,null,null,null,null,null,null,null,null,null,null,null,null,null,null,null,null,null,null,null,null,null,null,null,null,null,null,null,null,null,null,null,null,null,null,null,null,null,null,null,null,null,null,null,null,null,null,null,null,null,null,null,null,null,null,null,null,null,null,null,null,null,{"$f":"IF(SB_2x1_slipON=\"Yes\",SBR_Master,\"n/a\")","v":200},null,null,null,null,null,null,null,null,null,null,null,null,null,null,null,null,null,null,null,null,null,null,null,null,null,null,null,null,null,null,null,null,null,null,null,null,null,{"$f":"$DE$11*EXP(-$DL$11*(DE35+DC35))","v":562.2306363061914},null,"pc/h",null,null,null,null,"Conflicting flow",null,null,null,{"$f":"WBT_Master","v":20},"pc/h",null,null,null,null,null,null,null,null,null,null,null,null,null,null,null,null,{"$f":"IF(EB_2x1_slipON=\"No\",0,CE62)","v":0}]
[null,null,null,null,null,null,null,null,null,{"$f":"IF(J28<=1,VLOOKUP(J30,LOS,2,TRUE),\"F\")","v":"A"},null,null,null,"LOS",null,null,null,null,null,null,null,null,null,null,null,null,null,null,null,null,null,null,null,null,null,null,null,null,null,null,null,null,null,null,null,null,null,null,null,{"$f":"IF(WB_2x1_slipON=\"Yes\",VLOOKUP(AX30,LOS,2,TRUE),\"n/a\")","v":"B"},null,null,null,"LOS",null,null,null,null,null,null,null,null,null,null,null,"veh/h",null,null,null,null,null,null,null,null,null,null,null,null,null,null,null,null,null,null,null,null,null,null,null,null,null,null,null,null,null,null,null,null,null,null,null,null,null,null,null,null,null,null,null,null,null,null,null,null,null,null,null,null,null,null,null,null,null,null,null,null,null,null,null,null,null,null,{"$f":"IF(WB_2x1_slipON=\"No\",0,CV21)","v":400}]
[null,null,null,null,null,null,null,null,null,null,null,null,null,null,null,null,null,null,null,null,null,null,null,null,null,null,null,null,null,null,null,null,null,null,null,null,null,null,null,null,null,null,null,null,null,null,null,null,null,null,null,null,null,null,null,null,null,null,null,null,null,null,null,null,null,{"$f":"IF(SB_2x1_slipON=\"No\",\"n/a\",ROUND(FHV_SB*SB_fped_SL*BN31,1))","v":200},null,null,null,null,null,null,{"$f":"BU29/CH28","v":0.36469730123997079},null,null,{"$f":"BX29/CH26","v":0.42548018477996596},null,null,null,null,null,null,null,null,null,null,null,null,null,null,null,null,null,null,null,null,null,null,null,null,null,null,null,{"$f":"ROUND(FHV_WB*WB_fped_SL*CZ31,1)","v":562.20000000000005},null,"veh/h",null,null,null,null,null,null,null,null,null,null,null,null,null,null,null,null,null,null,null,null,null,null,null,null,null,null,{"$f":"IF(NB_2x1_slipON=\"No\",0,DK54)","v":10}]
[null,null,null,null,null,null,null,null,null,{"$f":"ROUNDUP(900*0.25*(BU33-1+SQRT((BU33-1)^2+((3600/CH28)*BU33)/(150*0.25)))*(CH28/3600),0)","v":2},null,null,null,"Q95, veh",null,null,null,null,null,null,null,null,null,null,null,null,null,null,null,null,null,null,null,null,null,null,null,null,null,null,null,null,null,null,null,null,null,null,null,{"$f":"IF(WB_2x1_slipON=\"NO\",\"n/a\",IF(AND(WB_2x1_slipON=\"yes\",WB_2x1_slipType=2),0,ROUNDUP(900*0.25*(CK21-1+SQRT((CK21-1)^2+((3600/CQ21)*CK21)/(150*0.25)))*(CQ21/3600),0)))","v":3},null,null,null,"Q95, veh",null,null,null,null,null,null,null,null,null,null,null,"capacity",null,null,null,null,null,null,null,null,null,null,null,null,null,null,null,null,null,null,null,null,null,null,null,null,null,null,null,null,null,null,null,null,null,null,null,null,null,null,null,null,null,null,null,null,null,null,null,null,{"$f":"WBL_Master","v":50},"pc/h",null,null,null,null,null,null,null,null,null,null,null,null,null,null,null,null,{"$f":"IF(SB_2x1_slipON=\"No\",0,BN33)","v":200}]
[null,null,null,null,null,null,null,null,null,null,null,null,null,null,null,null,null,null,null,null,null,null,null,null,null,null,null,null,null,null,null,null,null,null,null,null,null,null,null,null,null,null,null,null,null,null,null,null,null,null,null,null,null,null,null,null,null,null,null,null,null,null,null,null,null,"pc/h",null,null,null,null,null,null,2,null,null,1,null,null,null,null,null,null,null,null,null,null,null,null,null,null,null,null,null,null,null,null,null,null,null,null,null,null,null,1,null,"Lane Cap.",{"$f":"DE65+DB67+BS48+BS51+CP16","v":580},null,{"$f":"DI65","v":510}]
[null,null,null,null,null,"Right-turn Bypass",null,null,null,{"$f":"IF(SB_2x1_slipON=\"NO\",\"n/a\",IF(AND(SB_2x1_slipON=\"Yes\",SB_2x1_slipType=2),0,BN44))","v":0},null,null,null,"V/C",null,null,null,null,null,null,null,null,null,null,null,null,null,null,null,null,null,null,null,null,null,null,null,null,null,null,null,null,null,null,null,"Approach delay, s/veh",null,null,null,null,null,null,null,{"$f":"IF(WB_2x1_slipON=\"Yes\",(AX30*CV21+AX22*CZ27)/(CV21+CZ27),(AX22*CZ27)/CZ27)","v":11.304255319148936},null,null,null,null,null,null,null,null,null,null,null,{"$f":"IF(SB_2x1_slipON=\"No\",\"n/a\",IF(SB_2x1_slipType=0,$DE$13*EXP(-$DL$13*EB_2x1_Leg_ExitFlow),IF(SB_2x1_slipType=1,$DE$15*EXP(-$DL$15*EB_2x1_Leg_ExitFlow),\"large\")))","v":"large"}]
[null,null,null,null,null,null,null,null,null,null,null,null,null,null,null,null,null,null,null,null,null,null,null,null,null,null,null,null,null,null,null,null,null,null,null,null,null,null,null,null,null,null,null,null,null,null,null,null,null,null,null,null,null,null,null,null,null,null,null,null,null,null,null,null,null,"veh/h",null,null,null,null,null,null,null,null,null,null,null,null,null,null,null,null,null,null,null,null,null,null,null,null,null,null,null,null,null,null,null,null,null,null,null,null,null,null,null,null,null,null,null,null,null,null,null,null,{"$f":"WBU_Master","v":0},"pc/h",null,null,null,null,null,null,null,null,null,null,null,null,null,null,null,null,"EB",null,"NB",null,"SB",null,"WB"]
[null,null,null,null,null,null,null,null,null,{"$f":"IF(SB_2x1_slipON=\"NO\",\"n/a\",IF(AND(SB_2x1_slipON=\"Yes\",SB_2x1_slipType=2),0,ROUND(3600/BN38+900*0.25*(BN44-1+SQRT((BN44-1)^2+((3600/BN38)*BN44)/(450*0.25)))+(5*(MIN(BN44,1))),1)))","v":0},null,null,null,"d, s/veh",null,null,null,null,null,null,null,null,null,null,null,null,null,null,null,null,null,null,null,null,null,null,null,null,null,null,null,null,null,null,null,null,null,null,null,null,null,null,null,null,null,null,null,null,null,null,null,null,null,null,null,{"$f":"IF(SB_2x1_slipON=\"no\",\"n/a\",IF(SB_2x1_slipType=2,\"large\",ROUND(FHV_SB*SB_fped_SL*BN36,1)))","v":"large"}]
[null,null,null,null,null,null,null,null,null,null,null,null,null,null,null,null,null,null,null,null,null,null,null,null,null,null,null,null,null,null,null,null,null,null,null,null,null,null,null,null,null,null,null,null,null,null,null,null,null,null,null,null,null,null,null,null,null,null,null,null,null,null,null,null,null,"conflicting with",null,null,null,null,null,null,null,null,null,null,null,null,null,null,null,null,null,null,null,null,null,null,null,null,null,null,null,null,null,null,null,null,null,null,null,null,null,null,null,null,null,null,null,null,null,null,null,null,null,null,null,null,null,null,null,null,null,null,null,null,null,null,null,null,null,null,"LT,TR",{"$f":"IF(BS47+BS50>BS53+BS56,\"L,TR\",IF(BS56>BS47+BS50+BS53,\"LT,R\",\"LT,TR\"))","v":"LT,TR"},"LT,TR",{"$f":"IF($CO$69+$CR$69>$CU$69+$CX$69,\"L,TR\",IF($CX$69>$CO$69+$CR$69+$CU$69,\"LT,R\",\"LT,TR\"))","v":"L,TR"},"LT,TR",{"$f":"IF($CP$16+$CM$16>$CJ$16+$CG$16,\"L,TR\",IF($CG$16>$CP$16+$CM$16+$CJ$16,\"LT,R\",\"LT,TR\"))","v":"L,TR"},"LT,TR",{"$f":"IF($DL$35+$DL$32>$DL$29+$DL$26,\"L,TR\",IF($DL$26>$DL$35+$DL$32+$DL$29,\"LT,R\",\"LT,TR\"))","v":"LT,TR"}]
[null,null,null,null,null,null,null,null,null,{"$f":"IF(SB_2x1_slipON=\"Yes\",VLOOKUP(J38,LOS,2,TRUE),\"n/a\")","v":"A"},null,null,null,"LOS",null,null,null,null,null,null,null,null,null,null,null,null,null,null,null,null,null,null,null,null,null,null,null,null,null,null,null,null,null,null,null,null,null,null,null,null,null,null,null,null,null,null,null,null,null,null,null,null,null,null,null,null,null,null,null,null,null,null,null,null,null,null,null,null,null,null,null,null,null,null,null,null,null,null,null,null,null,null,null,null,null,null,null,null,null,null,null,null,null,null,null,null,null,null,null,null,null,null,null,null,null,null,null,null,null,null,null,null,null,null,null,null,null,null,null,null,null,null,"L,LTR",{"$f":"IF(BS53+BS56>BS47+BS50,\"L,TR\",\"L,LTR\")","v":"L,LTR"},"L,LTR",{"$f":"IF(CU69+CX69>CO69+CR69,\"L,TR\",\"L,LTR\")","v":"L,LTR"},"L,LTR",{"$f":"IF(CG16+CJ16>CM16+CP16,\"L,TR\",\"L,LTR\")","v":"L,LTR"},"L,LTR",{"$f":"IF(DL29+DL26>DL35+DL32,\"L,TR\",\"L,LTR\")","v":"L,LTR"}]
[null,null,null,null,null,null,null,null,null,null,null,null,null,null,null,null,null,null,null,null,null,null,null,null,null,null,null,null,null,null,null,null,null,null,null,null,null,null,null,null,null,null,null,null,null,null,null,null,null,null,null,null,null,null,null,null,null,null,null,null,null,null,null,null,null,"pc/h",null,null,null,null,null,null,null,null,null,null,null,null,null,null,null,null,null,null,null,null,null,null,null,null,null,null,null,null,null,null,null,null,null,null,null,null,null,null,null,null,null,null,null,null,null,null,null,null,null,null,null,null,null,null,null,null,null,null,null,null,null,null,null,null,null,null,"LTR,R",{"$f":"IF(BS47+BS50+BS53>BS56,\"LT,R\",\"LTR,R\")","v":"LTR,R"},"LTR,R",{"$f":"IF(CO69+CR69+CU69>CX69,\"LT,R\",\"LTR,R\")","v":"LT,R"},"LTR,R",{"$f":"IF(CP16+CM16+CJ16>CG16,\"LT,R\",\"LTR,R\")","v":"LT,R"},"LTR,R",{"$f":"IF(DL35+DL32+DL29>DL26,\"LT,R\",\"LTR,R\")","v":"LTR,R"}]
[null,null,null,null,null,null,null,null,null,{"$f":"IF(SB_2x1_slipON=\"NO\",\"n/a\",IF(AND(SB_2x1_slipON=\"yes\",SB_2x1_slipType=2),0,ROUNDUP(900*0.25*(BN44-1+SQRT((BN44-1)^2+((3600/BN38)*BN44)/(150*0.25)))*(BN38/3600),0)))","v":0},null,null,null,"Q95, veh",null,null,null,null,null,null,null,null,null,null,null,null,null,null,null,null,null,null,null,null,null,null,null,null,null,null,null,null,null,null,null,null,null,null,null,null,null,null,null,null,null,null,null,null,null,null,null,null,null,null,null,{"$f":"IF(SB_2x1_slipON=\"No\",\"n/a\",$DK$31+$CR$69+$BS$48)","v":550},null,null,null,null,null,null,null,null,null,null,null,null,null,null,null,null,null,null,null,null,null,null,null,null,null,null,null,null,null,null,null,null,null,null,null,null,null,null,null,null,null,null,null,null,null,null,null,null,null,null,null,null,null,null,null,null,null,null,null,null,null,null,null,null,null,null,null,null,"Not Sure",{"$f":"IF($CO$69+$CR$69>$CU$69+$CX$69,\"L,TR\",IF($CX$69>$CO$69+$CR$69+$CU$69,\"LT,R\",\"LT,TR\"))","v":"L,TR"},"Not Sure",{"$f":"IF($CP$16+$CM$16>$CJ$16+$CG$16,\"L,TR\",IF($CG$16>$CP$16+$CM$16+$CJ$16,\"LT,R\",\"LT,TR\"))","v":"L,TR"}]
[null,null,null,null,null,null,null,null,null,null,null,null,null,null,null,null,null,null,null,null,null,null,null,null,null,null,null,null,null,null,null,null,null,null,null,null,null,null,null,null,null,null,null,null,null,null,null,null,null,null,null,null,null,null,null,null,null,null,null,null,null,null,null,null,null,"V/C RATIO",null,null,null,null,null,null,null,null,null,null,null,null,null,null,null,null,null,null,null,null,null,null,null,null,null,null,null,null,null,null,null,null,null,null,null,null,null,null,null,null,null,null,null,null,null,null,null,null,{"$f":"IF(NB_2x1_slipON=\"No\",\"n/a\",IF(AND(NB_2x1_slipON=\"Yes\",NB_2x1_slipType=2),0,DK54/DK49))","v":1.0676916506512918E-2}]
[null,null,null,null,null,"Approach delay, s/veh",null,null,null,null,null,null,null,{"$f":"IF(SB_2x1_slipON=\"Yes\",(J38*BN33+J22*BX29+J30*BU29)/(BN33+BX29+BU29),(J22*BX29+J30*BU29)/(BX29+BU29))","v":7.0647058823529409},null,null,null,null,null,null,null,null,null,null,null,null,null,null,null,null,null,null,null,null,null,null,null,null,null,null,null,null,null,null,null,null,null,null,null,null,null,null,null,null,null,null,null,null,null,null,null,null,null,null,null,{"$f":"IF(SB_2x1_slipON=\"No\",\"n/a\",IF(AND(SB_2x1_slipON=\"Yes\",SB_2x1_slipType=2),0,BN33/BN38))","v":0},null,null,null,null,null,null,null,null,null,null,null,null,null,null,null,null,null,null,null,null,null,null,null,null,null,null,null,null,null,null,null,null,null,null,null,null,null,null,null,null,null,null,null,null,null,null,null,null,"V/C RATIO"]
[null,null,null,null,null,null,null,null,null,null,null,null,null,null,null,null,null,null,null,null,null,null,null,null,null,null,null,null,null,null,null,null,null,null,null,null,null,null,null,null,null,null,null,null,null,null,null,null,null,null,null,null,null,null,null,null,null,null,null,null,null,null,null,null,null,null,null,null,null,null,null,null,null,null,null,null,null,null,null,null,null,null,null,null,null,null,null,null,null,null,null,null,null,null,null,null,null,null,null,null,null,null,null,null,null,null,null,null,null,null,null,null,null,null,{"$f":"IF(NB_2x1_slipON=\"No\",\"n/a\",$BS$54+$CM$16+$DK$37)","v":380},null,null,null,null,null,null,null,null,null,null,null,null,null,null,null,null,null,"*NOTE"]
[null,null,null,null,null,null,null,null,null,null,null,null,null,null,null,null,null,null,null,null,null,null,null,null,null,null,null,null,null,null,null,null,null,null,null,null,null,null,null,null,null,null,null,null,null,null,null,null,null,null,null,null,null,null,null,null,null,null,null,null,null,null,null,null,null,null,null,null,null,null,null,null,null,null,null,null,null,null,null,null,null,null,null,null,null,null,null,null,null,null,null,null,null,null,null,null,null,null,null,null,null,null,null,null,null,null,null,null,null,null,null,null,null,null,"pc/h",null,null,null,null,null,null,null,null,null,null,null,null,null,null,null,null,null,"\"Note Sure\"==LT,TR"]
[null,null,null,null,null,null,null,null,null,null,null,null,null,null,null,null,null,null,null,null,null,null,null,null,null,null,null,null,null,null,null,null,null,null,null,null,null,null,null,null,null,null,null,null,null,null,null,null,null,null,null,null,null,null,null,null,null,null,null,null,null,null,null,null,null,null,null,null,null,null,null,null,null,null,null,null,null,null,null,null,null,null,null,null,null,null,null,null,null,null,null,null,null,null,null,null,null,null,null,null,null,null,null,null,null,null,null,null,null,null,null,null,null,null,"conflicting with"]
[null,null,null,null,null,null,null,null,null,null,null,null,null,null,null,null,null,null,null,null,null,null,null,null,null,null,null,null,null,null,null,null,null,null,null,null,null,null,null,null,null,null,null,null,null,null,null,null,null,null,null,null,null,null,null,null,null,null,null,null,null,null,null,null,null,null,null,null,null,"pc/h",{"$f":"EBU_Master","v":0},null,null,null,"Conflicting flow",{"$f":"BU19","v":300},null,{"$f":"BY19+CB16+DK37+DK34+CO69","v":400},null,"Lane Cap.",1,null,null,null,null,null,null,null,null,null,null,null,null,null,null,null,null,null,null,null,null,null,null,null,null,null,null,1,null,null,2]
[null,null,null,null,null,null,null,null,null,null,null,null,null,null,null,null,null,null,null,null,null,null,null,null,null,null,null,null,null,null,null,null,null,null,null,null,null,null,null,null,null,null,null,null,null,null,null,null,null,null,null,null,null,null,null,null,null,null,null,null,null,null,null,null,null,null,null,null,null,null,null,null,null,null,null,null,null,null,null,null,null,null,null,null,null,null,null,null,null,null,null,null,null,null,null,null,null,null,null,null,null,null,null,null,null,null,null,null,null,null,null,null,null,null,{"$f":"IF(NB_2x1_slipON=\"No\",\"n/a\",IF(NB_2x1_slipType=2,\"large\",ROUND(FHV_NB*NB_fped_SL*DK51,1)))","v":936.6}]
[null,null,null,null,null,null,null,null,null,null,null,null,null,null,null,null,null,null,null,null,null,null,null,null,null,null,null,null,null,null,null,null,null,null,null,null,null,null,null,null,null,null,null,null,null,null,"Predicted approach capacity",null,null,null,null,null,null,null,null,null,null,null,null,null,null,null,null,null,null,null,null,null,null,null,null,null,null,null,null,null,null,null,null,null,null,null,null,null,null,null,null,null,null,null,null,null,null,null,null,null,null,null,null,null,null,null,null,null,null,null,null,{"$f":"DD55/DA55","v":0.55196833992918137},null,null,{"$f":"DG55/DA57","v":0.53113934596958967},null,null,null,"veh/h"]
[null,null,null,null,null,null,null,null,null,null,null,null,null,null,null,null,null,null,null,null,null,null,null,null,null,null,null,null,null,null,null,null,null,null,null,null,null,null,null,null,null,null,null,null,null,null,null,null,null,null,null,null,null,null,null,null,null,null,null,null,null,null,null,null,null,null,null,null,null,"pc/h",{"$f":"EBL_Master","v":50},null,null,null,null,null,null,null,null,null,null,null,null,null,null,null,null,null,null,null,null,null,null,null,null,null,null,null,null,null,null,null,null,null,null,null,null,null,null,null,null,null,null,null,{"$f":"IF(NB_2x1_slipON=\"No\",\"n/a\",IF(NB_2x1_slipType=0,$DE$13*EXP(-$DL$13*WB_2x1_Leg_ExitFlow),IF(NB_2x1_slipType=1,$DE$15*EXP(-$DL$15*WB_2x1_Leg_ExitFlow),\"large\")))","v":936.58359222465538}]
[null,null,null,null,null,null,null,null,null,null,null,null,null,null,null,null,null,null,null,null,null,null,null,null,null,null,null,null,null,null,null,null,null,null,null,null,null,null,null,null,null,null,null,null,null,null,null,null,null,null,null,null,null,null,null,null,null,null,null,null,null,null,null,null,null,null,null,null,null,null,null,null,null,null,null,null,null,null,null,null,null,null,null,null,null,null,null,null,null,null,null,null,null,null,null,null,null,null,null,null,null,null,null,null,null,null,null,"V/C RATIO",null,null,"V/C RATIO",null,null,null,"pc/h"]
[null,null,null,null,null,null,null,null,null,null,null,null,null,null,null,null,null,null,null,null,null,null,null,null,null,null,null,null,null,null,null,null,null,null,null,null,null,null,null,null,null,null,null,null,null,null,"Lane 1",null,null,null,{"$f":"DD50","v":0.55196833992918137},null,null,null,"V/C",null,null,null,null,null,null,null,null,null,null,null,null,null,null,null,null,null,null,null,null,null,null,null,null,"pc/h",{"$f":"$DE$11*EXP(-$DL$11*(BX48+BZ48))","v":783.21884353231837},null,null,null,null,null,null,null,null,null,null,null,null,null,null,null,null,null,null,null,null,null,null,null,null,null,null,null,null,null,null,null,null,null,"capacity"]
[null,null,null,null,null,null,null,null,null,null,null,null,null,null,null,null,null,null,null,null,null,null,null,null,null,null,null,null,null,null,null,null,null,null,null,null,null,null,null,null,null,null,null,null,null,null,null,null,null,null,null,null,null,null,null,null,null,null,null,null,null,null,null,null,null,null,null,null,null,"pc/h",{"$f":"EBT_Master","v":30},null,null,null,null,null,null,null,null,null,null,null,null,null,null,null,null,null,null,null,null,null,null,null,null,null,null,null,null,null,null,null,null,null,null,null,null,null,null,null,null,null,null,null,{"$f":"IF(NB_2x1_slipON=\"No\",\"n/a\",ROUND(FHV_NB*NB_fped_SL*DK56,1))","v":10}]
[null,null,null,null,"Predicted approach capacity",null,null,null,null,null,null,null,null,null,null,null,null,null,null,null,null,null,null,null,null,null,null,null,null,null,null,null,null,null,null,null,null,null,null,null,null,null,null,null,null,null,null,null,null,null,{"$f":"ROUND(3600/DA55+900*0.25*(DD50-1+SQRT((DD50-1)^2+((3600/DA55)*DD50)/(450*0.25)))+(5*(MIN(DD50,1))),1)","v":11},null,null,null,"d, s/veh",null,null,null,null,null,null,null,null,null,null,null,null,null,null,null,null,null,null,null,null,null,null,null,null,"veh/h",{"$f":"ROUND(FHV_EB*EB_fped_SL*CC53,1)","v":783.2},null,null,null,null,null,null,null,null,null,null,null,null,null,null,null,null,null,1,null,null,null,{"$f":"$DE$17*EXP(-$DL$17*CU60)","v":960.17172684568811},null,{"$f":"ROUND(FHV_NB*NB_fped_ML*CY55,1)","v":960.2},null,null,{"$f":"ROUND(FHV_NB*DD57,1)","v":530},null,null,{"$f":"ROUND(FHV_NB*DG57,1)","v":510},null,null,null,"veh/h"]
[null,null,null,null,null,null,null,null,null,null,null,null,null,null,null,null,null,null,null,null,null,null,null,null,null,null,null,null,null,null,null,null,null,null,null,null,null,null,null,null,null,null,null,null,null,null,null,null,null,null,null,null,null,null,null,null,null,null,null,null,null,null,null,null,null,null,null,null,null,null,null,null,null,null,null,null,null,null,null,null,null,null,null,null,null,null,null,null,null,null,null,null,null,null,null,null,null,null,null,null,null,null,null,null,null,null,null,"veh/h",null,null,"veh/h",null,null,null,{"$f":"IF(NB_2x1_slipON=\"Yes\",NBR_Master,\"n/a\")","v":10}]
[null,null,null,null,null,null,null,null,null,null,null,null,null,null,null,null,null,null,null,null,null,null,null,null,null,null,null,null,null,null,null,null,null,null,null,null,null,null,null,null,null,null,null,null,null,null,null,null,null,null,{"$f":"IF(AY53<=1,VLOOKUP(AY55,LOS,2,TRUE),\"F\")","v":"B"},null,null,null,"LOS",null,null,null,null,null,null,null,null,null,null,null,null,null,null,"pc/h",{"$f":"IF(EB_2x1_slipON=\"No\",EBR_Master,0)","v":150},null,null,null,null,null,null,null,null,null,null,null,null,null,null,null,null,null,null,null,null,null,null,null,null,null,null,null,2,null,null,null,{"$f":"$DE$17*EXP(-$DL$17*CU60)","v":960.17172684568811},null,{"$f":"ROUND(FHV_NB*NB_fped_ML*CY57,1)","v":960.2},null,null,{"$f":"VLOOKUP(DL71,NB_2x1_Leftlane_VolProp,3,FALSE)","v":530},null,null,{"$f":"SUM(CO69:CZ69)-DD57","v":510},null,null,null,"pc/h"]
[null,null,null,null,"Lane 1",null,null,null,{"$f":"CH58","v":0.2936670071501532},null,null,null,"V/C",null,null,null,null,null,null,null,null,null,null,null,null,null,null,null,null,null,null,null,null,null,null,null,null,null,null,null,null,null,null,null,null,null,null,null,null,null,null,null,null,null,null,null,null,null,null,null,null,null,null,null,null,null,null,null,null,null,null,null,null,null,null,null,null,null,"pc/h",{"$f":"BS51+BS54+BS57+BS48","v":230},"veh/h",{"$f":"ROUND(FHV_EB*CB58,1)","v":230},"V/C RATIO",null,null,{"$f":"CD58/CC55","v":0.2936670071501532},null,1,null,null,null,null,null,null,null,null,null,null,null,null,null,null,null,null,null,null,null,"pc/h",null,null,"pc/h",null,null,null,"Yes"]
[null,null,null,null,null,null,null,null,null,null,null,null,null,null,null,null,null,null,null,null,null,null,null,null,null,null,null,null,null,null,null,null,null,null,null,null,null,null,null,null,null,null,null,null,null,null,null,null,null,null,{"$f":"ROUNDUP(900*0.25*(DD50-1+SQRT((DD50-1)^2+((3600/DA55)*DD50)/(150*0.25)))*(DA55/3600),0)","v":4},null,null,null,"Q95, veh",null,null,null,null,null,null,null,null,null,null,null,null,null,null,null,null,null,null,null,null,null,null,null,null,null,null,null,null,null,null,null,null,null,null,null,null,null,null,null,null,null,null,null,"Lane Cap.",null,null,null,"pc/h",null,"veh/h",null,null,null,null,null,null,null,null,null,"Type1a (yielding)"]
[null,null,null,null,null,null,null,null,{"$f":"ROUND(3600/CC55+900*0.25*(CH58-1+SQRT((CH58-1)^2+((3600/CC55)*CH58)/(450*0.25)))+(5*(MIN(CH58,1))),1)","v":8},null,null,null,"d, s/veh",null,null,null,null,null,null,null,null,null,null,null,null,null,null,null,null,null,null,null,null,null,null,null,null,null,null,null,null,null,null,null,null,null,null,null,null,null,null,null,null,null,null,null,null,null,null,null,null,null,null,null,null,null,null,null,null,null,null,null,null,null,null,null,null,null,null,null,null,null,null,null,null,null,null,null,null,null,null,null,null,null,null,null,null,null,{"$f":"CB16+BS51+DK37+BS48+BS54","v":430}]
[null,null,null,null,null,null,null,null,null,null,null,null,null,null,null,null,null,null,null,null,null,null,null,null,null,null,null,null,null,null,null,null,null,null,null,null,null,null,null,null,null,null,null,null,null,null,"Lane 2",null,null,null,{"$f":"DG50","v":0.53113934596958967},null,null,null,"V/C",null,null,null,null,null,null,null,null,null,null,null,null,null,null,null,null,null,null,null,null,null,null,null,null,null,null,null,null,null,null,null,null,null,null,null,null,null,null,null,null,null,null,null,null,null,null,null,null,null,null,null,null,null,null,null,null,null,null,null,"Right-turn Bypass Lane"]
[null,null,null,null,null,null,null,null,{"$f":"IF(I58<=1,VLOOKUP(I60,LOS,2,TRUE),\"F\")","v":"A"},null,null,null,"LOS",null,null,null,null,null,null,null,null,null,null,null,null,null,null,null,null,null,null,null,null,null,null,null,null,null,null,null,null,null,null,null,null,null,null,null,null,null,null,null,null,null,null,null,null,null,null,null,null,null,null,null,null,null,null,null,null,null,null,null,"Right-turn Bypass Lane",null,"No",null,null,null,null,"pc/h",{"$f":"IF(EB_2x1_slipON=\"Yes\",EBR_Master,\"n/a\")","v":"n/a"},"veh/h",{"$f":"IF(EB_2x1_slipON=\"No\",\"n/a\",ROUND(CC62*FHV_EB*EB_fped_SL,1))","v":"n/a"},"capacity","pc/h",{"$f":"IF(EB_2x1_slipON=\"No\",\"n/a\",IF(EB_2x1_slipType=0,$DE$13*EXP(-$DL$13*NB_2x1_Leg_ExitFlow),IF(EB_2x1_slipType=1,$DE$15*EXP(-$DL$15*NB_2x1_Leg_ExitFlow),\"large\")))","v":"n/a"},"veh/h",{"$f":"IF(EB_2x1_slipON=\"No\",\"n/a\",IF(EB_2x1_slipType=2,\"large\",ROUND(FHV_EB*EB_fped_SL*CH62,1)))","v":"n/a"},"conflicting with",null,"pc/h",{"$f":"IF(EB_2x1_slipON=\"No\",\"n/a\",$CJ$16+$DK$34+CO69)","v":"n/a"},"V/C Ratio",{"$f":"IF(EB_2x1_slipON=\"No\",\"n/a\",IF(AND(EB_2x1_slipON=\"Yes\",EB_2x1_slipType=2),0,CE62/CJ62))","v":"n/a"},null,null,null,null,"Conflicting flow"]
[null,null,null,null,null,null,null,null,null,null,null,null,null,null,null,null,null,null,null,null,null,null,null,null,null,null,null,null,null,null,null,null,null,null,null,null,null,null,null,null,null,null,null,null,null,null,null,null,null,null,{"$f":"ROUND(3600/DA57+900*0.25*(DG50-1+SQRT((DG50-1)^2+((3600/DA57)*DG50)/(450*0.25)))+(5*(MIN(DG50,1))),1)","v":10.6},null,null,null,"d, s/veh"]
[null,null,null,null,null,null,null,null,{"$f":"ROUNDUP(900*0.25*(CH58-1+SQRT((CH58-1)^2+((3600/CC55)*CH58)/(150*0.25)))*(CC55/3600),0)","v":2},null,null,null,"Q95, veh",null,null,null,null,null,null,null,null,null,null,null,null,null,null,null,null,null,null,null,null,null,null,null,null,null,null,null,null,null,null,null,null,null,null,null,null,null,null,null,null,null,null,null,null,null,null,null,null,null,null,null,null,null,null,null,null,null,null,null,null,null,"Type1b (yielding)"]
[null,null,null,null,null,null,null,null,null,null,null,null,null,null,null,null,null,null,null,null,null,null,null,null,null,null,null,null,null,null,null,null,null,null,null,null,null,null,null,null,null,null,null,null,null,null,null,null,null,null,{"$f":"IF(AY61<=1,VLOOKUP(AY63,LOS,2,TRUE),\"F\")","v":"B"},null,null,null,"LOS",null,null,null,null,null,null,null,null,null,null,null,null,null,null,null,null,null,null,null,null,null,null,null,null,null,null,null,null,null,null,null,null,null,null,null,null,null,null,null,null,null,null,null,null,null,null,null,null,null,null,null,null,null,{"$f":"DD57-DB67","v":0},null,null,null,{"$f":"DG57-DL67","v":510}]
[null,null,null,null,"Right-turn Bypass",null,null,null,{"$f":"IF(EB_2x1_slipON=\"NO\",\"n/a\",IF(AND(EB_2x1_slipON=\"Yes\",EB_2x1_slipType=2),0,CP62))","v":"n/a"},null,null,null,"V/C"]
[null,null,null,null,null,null,null,null,null,null,null,null,null,null,null,null,null,null,null,null,null,null,null,null,null,null,null,null,null,null,null,null,null,null,null,null,null,null,null,null,null,null,null,null,null,null,null,null,null,null,{"$f":"ROUNDUP(900*0.25*(DG50-1+SQRT((DG50-1)^2+((3600/DA57)*DG50)/(150*0.25)))*(DA57/3600),0)","v":4},null,null,null,"Q95, veh",null,null,null,null,null,null,null,null,null,null,null,null,null,null,null,null,null,null,null,null,null,null,null,null,null,null,null,null,null,null,null,null,null,null,null,null,null,null,null,null,null,null,null,null,null,null,null,null,null,null,{"$f":"CO69+CR69","v":530},null,null,null,null,null,null,null,null,null,{"$f":"CX69","v":0}]
[null,null,null,null,null,null,null,null,{"$f":"IF(EB_2x1_slipON=\"NO\",\"n/a\",IF(AND(EB_2x1_slipON=\"Yes\",EB_2x1_slipType=2),0,ROUND(3600/CJ62+900*0.25*(CP62-1+SQRT((CP62-1)^2+((3600/CJ62)*CP62)/(450*0.25)))+(5*(MIN(CP62,1))),1)))","v":"n/a"},null,null,null,"d, s/veh"]
[null,null,null,null,null,null,null,null,null,null,null,null,null,null,null,null,null,null,null,null,null,null,null,null,null,null,null,null,null,null,null,null,null,null,null,null,null,null,null,null,null,null,null,null,null,null,"Right-turn Bypass",null,null,null,{"$f":"IF(NB_2x1_slipON=\"NO\",\"n/a\",IF(AND(NB_2x1_slipON=\"Yes\",NB_2x1_slipType=2),0,DK43))","v":1.0676916506512918E-2},null,null,null,"V/C",null,null,null,null,null,null,null,null,null,null,null,null,null,null,null,null,null,null,null,null,null,null,null,null,null,null,null,null,null,null,null,null,null,null,null,null,null,{"$f":"NBU_Master","v":0},null,null,{"$f":"NBL_Master","v":530},null,null,{"$f":"NBT_Master","v":510},null,null,{"$f":"IF(NB_2x1_slipON=\"No\",NBR_Master,0)","v":0}]
[null,null,null,null,null,null,null,null,{"$f":"IF(EB_2x1_slipON=\"Yes\",VLOOKUP(I68,LOS,2,TRUE),\"n/a\")","v":"n/a"},null,null,null,"LOS",null,null,null,null,null,null,null,null,null,null,null,null,null,null,null,null,null,null,null,null,null,null,null,null,null,null,null,null,null,null,null,null,null,null,null,null,null,null,null,null,null,null,null,null,null,null,null,null,null,null,null,null,null,null,null,null,null,null,null,null,null,null,null,null,null,null,null,null,null,null,null,null,null,null,null,null,null,null,null,"pc/h",null,null,"pc/h",null,null,"pc/h",null,null,"pc/h"]
[null,null,null,null,null,null,null,null,null,null,null,null,null,null,null,null,null,null,null,null,null,null,null,null,null,null,null,null,null,null,null,null,null,null,null,null,null,null,null,null,null,null,null,null,null,null,null,null,null,null,{"$f":"IF(NB_2x1_slipON=\"NO\",\"n/a\",IF(AND(NB_2x1_slipON=\"Yes\",NB_2x1_slipType=2),0,ROUND(3600/DK49+900*0.25*(DK43-1+SQRT((DK43-1)^2+((3600/DK49)*DK43)/(450*0.25)))+(5*(MIN(DK43,1))),1)))","v":3.9},null,null,null,"d, s/veh",null,null,null,null,null,null,null,null,null,null,null,null,null,null,null,null,null,null,null,null,null,null,null,null,null,null,null,null,null,null,null,null,null,null,null,null,null,null,null,null,null,null,null,null,null,null,null,null,null,null,"Roundabout Entry Lane Discipline",null,null,null,null,null,null,null,null,null,{"$f":"VLOOKUP(NB_LaneDesig,NB_2x1_lanedesignate,2,FALSE)","v":"L,TR"}]
[null,null,null,null,null,null,null,null,{"$f":"IF(EB_2x1_slipON=\"NO\",\"n/a\",IF(AND(EB_2x1_slipON=\"yes\",EB_2x1_slipType=2),0,ROUNDUP(900*0.25*(CP62-1+SQRT((CP62-1)^2+((3600/CJ62)*CP62)/(150*0.25)))*(CJ62/3600),0)))","v":"n/a"},null,null,null,"Q95, veh"]
[null,null,null,null,null,null,null,null,null,null,null,null,null,null,null,null,null,null,null,null,null,null,null,null,null,null,null,null,null,null,null,null,null,null,null,null,null,null,null,null,null,null,null,null,null,null,null,null,null,null,{"$f":"IF(NB_2x1_slipON=\"Yes\",VLOOKUP(AY71,LOS,2,TRUE),\"n/a\")","v":"A"},null,null,null,"LOS",null,null,null,null,null,null,null,null,null,null,null,null,null,null,null,null,null,null,null,null,null,null,null,null,null,null,null,null,null,null,null,null,null,null,null,null,null,null,null,null,null,null,null,null,null,null,null,null,null,null,"Right turn to Total Flow Ratio",null,null,null,null,null,null,null,null,null,{"$f":"CX69/(CX69+CU69+CR69+CO69)","v":0}]
[null,null,null,null,"Approach delay, s/veh",null,null,null,null,null,null,null,{"$f":"IF(EB_2x1_slipON=\"Yes\",(I68*CE62+I60*CD58)/(CE62+CD58),(I60*CD58)/CD58)","v":8}]
[null,null,null,null,null,null,null,null,null,null,null,null,null,null,null,null,null,null,null,null,null,null,null,null,null,null,null,null,null,null,null,null,null,null,null,null,null,null,null,null,null,null,null,null,null,null,null,null,null,null,{"$f":"IF(NB_2x1_slipON=\"NO\",\"n/a\",IF(AND(NB_2x1_slipON=\"yes\",NB_2x1_slipType=2),0,ROUNDUP(900*0.25*(DK43-1+SQRT((DK43-1)^2+((3600/DK49)*DK43)/(150*0.25)))*(DK49/3600),0)))","v":1},null,null,null,"Q95, veh"]
[]
[null,null,null,null,null,null,null,null,null,null,null,null,null,null,null,null,null,null,null,null,null,null,null,null,null,null,null,null,null,null,null,null,null,null,null,null,null,null,null,null,null,null,null,null,null,null,"Approach delay, s/veh",null,null,null,null,null,null,null,{"$f":"IF(NB_2x1_slipON=\"Yes\",(AY71*DK54+AY55*DD55+AY63*DG55)/(DK54+DD55+DG55),(AY55*DD55+AY63*DG55)/(DD55+DG55))","v":10.738095238095237}]

{"sheet":"2x2 Rndabt","index":6,"n_rows":78,"n_cols":162,"rows_kept":78,"cut":false,"hidden":false,"merged":[[26,3,33,6],[26,7,27,10],[71,70,73,71],[61,79,63,79],[48,80,52,80],[61,80,63,80],[26,71,28,73],[26,74,28,76],[29,71,30,73],[29,74,30,76],[53,53,54,57],[55,53,56,57],[61,75,63,78],[53,76,56,77],[58,79,60,79],[47,64,49,67],[47,68,49,68],[47,69,49,69],[48,75,56,75],[31,71,32,73],[31,74,32,76],[56,64,58,67],[56,68,58,68],[38,49,39,52],[18,3,25,6],[18,11,19,15],[20,11,21,15],[22,7,23,10],[18,7,19,10],[20,7,21,10],[18,45,25,48],[18,53,19,57],[20,53,21,57],[22,49,23,52],[24,49,25,52],[33,107,36,108],[15,117,18,118],[26,11,27,15],[28,7,29,10],[28,11,29,15],[30,7,31,10],[30,11,31,15],[32,7,33,10],[32,11,33,15],[33,109,41,109],[36,116,38,116],[40,7,41,10],[26,64,26,69],[34,45,41,48],[34,49,35,52],[34,53,35,57],[36,49,37,52],[36,53,37,57],[24,11,25,15],[22,53,23,57],[24,53,25,57],[15,3,17,15],[18,49,19,52],[20,49,21,52],[71,113,74,115],[55,109,56,111],[55,112,56,114],[57,109,59,111],[39,115,41,115],[51,116,51,121],[52,116,52,121],[53,116,53,121],[54,116,54,121],[55,116,55,121],[56,116,56,121],[57,116,57,121],[61,109,61,111],[61,112,61,114],[53,109,54,111],[53,112,54,114],[57,112,59,114],[60,109,60,111],[60,116,61,121],[62,116,63,121],[77,116,78,119],[71,116,72,118],[63,112,63,114],[60,100,61,103],[64,109,67,111],[64,112,67,114],[58,100,59,103],[58,104,59,105],[60,104,61,105],[58,106,59,107],[60,106,61,107],[62,100,62,103],[62,104,62,105],[62,106,62,107],[69,109,70,111],[69,113,70,115],[71,106,72,108],[73,102,73,104],[58,116,58,121],[59,116,59,121],[64,116,67,121],[75,116,76,119],[60,112,60,114],[75,106,76,115],[74,93,74,95],[74,96,74,98],[74,99,74,101],[74,102,74,104],[71,109,74,111],[8,116,9,120],[4,102,5,108],[61,86,63,87],[62,109,62,111],[62,112,62,114],[63,100,64,103],[63,104,64,107],[8,102,9,106],[6,107,7,108],[6,109,7,113],[6,114,7,115],[6,116,7,120],[6,102,7,106],[8,107,9,108],[8,109,9,113],[8,114,9,115],[19,111,21,112],[63,109,63,111],[58,88,60,89],[75,93,78,95],[75,96,78,98],[75,99,78,101],[75,102,78,104],[67,100,67,107],[53,80,54,80],[55,80,56,80],[58,81,60,81],[58,82,60,82],[58,83,60,85],[61,81,63,81],[61,82,63,82],[61,83,63,85],[53,83,54,84],[53,81,54,82],[55,81,56,82],[55,83,56,84],[73,93,73,95],[73,96,73,98],[73,99,73,101],[65,100,66,103],[65,104,66,107],[77,106,78,115],[58,80,60,80],[0,63,1,122],[2,63,3,122],[7,67,8,76],[7,77,8,80],[22,11,23,15],[24,7,25,10],[26,95,28,96],[29,95,31,96],[26,113,28,114],[19,117,28,118],[11,91,11,93],[29,106,31,109],[29,104,31,104],[26,97,28,98],[29,97,31,98],[15,70,16,72],[15,74,16,76],[23,111,25,112],[26,99,28,101],[26,102,28,102],[26,103,28,103],[29,99,31,101],[29,102,31,102],[29,103,31,103],[0,1,1,60],[2,1,3,60],[5,2,6,9],[5,10,6,35],[7,2,8,9],[7,10,8,35],[9,2,10,9],[9,10,10,35],[11,2,12,9],[11,10,12,35],[9,36,10,53],[9,54,10,59],[11,36,12,53],[11,54,12,59],[5,36,8,59],[15,45,17,57],[11,85,11,87],[22,71,22,73],[22,74,22,76],[23,71,23,73],[38,53,39,57],[40,49,41,52],[40,53,41,57],[42,45,44,52],[42,53,44,57],[26,45,33,48],[26,49,27,52],[28,49,29,52],[30,49,31,52],[32,49,33,52],[28,53,29,57],[30,53,31,57],[32,53,33,57],[26,53,27,57],[25,74,25,76],[50,45,52,57],[53,49,54,52],[55,49,56,52],[48,81,52,82],[48,83,52,84],[39,64,39,69],[40,64,40,69],[48,76,52,77],[48,78,52,79],[50,64,52,67],[33,102,34,103],[35,100,36,101],[35,102,36,103],[20,99,24,99],[11,82,11,84],[12,82,12,84],[12,77,13,79],[12,88,12,90],[12,91,12,93],[12,85,12,87],[9,77,10,80],[19,78,20,81],[21,78,22,81],[24,74,24,76],[12,116,13,120],[65,96,69,96],[65,97,69,97],[20,87,24,87],[18,78,18,85],[12,102,13,106],[24,82,25,83],[24,84,25,85],[26,82,27,83],[26,84,27,85],[12,107,13,108],[33,104,34,104],[35,104,36,104],[37,104,41,104],[37,100,41,101],[37,102,41,103],[26,104,28,104],[26,105,28,105],[26,106,28,109],[33,100,34,101],[15,119,18,120],[16,113,18,114],[19,113,21,116],[19,119,28,120],[23,113,25,116],[7,82,10,84],[7,85,10,87],[12,109,13,113],[12,114,13,115],[4,109,5,120],[10,102,11,106],[10,107,11,108],[10,109,11,113],[10,114,11,115],[10,116,11,120],[11,88,11,90],[7,88,10,90],[7,91,10,93],[9,67,10,76],[12,67,13,69],[56,69,58,69],[50,68,52,68],[50,69,52,69],[25,71,25,73],[11,70,14,72],[11,74,14,76],[23,74,23,76],[24,71,24,73],[53,64,55,67],[53,68,55,68],[34,3,41,6],[34,7,35,10],[34,11,35,15],[36,7,37,10],[36,11,37,15],[65,11,66,15],[38,7,39,10],[38,11,39,15],[40,11,41,15],[42,3,44,10],[42,11,44,15],[50,3,52,15],[53,7,54,10],[55,7,56,10],[53,3,60,6],[53,11,54,15],[55,11,56,15],[57,7,58,10],[57,11,58,15],[59,7,60,10],[59,11,60,15],[77,3,79,10],[77,11,79,15],[61,3,68,6],[67,7,68,10],[67,11,68,15],[73,11,74,15],[75,7,76,10],[75,11,76,15],[61,7,62,10],[61,11,62,15],[63,7,64,10],[63,11,64,15],[65,7,66,10],[69,3,76,6],[69,7,70,10],[69,11,70,15],[71,7,72,10],[71,11,72,15],[73,7,74,10],[93,22,96,24],[97,22,97,24],[98,22,98,24],[99,22,99,24],[57,53,58,57],[59,49,60,52],[59,53,60,57],[61,45,68,48],[61,49,62,52],[61,53,62,57],[63,49,64,52],[63,53,64,57],[65,49,66,52],[65,53,66,57],[67,49,68,52],[67,53,68,57],[57,49,58,52],[53,45,60,48],[101,22,101,24],[65,75,69,76],[71,64,74,65],[71,66,74,67],[68,68,70,71],[68,72,70,73],[64,68,66,71],[64,72,66,73],[61,64,70,65],[61,66,70,67],[61,70,63,71],[77,45,79,52],[77,53,79,57],[69,45,76,48],[69,49,70,52],[69,53,70,57],[71,49,72,52],[71,53,72,57],[73,49,74,52],[73,53,74,57],[75,49,76,52],[100,22,100,24],[75,53,76,57],[89,22,92,24],[33,134,33,135],[33,136,33,137],[45,116,45,121],[46,116,46,121],[47,116,47,121],[38,64,38,69],[20,95,24,95],[20,96,24,96],[20,97,24,97],[27,64,27,69],[28,64,28,69],[29,64,29,69],[30,64,30,69],[31,64,31,69],[32,64,32,69],[33,64,33,69],[34,64,34,69],[35,64,36,69],[37,64,37,69],[23,78,23,85],[18,64,21,69],[20,98,24,98],[20,108,24,109],[33,130,33,131],[33,132,33,133],[48,116,48,121],[49,116,50,121],[20,88,24,88],[20,89,24,89],[20,90,24,90],[20,91,24,92],[20,93,24,93],[20,94,24,94],[30,117,32,120],[36,117,38,120],[39,117,41,120],[39,116,41,116],[33,115,35,115],[33,116,35,116],[33,117,35,120],[30,115,32,115],[30,116,32,116],[29,105,31,105],[20,100,24,100],[20,101,24,101],[37,105,41,106],[37,107,41,108],[36,115,38,115],[65,92,69,93],[65,94,69,94],[65,95,69,95],[53,69,55,69],[65,86,69,86],[20,102,21,107],[22,102,24,107],[22,64,22,69],[23,64,25,69],[65,87,69,87],[53,78,56,79],[58,75,60,78],[65,84,69,84],[65,85,69,85],[58,86,60,87],[65,77,66,82],[67,77,69,82],[65,89,69,89],[65,90,69,90],[65,91,69,91],[65,88,69,88],[61,88,63,89],[65,83,69,83],[33,105,36,106]]}
[null,"2 NS x 2 EW Lane Roundabout",null,null,null,null,null,null,null,null,null,null,null,null,null,null,null,null,null,null,null,null,null,null,null,null,null,null,null,null,null,null,null,null,null,null,null,null,null,null,null,null,null,null,null,null,null,null,null,null,null,null,null,null,null,null,null,null,null,null,null,null,null,"2 NS x 2 EW Lane Roundabout"]
[]
[null,"Results Sheet",null,null,null,null,null,null,null,null,null,null,null,null,null,null,null,null,null,null,null,null,null,null,null,null,null,null,null,null,null,null,null,null,null,null,null,null,null,null,null,null,null,null,null,null,null,null,null,null,null,null,null,null,null,null,null,null,null,null,null,null,null,"Design Sheet"]
[null,null,null,null,null,null,null,null,null,null,null,null,null,null,null,null,null,null,null,null,null,null,null,null,null,null,null,null,null,null,null,null,null,null,null,null,null,null,null,null,null,null,null,null,null,null,null,null,null,null,null,null,null,null,null,null,null,null,null,null,null,null,null,null,null,null,null,null,null,null,null,null,null,null,null,null,null,null,null,null,null,null,null,null,null,null,null,null,null,null,null,null,null,null,null,null,null,null,null,null,null,null,null,null,null,null,null,null,null,null,null,null,null,null,null,null,null,null,null,null,null,null,null,null,null,null,null,null,null,null,"SB_LeftlaneVolProp",null,null,null,null,null,null,null,null,"NB_leftlaneVolProp",null,null,null,null,null,null,null,null,null,"EB_LeftlaneVolProp",null,null,null,null,null,null,null,null,null,"WB_leftlaneVolProp"]
[null,null,null,null,null,null,null,null,null,null,null,null,null,null,null,null,null,null,null,null,null,null,null,null,null,null,null,null,null,null,null,null,null,null,null,null,null,null,null,null,null,null,null,null,null,null,null,null,null,null,null,null,null,null,null,null,null,null,null,null,null,null,null,null,null,null,null,null,null,null,null,null,null,null,null,null,null,null,null,null,null,null,null,null,null,null,null,null,null,null,null,null,null,null,null,null,null,null,null,null,null,null,"Equation",null,null,null,null,null,null,"A x exp(-B x Q)",null,null,null,null,null,null,null,null,null,null,null,null,null,null,null,null,null,null,null,null,"L,TR",null,{"$f":"SUM(CK13:CP13)","v":350},null,null,null,null,null,null,"L,TR",null,{"$f":"SUM($CP$74:$CU$74)","v":530},null,null,null,null,null,null,null,"L,TR",null,{"$f":"$BR$48+$BR$51","v":50},null,null,null,null,null,null,null,"L,TR",null,{"$f":"$DL$40+$DL$37","v":50}]
[null,null,"Project Name:",null,null,null,null,null,null,null,{"$f":"P_Name","v":0},null,null,null,null,null,null,null,null,null,null,null,null,null,null,null,null,null,null,null,null,null,null,null,null,null,null,null,null,null,null,null,null,null,null,null,null,null,null,null,null,null,null,null,null,null,null,null,null,null,null,null,null,null,null,null,null,null,null,null,null,null,null,null,null,null,null,null,null,null,null,null,null,null,null,null,null,null,null,null,null,null,null,null,null,null,null,null,null,null,null,null,null,null,null,null,null,null,null,null,null,null,null,null,null,null,null,null,null,null,null,null,null,null,null,null,null,null,null,null,"LT,R",null,{"$f":"SUM(CH13:CP13)","v":650},null,null,null,null,null,null,"LT,R",null,{"$f":"SUM($CP$74:$CX$74)","v":1040},null,null,null,null,null,null,null,"LT,R",null,{"$f":"$BR$48+$BR$51+$BR$54","v":80},null,null,null,null,null,null,null,"LT,R",null,{"$f":"$DL$40+$DL$37+$DL$34","v":70}]
[null,null,null,null,null,null,null,null,null,null,null,null,null,null,null,null,null,null,null,null,null,null,null,null,null,null,null,null,null,null,null,null,null,null,null,null,null,null,null,null,null,null,null,null,null,null,null,null,null,null,null,null,null,null,null,null,null,null,null,null,null,null,null,null,null,null,null,null,null,null,null,null,null,null,null,null,null,null,null,null,null,null,null,null,null,null,null,null,null,null,null,null,null,null,null,null,null,null,null,null,null,null,"LT Lane",null,null,null,null,"A",null,1350,null,null,null,null,"B",null,9.2000000000000003E-4,null,null,null,null,null,null,null,null,null,null,null,null,null,"LT,TR",null,{"$f":"0.47*SUM(CE13:CP13)","v":399.5},null,null,null,null,null,null,"LT,TR",null,{"$f":"0.47*SUM(CP74:DA74)","v":493.5},null,null,null,null,null,null,null,"LT,TR",null,{"$f":"0.47*SUM($BR$48:$BR$59)","v":108.1},null,null,null,null,null,null,null,"LT,TR",null,{"$f":"0.47*SUM(DL31:DL42)","v":220.89999999999998}]
[null,null,"Project Number:",null,null,null,null,null,null,null,{"$f":"P_Number","v":"Enter the Project Number here (Input worksheet)"},null,null,null,null,null,null,null,null,null,null,null,null,null,null,null,null,null,null,null,null,null,null,null,null,null,null,null,null,null,null,null,null,null,null,null,null,null,null,null,null,null,null,null,null,null,null,null,null,null,null,null,null,null,null,null,null,"Right turn to Total Flow Ratio",null,null,null,null,null,null,null,null,null,{"$f":"CE13/(CE13+CH13+CK13+CN13)","v":0.23529411764705882},null,null,null,null,null,null,null,null,null,null,null,null,null,null,null,null,null,null,null,null,null,null,null,null,null,null,null,null,null,null,null,null,null,null,null,null,null,null,null,null,null,null,null,null,null,null,null,null,null,null,null,null,"L,LTR",null,{"$f":"0.53*SUM(CE13:CP13)","v":450.5},null,null,null,null,null,null,"L,LTR",null,{"$f":"0.53*SUM(CP74:DA74)","v":556.5},null,null,null,null,null,null,null,"L,LTR",null,{"$f":"0.53*SUM($BR$48:$BR$59)","v":121.9},null,null,null,null,null,null,null,"L,LTR",null,{"$f":"0.53*SUM(DL31:DL42)","v":249.10000000000002}]
[null,null,null,null,null,null,null,null,null,null,null,null,null,null,null,null,null,null,null,null,null,null,null,null,null,null,null,null,null,null,null,null,null,null,null,null,null,null,null,null,null,null,null,null,null,null,null,null,null,null,null,null,null,null,null,null,null,null,null,null,null,null,null,null,null,null,null,null,null,null,null,null,null,null,null,null,null,null,null,null,null,null,null,null,null,null,null,null,null,null,null,null,null,null,null,null,null,null,null,null,null,null,"RT Lane",null,null,null,null,"A",null,1420,null,null,null,null,"B",null,8.4999999999999995E-4,null,null,null,null,null,null,null,null,null,null,null,null,null,"LTR,R",null,{"$f":"0.47*SUM(CE13:CP13)","v":399.5},null,null,null,null,null,null,"LTR,R",null,{"$f":"0.47*SUM(CP74:DA74)","v":493.5},null,null,null,null,null,null,null,"LTR,R",null,{"$f":"0.47*SUM($BR$48:$BR$59)","v":108.1},null,null,null,null,null,null,null,"LTR,R",null,{"$f":"0.47*SUM(DL31:DL42)","v":220.89999999999998}]
[null,null,"Location",null,null,null,null,null,null,null,{"$f":"Location","v":"Enter the Project Location here (Input worksheet)"},null,null,null,null,null,null,null,null,null,null,null,null,null,null,null,null,null,null,null,null,null,null,null,null,null,"Overal Roundabout Delay, s/veh",null,null,null,null,null,null,null,null,null,null,null,null,null,null,null,null,null,{"$f":"(L43*(BT26+BW26+SB_2x2_ApprSlipVol)+BB43*(CY27+CY30+WB_2x2_ApprSlipVol)+BB78*(DF61+DI61+NB_2x2_ApprSlipVol)+L78*(CE59+CE62+EB_2x2_ApprSlipVol))/(BW26+BT26+SB_2x2_ApprSlipVol+CY27+CY30+WB_2x2_ApprSlipVol+DF61+DI61+NB_2x2_ApprSlipVol+CE59+CE62+EB_2x2_ApprSlipVol)","v":12.949134615384615},null,null,null,null,null,null,null,null,null,null,null,null,"Roundabout Entry Lane Discipline",null,null,null,null,null,null,null,null,null,{"$f":"VLOOKUP(SB_LaneDesig,SB_2x2_lanedesignate,2,FALSE)","v":"LT,TR"}]
[null,null,null,null,null,null,null,null,null,null,null,null,null,null,null,null,null,null,null,null,null,null,null,null,null,null,null,null,null,null,null,null,null,null,null,null,null,null,null,null,null,null,null,null,null,null,null,null,null,null,null,null,null,null,null,null,null,null,null,null,null,null,null,null,null,null,null,null,null,null,null,null,null,null,null,null,null,null,null,null,null,null,null,null,null,null,null,null,null,null,null,null,null,null,null,null,null,null,null,null,null,null,"Bypass Type1a",null,null,null,null,"A",null,1380,null,null,null,null,"B",null,1.0200000000000001E-3,null,null,null,null,null,null,null,null,null,null,null,null,null,"Rigt-turn Slip Type",null,null,null,null,null,null,null,null,"EB","WB","SB","NB"]
[null,null,"Date",null,null,null,null,null,null,null,{"$f":"Date","v":"Enter the date here (Input worksheet)"},null,null,null,null,null,null,null,null,null,null,null,null,null,null,null,null,null,null,null,null,null,null,null,null,null,"Overal Roundabout LOS",null,null,null,null,null,null,null,null,null,null,null,null,null,null,null,null,null,{"$f":"VLOOKUP(BC10,LOS,2,TRUE)","v":"B"},null,null,null,null,null,null,null,null,null,null,null,null,null,null,null,null,null,null,null,null,null,null,null,null,null,null,null,"pc/h",null,null,"pc/h",null,null,"pc/h",null,null,"pc/h",null,null,null,null,null,null,null,null,null,null,null,null,null,null,null,null,null,null,null,null,null,null,null,null,null,null,null,null,null,null,null,null,null,null,null,null,null,null,"Type1a (yielding)",0,null,null,null,null,null,null,null,{"$f":"VLOOKUP(BZ68,RT_slip_type,2,FALSE)","v":2},{"$f":"VLOOKUP(CY23,RT_slip_type,2,FALSE)","v":1},{"$f":"VLOOKUP(BM24,RT_slip_type,2,FALSE)","v":2},{"$f":"VLOOKUP(DM63,RT_slip_type,2,FALSE)","v":0}]
[null,null,null,null,null,null,null,null,null,null,null,null,null,null,null,null,null,null,null,null,null,null,null,null,null,null,null,null,null,null,null,null,null,null,null,null,null,null,null,null,null,null,null,null,null,null,null,null,null,null,null,null,null,null,null,null,null,null,null,null,null,null,null,null,null,null,null,{"$f":"CE13","v":200},null,null,null,null,null,null,null,null,null,{"$f":"CK13+CN13","v":350},null,null,null,null,{"$f":"IF(SB_2X2_slipON=\"No\",SBR_Master,0)","v":200},null,null,{"$f":"SBT_Master","v":300},null,null,{"$f":"SBL_Master","v":350},null,null,{"$f":"SBU_Master","v":0},null,null,null,null,null,null,null,null,null,null,"Bypass Type1b",null,null,null,null,"A",null,1420,null,null,null,null,"B",null,8.4999999999999995E-4,null,null,null,null,null,null,null,null,null,null,null,null,null,"Type1b (yielding)",1]
[null,null,null,null,null,null,null,null,null,null,null,null,null,null,null,null,null,null,null,null,null,null,null,null,null,null,null,null,null,null,null,null,null,null,null,null,null,null,null,null,null,null,null,null,null,null,null,null,null,null,null,null,null,null,null,null,null,null,null,null,null,null,null,null,null,null,null,null,null,null,null,null,null,null,null,null,null,null,null,null,null,null,null,null,null,null,null,null,null,null,null,null,null,null,null,null,null,null,null,null,null,null,null,null,null,null,null,null,null,null,null,null,null,null,null,null,null,null,null,null,null,null,null,null,null,null,null,null,null,null,"Type2 (nonyielding)",2]
[]
[null,null,null,"Predicted approach capacity",null,null,null,null,null,null,null,null,null,null,null,null,null,null,null,null,null,null,null,null,null,null,null,null,null,null,null,null,null,null,null,null,null,null,null,null,null,null,null,null,null,"Predicted approach capacity",null,null,null,null,null,null,null,null,null,null,null,null,null,null,null,null,null,null,null,null,null,null,null,null,{"$f":"BT24-BP13","v":250.5},null,null,null,{"$f":"BW24-BZ13","v":49.5},null,null,null,null,null,null,null,null,null,null,null,null,null,null,null,null,null,null,null,null,null,null,null,null,null,null,null,null,null,null,null,null,null,null,null,null,null,null,null,null,null,null,{"$f":"VLOOKUP(WB_LaneDesig,WB_2x2_lanedesignate,2,FALSE)","v":"LT,R"},null,{"$f":"DL31/(DL31+DL34+DL37+DL40)","v":0.85106382978723405}]
[null,null,null,null,null,null,null,null,null,null,null,null,null,null,null,null,null,null,null,null,null,null,null,null,null,null,null,null,null,null,null,null,null,null,null,null,null,null,null,null,null,null,null,null,null,null,null,null,null,null,null,null,null,null,null,null,null,null,null,null,null,null,null,null,null,null,null,null,null,null,null,null,null,null,null,null,null,null,null,null,null,null,null,null,null,null,null,null,null,null,null,null,null,null,null,null,null,null,null,null,null,null,null,null,null,null,null,null,null,null,null,null,null,{"$f":"IF(DL31>DA27,DA27,DL31)","v":400}]
[]
[null,null,null,"Lane 1",null,null,null,{"$f":"BW30","v":0.5139585745529397},null,null,null,"V/C",null,null,null,null,null,null,null,null,null,null,null,null,null,null,null,null,null,null,null,null,null,null,null,null,null,null,null,null,null,null,null,null,null,"Lane 1",null,null,null,{"$f":"CT30","v":0.14135702746365106},null,null,null,"V/C",null,null,null,null,null,null,null,null,null,null,"Right-turn Bypass Lane",null,null,null,null,null,null,null,null,null,null,null,null,null,"Conflicting flow"]
[null,null,null,null,null,null,null,null,null,null,null,null,null,null,null,null,null,null,null,null,null,null,null,null,null,null,null,null,null,null,null,null,null,null,null,null,null,null,null,null,null,null,null,null,null,null,null,null,null,null,null,null,null,null,null,null,null,null,null,null,null,null,null,null,null,null,null,null,null,null,null,null,null,null,null,null,null,null,{"$f":"DH20","v":0},null,null,null,null,null,null,null,null,null,null,null,null,null,null,null,null,null,null,null,null,null,null,null,null,null,null,null,null,null,null,null,null,{"$f":"DA27-DJ17","v":0},null,null,null,null,null,"Roundabout Entry Lane Discipline",null,"Right turn to Total Flow Ratio"]
[null,null,null,null,null,null,null,{"$f":"ROUND(3600/CG25+900*0.25*(BW30-1+SQRT((BW30-1)^2+((3600/CG25)*BW30)/(450*0.25)))+(5*(MIN(BW30,1))),1)","v":12},null,null,null,"d, s/veh",null,null,null,null,null,null,null,null,null,null,null,null,null,null,null,null,null,null,null,null,null,null,null,null,null,null,null,null,null,null,null,null,null,null,null,null,null,{"$f":"ROUND(3600/CW36+900*0.25*(CT30-1+SQRT((CT30-1)^2+((3600/CW36)*CT30)/(450*0.25)))+(5*(MIN(CT30,1))),1)","v":9.1999999999999993},null,null,null,"d, s/veh",null,null,null,null,null,null,null,null,null,null,null,null,null,null,null,null,null,null,null,null,null,null,null,null,null,null,null,null,null,null,null,null,null,{"$f":"IF(WB_2X2_slipON=\"No\",\"n/a\",IF(AND(WB_2X2_slipON=\"Yes\",WB_2X2_slipType=2),0,CU21/CP21))","v":"n/a"},"V/C RATIO",{"$f":"IF(WB_2X2_slipON=\"No\",\"n/a\",$BR$51+$CN$13+$CV$74)","v":"n/a"},"pc/h","conflicting with",null,{"$f":"IF(WB_2X2_slipON=\"No\",\"n/a\",IF(WB_2X2_slipType=2,\"large\",ROUND(FHV_WB*WB_fped_SL*CR21,1)))","v":"n/a"},"veh/h",{"$f":"IF(WB_2X2_slipON=\"No\",\"n/a\",IF(WB_2X2_slipType=0,$DF$11*EXP(-$DM$11*SB_2x2_Leg_ExitFlow),IF(WB_2X2_slipType=1,$DF$13*EXP(-$DM$13*SB_2x2_Leg_ExitFlow),\"large\")))","v":"n/a"},"pc/h","capacity",{"$f":"IF(WB_2X2_slipON=\"No\",\"n/a\",ROUND(FHV_WB*WB_fped_SL*CW21,1))","v":"n/a"},"veh/h",{"$f":"IF(WB_2X2_slipON=\"Yes\",WBR_Master,\"n/a\")","v":"n/a"},"pc/h","No",null,null,null,null,null,"Right-turn Bypass Lane",null,null,null,null,null,null,null,null,null,null,null,null,null,null,null,null,null,null,null,null,null,"Right-turn Slip"]
[null,null,null,null,null,null,null,null,null,null,null,null,null,null,null,null,null,null,null,null,null,null,null,null,null,null,null,null,null,null,null,null,null,null,null,null,null,null,null,null,null,null,null,null,null,null,null,null,null,null,null,null,null,null,null,null,null,null,null,null,null,null,null,null,null,null,null,null,null,null,null,null,null,null,null,null,null,null,{"$f":"DH24+DJ27+DC72+BR48","v":600},null,null,null,null,null,null,null,null,null,null,null,null,null,null,null,null,null,null,null,null,null,null,null,null,null,null,null,null,null,null,null,null,null,null,null,null,null,null,null,null,null,null,null,null,null,null,null,null,null,null,null,null,null,null,null,null,null,null,"EB",null,"WB",null,null,"SB",null,"NB"]
[null,null,null,null,null,null,null,{"$f":"IF(H19<=1,VLOOKUP(H21,LOS,2,TRUE),\"F\")","v":"B"},null,null,null,"LOS",null,null,null,null,null,null,null,null,null,null,null,null,null,null,null,null,null,null,null,null,null,null,null,null,null,null,null,null,null,null,null,null,null,null,null,null,null,{"$f":"IF(AX19<=1,VLOOKUP(AX21,LOS,2,TRUE),\"F\")","v":"A"},null,null,null,"LOS",null,null,null,null,null,null,null,null,null,null,"No",null,null,null,null,null,null,"pc/h",null,null,"pc/h",null,null,null,null,null,null,null,null,null,null,null,null,null,null,null,null,null,null,null,null,null,null,null,null,null,null,null,"Type1b (yielding)",null,null,null,null,null,null,null,null,null,null,null,null,null,null,null,null,null,null,null,null,null,null,null,null,null,null,null,"No",0,null,null,null,null,null,{"$f":"BZ66","v":"No"},null,{"$f":"CY21","v":"No"},null,null,{"$f":"BM23","v":"No"},null,{"$f":"DM61","v":"No"}]
[null,null,null,null,null,null,null,null,null,null,null,null,null,null,null,null,null,null,null,null,null,null,null,null,null,null,null,null,null,null,null,null,null,null,null,null,null,null,null,null,null,null,null,null,null,null,null,null,null,null,null,null,null,null,null,null,null,null,null,null,null,null,null,null,"Type2 (nonyielding)",null,null,null,null,null,null,{"$f":"SUM(CE13:CP13)-BW24","v":450.5},null,null,{"$f":"VLOOKUP(BZ10,SB_2x2_Leftlane_VolProp,3,FALSE)","v":399.5},null,null,null,"Lane Cap.",null,null,null,null,null,null,null,null,null,null,null,null,null,null,null,null,null,null,null,null,null,null,null,null,null,null,null,null,null,null,null,null,{"$f":"DA30-DJ27","v":20},null,null,null,null,null,null,null,null,null,null,null,null,null,null,null,null,null,null,"Yes",1]
[null,null,null,null,null,null,null,{"$f":"ROUNDUP(900*0.25*(BW30-1+SQRT((BW30-1)^2+((3600/CG25)*BW30)/(150*0.25)))*(CG25/3600),0)","v":3},null,null,null,"Q95, veh",null,null,null,null,null,null,null,null,null,null,null,null,null,null,null,null,null,null,null,null,null,null,null,null,null,null,null,null,null,null,null,null,null,null,null,null,null,{"$f":"ROUNDUP(900*0.25*(CT30-1+SQRT((CT30-1)^2+((3600/CW36)*CT30)/(150*0.25)))*(CW36/3600),0)","v":1},null,null,null,"Q95, veh",null,null,null,null,null,null,null,null,null,null,null,null,null,null,null,null,null,"veh/h",null,null,"veh/h",null,null,null,1,null,null,null,{"$f":"$DF$7*EXP(-$DM$7*(CA22+CA20))","v":777.3260362521271},null,{"$f":"ROUND(FHV_SB*SB_fped_ML*CE25,1)","v":777.3}]
[null,null,null,null,null,null,null,null,null,null,null,null,null,null,null,null,null,null,null,null,null,null,null,null,null,null,null,null,null,null,null,null,null,null,null,null,null,null,null,null,null,null,null,null,null,null,null,null,null,null,null,null,null,null,null,null,null,null,null,null,null,null,null,null,null,null,null,null,null,null,null,{"$f":"ROUND(FHV_SB*BT24,1)","v":450.5},null,null,{"$f":"ROUND(FHV_SB*BW24,1)","v":399.5}]
[null,null,null,"Lane 2",null,null,null,{"$f":"BT30","v":0.52832180133692974},null,null,null,"V/C",null,null,null,null,null,null,null,null,null,null,null,null,null,null,null,null,null,null,null,null,null,null,null,null,null,null,null,null,null,null,null,null,null,"Lane 2",null,null,null,{"$f":"CT27","v":0.71149057274991101},null,null,null,"V/C",null,null,null,null,null,null,null,null,null,null,"pc/h",null,null,null,null,null,null,"V/C RATIO",null,null,"V/C RATIO",null,null,null,2,null,null,null,{"$f":"$DF$9*EXP(-$DM$9*(CA20+CA22))","v":852.70372191341755},null,{"$f":"ROUND(FHV_SB*SB_fped_ML*CE27,1)","v":852.7},null,null,null,null,null,null,null,null,null,null,2,null,{"$f":"CY27/CY36","v":0.71149057274991101},null,"V/C RATIO",null,null,{"$f":"ROUND(FHV_WB*DA27,1)","v":400},"veh/h",{"$f":"SUM(DL31:DL42)-DA30","v":400},"pc/h",null,null,null,null,null,null,null,{"$f":"IF(SUM(DL37:DL42)>DA30,DA30,SUM(DL37:DL42))","v":50}]
[null,null,null,null,null,null,null,null,null,null,null,null,null,null,null,null,null,null,null,null,null,null,null,null,null,null,null,null,null,null,null,null,null,null,null,null,null,null,null,null,null,null,null,null,null,null,null,null,null,null,null,null,null,null,null,null,null,null,null,null,null,null,null,null,{"$f":"IF(SB_2X2_slipON=\"Yes\",SBR_Master,\"n/a\")","v":"n/a"},null,null,null,null,null,null,null,null,null,null,null,null,null,null,null,null,null,null,null,null,null,null,null,null,null,null,null,null,null,null,null,null,null,null,null,null,null,null,null,null,null,null,null,null,null,null,null,null,null,null,null,null,null,null,null,null,null,null,null,null,null,null,null,null,null,"Slip Approach vol"]
[null,null,null,null,null,null,null,{"$f":"ROUND(3600/CG27+900*0.25*(BT30-1+SQRT((BT30-1)^2+((3600/CG27)*BT30)/(450*0.25)))+(5*(MIN(BT30,1))),1)","v":11.5},null,null,null,"d, s/veh",null,null,null,null,null,null,null,null,null,null,null,null,null,null,null,null,null,null,null,null,null,null,null,null,null,null,null,null,null,null,null,null,null,null,null,null,null,{"$f":"ROUND(3600/CY36+900*0.25*(CT27-1+SQRT((CT27-1)^2+((3600/CY36)*CT27)/(450*0.25)))+(5*(MIN(CT27,1))),1)","v":24.2},null,null,null,"d, s/veh",null,null,null,null,null,null,null,null,null,null,"veh/h",null,null,null,null,null,null,null,null,null,null,null,null,null,null,null,null,null,null,null,null,null,null,null,null,null,null,null,null,null,null,null,null,null,null,null,null,null,null,null,null,null,null,null,null,null,null,null,null,null,null,null,null,null,null,null,null,null,null,null,null,null,null,null,null,null,{"$f":"IF(EB_2X2_slipON=\"No\",0,CI66)","v":0}]
[null,null,null,null,null,null,null,null,null,null,null,null,null,null,null,null,null,null,null,null,null,null,null,null,null,null,null,null,null,null,null,null,null,null,null,null,null,null,null,null,null,null,null,null,null,null,null,null,null,null,null,null,null,null,null,null,null,null,null,null,null,null,null,null,{"$f":"IF(SB_2X2_slipON=\"No\",\"n/a\",ROUND(FHV_SB*SB_fped_SL*BM28,1))","v":"n/a"},null,null,null,null,null,null,{"$f":"BT26/CG27","v":0.52832180133692974},null,null,{"$f":"BW26/CG25","v":0.5139585745529397},null,null,null,null,null,null,null,null,null,null,null,null,null,null,null,null,null,".",null,null,1,null,{"$f":"CY30/CW36","v":0.14135702746365106},null,"V/C RATIO",null,null,{"$f":"ROUND(FHV_WB*DA30,1)","v":70},"veh/h",{"$f":"VLOOKUP(DN16,WB_2x2_Leftlane_VolProp,3,FALSE)","v":70},"pc/h",null,null,null,null,null,null,null,null,null,null,null,null,null,null,null,null,null,null,null,null,null,null,null,null,{"$f":"IF(WB_2X2_slipON=\"No\",0,CU21)","v":0}]
[null,null,null,null,null,null,null,{"$f":"IF(H27<=1,VLOOKUP(H29,LOS,2,TRUE),\"F\")","v":"B"},null,null,null,"LOS",null,null,null,null,null,null,null,null,null,null,null,null,null,null,null,null,null,null,null,null,null,null,null,null,null,null,null,null,null,null,null,null,null,null,null,null,null,{"$f":"IF(AX27<=1,VLOOKUP(AX29,LOS,2,TRUE),\"F\")","v":"C"},null,null,null,"LOS",null,null,null,null,null,null,null,null,null,null,"capacity",null,null,null,null,null,null,null,null,null,null,null,null,null,null,null,null,null,null,null,null,null,null,null,null,null,null,null,null,null,null,null,null,null,null,null,null,null,null,null,null,null,null,null,null,null,null,null,null,null,null,{"$f":"IF(WB_2X2_slipON=\"No\",WBR_Master,0)","v":400},"pc/h",null,null,null,null,null,null,null,null,null,null,null,null,null,{"$f":"IF(NB_2X2_slipON=\"No\",0,DM57)","v":0}]
[null,null,null,null,null,null,null,null,null,null,null,null,null,null,null,null,null,null,null,null,null,null,null,null,null,null,null,null,null,null,null,null,null,null,null,null,null,null,null,null,null,null,null,null,null,null,null,null,null,null,null,null,null,null,null,null,null,null,null,null,null,null,null,null,"pc/h",null,null,null,null,null,null,2,null,null,1,null,null,null,null,null,null,null,null,null,null,null,null,null,null,null,null,null,null,null,null,null,null,null,null,null,null,null,null,null,null,null,null,null,null,null,null,null,null,null,null,null,null,null,null,null,null,null,null,null,null,null,null,null,null,null,{"$f":"IF(SB_2X2_slipON=\"No\",0,BM30)","v":0}]
[null,null,null,null,null,null,null,{"$f":"ROUNDUP(900*0.25*(BT30-1+SQRT((BT30-1)^2+((3600/CG27)*BT30)/(150*0.25)))*(CG27/3600),0)","v":4},null,null,null,"Q95, veh",null,null,null,null,null,null,null,null,null,null,null,null,null,null,null,null,null,null,null,null,null,null,null,null,null,null,null,null,null,null,null,null,null,null,null,null,null,{"$f":"ROUNDUP(900*0.25*(CT27-1+SQRT((CT27-1)^2+((3600/CY36)*CT27)/(150*0.25)))*(CY36/3600),0)","v":6},null,null,null,"Q95, veh",null,null,null,null,null,null,null,null,null,null,{"$f":"IF(SB_2X2_slipON=\"No\",\"n/a\",IF(SB_2X2_slipType=0,$DF$11*EXP(-$DM$11*EB_2x2_Leg_ExitFlow),IF(SB_slipType=1,$DF$13*EXP(-$DM$13*EB_2x2_Leg_ExitFlow),\"large\")))","v":"n/a"}]
[null,null,null,null,null,null,null,null,null,null,null,null,null,null,null,null,null,null,null,null,null,null,null,null,null,null,null,null,null,null,null,null,null,null,null,null,null,null,null,null,null,null,null,null,null,null,null,null,null,null,null,null,null,null,null,null,null,null,null,null,null,null,null,null,"veh/h",null,null,null,null,null,null,null,null,null,null,null,null,null,null,null,null,null,null,null,null,null,null,null,null,null,null,null,null,null,null,null,null,null,null,null,{"$f":"$DF$7*EXP(-$DM$7*(DB38+DD38))","v":495.24860629606275},null,{"$f":"$DF$9*EXP(-$DM$9*(DB38+DD38))","v":562.2306363061914},null,"pc/h",null,null,null,null,"Conflicting flow",null,null,null,null,null,{"$f":"WBT_Master","v":20},"pc/h",null,null,null,null,null,null,null,null,null,null,null,null,null,"EB",null,"NB",null,"SB",null,"WB"]
[null,null,null,"Right-turn Bypass",null,null,null,{"$f":"IF(SB_2X2_slipON=\"NO\",\"n/a\",IF(AND(SB_2X2_slipON=\"Yes\",SB_2X2_slipType=2),0,BM41))","v":"n/a"},null,null,null,"V/C",null,null,null,null,null,null,null,null,null,null,null,null,null,null,null,null,null,null,null,null,null,null,null,null,null,null,null,null,null,null,null,null,null,"Right-turn Bypass",null,null,null,{"$f":"IF(WB_2X2_slipON=\"NO\",\"n/a\",IF(AND(WB_2X2_slipON=\"Yes\",WB_2X2_slipType=2),0,CJ21))","v":"n/a"},null,null,null,"V/C",null,null,null,null,null,null,null,null,null,null,{"$f":"IF(SB_2X2_slipON=\"no\",\"n/a\",IF(SB_2X2_slipType=2,\"large\",ROUND(FHV_SB*SB_fped_SL*BM33,1)))","v":"n/a"}]
[null,null,null,null,null,null,null,null,null,null,null,null,null,null,null,null,null,null,null,null,null,null,null,null,null,null,null,null,null,null,null,null,null,null,null,null,null,null,null,null,null,null,null,null,null,null,null,null,null,null,null,null,null,null,null,null,null,null,null,null,null,null,null,null,"conflicting with",null,null,null,null,null,null,null,null,null,null,null,null,null,null,null,null,null,null,null,null,null,null,null,null,null,null,null,null,null,null,null,null,null,null,null,{"$f":"ROUND(FHV_WB*WB_fped_ML*CW34,1)","v":495.2},null,{"$f":"ROUND(FHV_WB*WB_fped_ML*CY34,1)","v":562.20000000000005},null,"veh/h",null,null,null,null,null,null,null,null,null,null,null,null,null,null,null,null,null,null,null,null,null,null,null,null,null,"LT,TR",{"$f":"IF($BR$48+$BR$51>$BR$54+$BR$57,\"L,TR\",IF($BR$57>$BR$48+$BR$51+$BR$54,\"LT,R\",\"LT,TR\"))","v":"LT,R"},"LT,TR",{"$f":"IF($CP$74+$CS$74>$CV$74+$CY$74,\"L,TR\",IF($CY$74>$CP$74+$CS$74+$CV$74,\"LT,R\",\"LT,TR\"))","v":"L,TR"},"LT,TR",{"$f":"IF($CN$13+$CK$13>$CH$13+$CE$13,\"L,TR\",IF($CE$13>$CN$13+$CK$13+$CH$13,\"LT,R\",\"LT,TR\"))","v":"LT,TR"},"LT,TR",{"$f":"IF($DL$40+$DL$37>$DL$34+$DL$31,\"L,TR\",IF($DL$31>$DL$40+$DL$37+$DL$34,\"LT,R\",\"LT,TR\"))","v":"LT,R"}]
[null,null,null,null,null,null,null,{"$f":"IF(SB_2X2_slipON=\"NO\",\"n/a\",IF(AND(SB_2X2_slipON=\"Yes\",SB_2X2_slipType=2),0,ROUND(3600/BM35+900*0.25*(BM41-1+SQRT((BM41-1)^2+((3600/BM35)*BM41)/(450*0.25)))+(5*(MIN(BM41,1))),1)))","v":"n/a"},null,null,null,"d, s/veh",null,null,null,null,null,null,null,null,null,null,null,null,null,null,null,null,null,null,null,null,null,null,null,null,null,null,null,null,null,null,null,null,null,null,null,null,null,{"$f":"IF(WB_2X2_slipON=\"NO\",\"n/a\",IF(AND(WB_2X2_slipON=\"Yes\",WB_2X2_slipType=2),0,ROUND(3600/CP21+900*0.25*(CJ21-1+SQRT((CJ21-1)^2+((3600/CP21)*CJ21)/(450*0.25)))+(5*(MIN(CJ21,1))),1)))","v":"n/a"},null,null,null,"d, s/veh",null,null,null,null,null,null,null,null,null,null,null,null,null,null,null,null,null,null,null,null,null,null,null,null,null,null,null,null,null,null,null,null,null,null,null,null,null,null,null,null,null,null,null,null,null,null,null,null,null,null,null,null,null,null,null,null,null,null,null,null,null,{"$f":"WBL_Master","v":50},"pc/h",null,null,null,null,null,null,null,null,null,null,null,null,null,"L,LTR",{"$f":"IF(BR54+BR57>BR48+BR51,\"L,TR\",\"L,LTR\")","v":"L,TR"},"L,LTR",{"$f":"IF(CV74+CY74>CP74+CS74,\"L,TR\",\"L,LTR\")","v":"L,LTR"},"L,LTR",{"$f":"IF(CE13+CH13>CK13+CN13,\"L,TR\",\"L,LTR\")","v":"L,TR"},"L,LTR",{"$f":"IF(DL31+DL34>DL40+DL37,\"L,TR\",\"L,LTR\")","v":"L,TR"}]
[null,null,null,null,null,null,null,null,null,null,null,null,null,null,null,null,null,null,null,null,null,null,null,null,null,null,null,null,null,null,null,null,null,null,null,null,null,null,null,null,null,null,null,null,null,null,null,null,null,null,null,null,null,null,null,null,null,null,null,null,null,null,null,null,"pc/h",null,null,null,null,null,null,null,null,null,null,null,null,null,null,null,null,null,null,null,null,null,null,null,null,null,null,null,null,null,null,null,null,null,null,null,1,null,2,null,"Lane Cap.",{"$f":"DF70+DC72+BS62+CN13","v":580},null,{"$f":"DJ70","v":510},null,null,null,null,null,null,null,null,null,null,null,null,null,null,null,null,null,null,null,null,null,null,"LTR,R",{"$f":"IF(BR48+BR51+BR54>BR57,\"LT,R\",\"LTR,R\")","v":"LTR,R"},"LTR,R",{"$f":"IF(CP74+CS74+CV74>CY74,\"LT,R\",\"LTR,R\")","v":"LT,R"},"LTR,R",{"$f":"IF(CN13+CK13+CH13>CE13,\"LT,R\",\"LTR,R\")","v":"LT,R"},"LTR,R",{"$f":"IF(DL40+DL37+DL34>DL31,\"LT,R\",\"LTR,R\")","v":"LTR,R"}]
[null,null,null,null,null,null,null,{"$f":"IF(SB_2X2_slipON=\"Yes\",VLOOKUP(H37,LOS,2,TRUE),\"n/a\")","v":"n/a"},null,null,null,"LOS",null,null,null,null,null,null,null,null,null,null,null,null,null,null,null,null,null,null,null,null,null,null,null,null,null,null,null,null,null,null,null,null,null,null,null,null,null,{"$f":"IF(WB_2X2_slipON=\"Yes\",VLOOKUP(AX37,LOS,2,TRUE),\"n/a\")","v":"n/a"},null,null,null,"LOS",null,null,null,null,null,null,null,null,null,null,{"$f":"IF(SB_2X2_slipON=\"No\",\"n/a\",$DL$34+$BR$48+CS74)","v":"n/a"},null,null,null,null,null,null,null,null,null,null,null,null,null,null,null,null,null,null,null,null,null,null,null,null,null,null,null,null,null,null,null,null,null,null,null,null,null,null,null,null,null,null,null,null,null,null,null,null,null,null,null,null,null,null,null,null,null,null,null,null,null,null,null,null,null,"Not Sure",{"$f":"IF($BR$48+$BR$51>$BR$54+$BR$57,\"L,TR\",IF($BR$57>$BR$48+$BR$51+$BR$54,\"LT,R\",\"LT,TR\"))","v":"LT,R"},"Not Sure",{"$f":"IF($CP$74+$CS$74>$CV$74+$CY$74,\"L,TR\",IF($CY$74>$CP$74+$CS$74+$CV$74,\"LT,R\",\"LT,TR\"))","v":"L,TR"},"Not Sure",{"$f":"IF($CN$13+$CK$13>$CH$13+$CE$13,\"L,TR\",IF($CE$13>$CN$13+$CK$13+$CH$13,\"LT,R\",\"LT,TR\"))","v":"LT,TR"},"Not Sure",{"$f":"IF($DL$40+$DL$37>$DL$34+$DL$31,\"L,TR\",IF($DL$31>$DL$40+$DL$37+$DL$34,\"LT,R\",\"LT,TR\"))","v":"LT,R"}]
[null,null,null,null,null,null,null,null,null,null,null,null,null,null,null,null,null,null,null,null,null,null,null,null,null,null,null,null,null,null,null,null,null,null,null,null,null,null,null,null,null,null,null,null,null,null,null,null,null,null,null,null,null,null,null,null,null,null,null,null,null,null,null,null,"V/C RATIO",null,null,null,null,null,null,null,null,null,null,null,null,null,null,null,null,null,null,null,null,null,null,null,null,null,null,null,null,null,null,null,null,null,null,null,null,null,null,null,null,null,null,null,null,null,null,null,null,null,null,{"$f":"WBU_Master","v":0},"pc/h"]
[null,null,null,null,null,null,null,{"$f":"IF(SB_2X2_slipON=\"NO\",\"n/a\",IF(AND(SB_2X2_slipON=\"yes\",SB_2X2_slipType=2),0,ROUNDUP(900*0.25*(BM41-1+SQRT((BM41-1)^2+((3600/BM35)*BM41)/(150*0.25)))*(BM35/3600),0)))","v":"n/a"},null,null,null,"Q95, veh",null,null,null,null,null,null,null,null,null,null,null,null,null,null,null,null,null,null,null,null,null,null,null,null,null,null,null,null,null,null,null,null,null,null,null,null,null,{"$f":"IF(WB_2X2_slipON=\"NO\",\"n/a\",IF(AND(WB_2X2_slipON=\"yes\",WB_2X2_slipType=2),0,ROUNDUP(900*0.25*(CJ21-1+SQRT((CJ21-1)^2+((3600/CP21)*CJ21)/(150*0.25)))*(CP21/3600),0)))","v":"n/a"},null,null,null,"Q95, veh",null,null,null,null,null,null,null,null,null,null,{"$f":"IF(SB_2X2_slipON=\"No\",\"n/a\",IF(AND(SB_2X2_slipON=\"Yes\",SB_2X2_slipType=2),0,BM30/BM35))","v":"n/a"}]
[null,null,null,null,null,null,null,null,null,null,null,null,null,null,null,null,null,null,null,null,null,null,null,null,null,null,null,null,null,null,null,null,null,null,null,null,null,null,null,null,null,null,null,null,null,null,null,null,null,null,null,null,null,null,null,null,null,null,null,null,null,null,null,null,null,null,null,null,null,null,null,null,null,null,null,null,null,null,null,null,null,null,null,null,null,null,null,null,null,null,null,null,null,null,null,null,null,null,null,null,null,null,null,null,null,null,null,null,null,null,null,null,null,null,null,null,null,null,null,null,null,null,null,null,null,null,null,null,null,null,"*NOTE"]
[null,null,null,"Approach delay, s/veh",null,null,null,null,null,null,null,{"$f":"IF(SB_2X2_slipON=\"Yes\",(H37*BM30+H21*BW26+H29*BT26)/(BM30+BW26+BT26),(H21*BW26+H29*BT26)/(BT26+BW26))","v":11.734999999999999},null,null,null,null,null,null,null,null,null,null,null,null,null,null,null,null,null,null,null,null,null,null,null,null,null,null,null,null,null,null,null,null,null,"Approach delay, s/veh",null,null,null,null,null,null,null,{"$f":"IF(WB_2X2_slipON=\"Yes\",(AX37*CU21+AX21*CY30+AX29*CY27)/(CU21+CY30+CY27),(AX21*CY30+AX29*CY27)/(CY30+CY27))","v":21.96595744680851},null,null,null,null,null,null,null,null,null,null,null,null,null,null,null,null,null,null,null,null,null,null,null,null,null,null,null,null,null,null,null,null,null,null,null,null,null,null,null,null,null,null,null,null,null,null,null,null,null,null,null,null,null,null,null,null,null,null,null,null,null,null,null,null,null,null,null,null,null,null,null,null,null,null,null,null,"\"Note Sure\"==LT,TR"]
[]
[]
[null,null,null,null,null,null,null,null,null,null,null,null,null,null,null,null,null,null,null,null,null,null,null,null,null,null,null,null,null,null,null,null,null,null,null,null,null,null,null,null,null,null,null,null,null,null,null,null,null,null,null,null,null,null,null,null,null,null,null,null,null,null,null,null,null,null,null,null,null,null,null,null,null,null,null,null,null,null,null,null,null,null,null,null,null,null,null,null,null,null,null,null,null,null,null,null,null,null,null,null,null,null,null,null,null,null,null,null,null,null,null,null,null,null,null,null,{"$f":"IF(NB_2X2_slipON=\"No\",\"n/a\",IF(AND(NB_2X2_slipON=\"Yes\",NB_2X2_slipType=2),0,DM57/DM52))","v":"n/a"}]
[null,null,null,null,null,null,null,null,null,null,null,null,null,null,null,null,null,null,null,null,null,null,null,null,null,null,null,null,null,null,null,null,null,null,null,null,null,null,null,null,null,null,null,null,null,null,null,null,null,null,null,null,null,null,null,null,null,null,null,null,null,null,null,null,null,null,null,null,null,null,null,null,null,null,null,null,null,null,null,null,null,null,null,null,null,null,null,null,null,null,null,null,null,null,null,null,null,null,null,null,null,null,null,null,null,null,null,null,null,null,null,null,null,null,null,null,"V/C RATIO"]
[null,null,null,null,null,null,null,null,null,null,null,null,null,null,null,null,null,null,null,null,null,null,null,null,null,null,null,null,null,null,null,null,null,null,null,null,null,null,null,null,null,null,null,null,null,null,null,null,null,null,null,null,null,null,null,null,null,null,null,null,null,null,null,null,null,null,null,null,"pc/h",{"$f":"EBU_Master","v":0},null,null,null,null,null,null,null,null,null,null,null,null,null,null,null,null,null,null,null,null,null,null,null,null,null,null,null,null,null,null,null,null,null,null,null,null,null,null,null,null,null,null,null,null,null,null,{"$f":"IF(NB_2X2_slipON=\"No\",\"n/a\",$BR$54+$CK$13+$DL$40)","v":"n/a"}]
[null,null,null,null,null,null,null,null,null,null,null,null,null,null,null,null,null,null,null,null,null,null,null,null,null,null,null,null,null,null,null,null,null,null,null,null,null,null,null,null,null,null,null,null,null,null,null,null,null,null,null,null,null,null,null,null,null,null,null,null,null,null,null,null,null,null,null,null,null,null,null,null,null,null,null,"Conflicting flow",{"$f":"BS16","v":250.5},null,{"$f":"BW16+BZ13+DJ27+CP74","v":449.5},null,"Lane Cap.",2,null,1,null,null,null,null,null,null,null,null,null,null,null,null,null,null,null,null,null,null,null,null,null,null,null,null,null,null,null,null,null,null,null,null,"pc/h"]
[null,null,null,null,null,null,null,null,null,null,null,null,null,null,null,null,null,null,null,null,null,null,null,null,null,null,null,null,null,null,null,null,null,null,null,null,null,null,null,null,null,null,null,null,null,null,null,null,null,null,null,null,null,null,null,null,null,null,null,null,null,null,null,null,null,null,null,null,null,null,null,null,null,null,null,null,null,null,null,null,null,null,null,null,null,null,null,null,null,null,null,null,null,null,null,null,null,null,null,null,null,null,null,null,null,null,null,null,null,null,null,null,null,null,null,null,"conflicting with"]
[null,null,null,"Predicted approach capacity",null,null,null,null,null,null,null,null,null,null,null,null,null,null,null,null,null,null,null,null,null,null,null,null,null,null,null,null,null,null,null,null,null,null,null,null,null,null,null,null,null,"Predicted approach capacity",null,null,null,null,null,null,null,null,null,null,null,null,null,null,null,null,null,null,null,null,null,null,"pc/h",{"$f":"EBL_Master","v":50}]
[null,null,null,null,null,null,null,null,null,null,null,null,null,null,null,null,null,null,null,null,null,null,null,null,null,null,null,null,null,null,null,null,null,null,null,null,null,null,null,null,null,null,null,null,null,null,null,null,null,null,null,null,null,null,null,null,null,null,null,null,null,null,null,null,null,null,null,null,null,null,null,null,null,null,null,null,null,null,null,null,null,null,null,null,null,null,null,null,null,null,null,null,null,null,null,null,null,null,null,null,null,null,null,null,null,null,null,null,null,null,null,null,null,null,null,null,{"$f":"IF(NB_2X2_slipON=\"No\",\"n/a\",IF(NB_2X2_slipType=2,\"large\",ROUND(FHV_NB*NB_fped_SL*DM54,1)))","v":"n/a"}]
[null,null,null,null,null,null,null,null,null,null,null,null,null,null,null,null,null,null,null,null,null,null,null,null,null,null,null,null,null,null,null,null,null,null,null,null,null,null,null,null,null,null,null,null,null,null,null,null,null,null,null,null,null,null,null,null,null,null,null,null,null,null,null,null,null,null,null,null,null,null,null,null,null,null,null,null,null,null,null,null,null,null,null,null,null,null,null,null,null,null,null,null,null,null,null,null,null,null,null,null,null,null,null,null,null,null,null,null,null,null,null,null,null,null,null,null,"veh/h"]
[null,null,null,"Lane 1",null,null,null,{"$f":"CI59","v":0.11283497884344147},null,null,null,"V/C",null,null,null,null,null,null,null,null,null,null,null,null,null,null,null,null,null,null,null,null,null,null,null,null,null,null,null,null,null,null,null,null,null,"Lane 1",null,null,null,{"$f":"DF56","v":0.58312245571570032},null,null,null,"V/C",null,null,null,null,null,null,null,null,null,null,null,null,null,null,"pc/h",{"$f":"EBT_Master","v":30},null,null,null,null,null,null,null,null,null,null,"pc/h",{"$f":"$DF$9*EXP(-$DM$9*(CA49+BY49))","v":783.21884353231837},null,{"$f":"$DF$7*EXP(-$DM$7*(BY49+CA49))","v":709.0030805410388},null,null,null,null,null,null,null,null,null,null,null,null,null,null,null,null,null,null,null,null,null,null,null,null,null,1,null,null,2,null,null,null,{"$f":"IF(NB_2X2_slipON=\"No\",\"n/a\",IF(NB_2X2_slipType=0,$DF$11*EXP(-$DM$11*WB_2x2_Leg_ExitFlow),IF(NB_2X2_slipType=1,$DF$13*EXP(-$DM$13*WB_2x2_Leg_ExitFlow),\"large\")))","v":"n/a"}]
[null,null,null,null,null,null,null,null,null,null,null,null,null,null,null,null,null,null,null,null,null,null,null,null,null,null,null,null,null,null,null,null,null,null,null,null,null,null,null,null,null,null,null,null,null,null,null,null,null,null,null,null,null,null,null,null,null,null,null,null,null,null,null,null,null,null,null,null,null,null,null,null,null,null,null,null,null,null,null,null,null,null,null,null,null,null,null,null,null,null,null,null,null,null,null,null,null,null,null,null,null,null,null,null,null,null,null,null,null,null,null,null,null,null,null,null,"pc/h"]
[null,null,null,null,null,null,null,{"$f":"ROUND(3600/CF56+900*0.25*(CI59-1+SQRT((CI59-1)^2+((3600/CF56)*CI59)/(450*0.25)))+(5*(MIN(CI59,1))),1)","v":6.3},null,null,null,"d, s/veh",null,null,null,null,null,null,null,null,null,null,null,null,null,null,null,null,null,null,null,null,null,null,null,null,null,null,null,null,null,null,null,null,null,null,null,null,null,{"$f":"ROUND(3600/DC59+900*0.25*(DF56-1+SQRT((DF56-1)^2+((3600/DC59)*DF56)/(450*0.25)))+(5*(MIN(DF56,1))),1)","v":12.3},null,null,null,"d, s/veh",null,null,null,null,null,null,null,null,null,null,null,null,null,null,null,null,null,null,null,null,null,null,null,null,null,null,"veh/h",{"$f":"ROUND(FHV_EB*EB_fped_ML*CD54,1)","v":783.2},null,{"$f":"ROUND(FHV_EB*EB_fped_ML*CF54,1)","v":709},null,null,null,null,null,null,null,null,null,null,null,null,null,null,null,null,null,null,null,null,null,null,null,null,null,{"$f":"DF61/DC59","v":0.58312245571570032},null,null,{"$f":"DI61/DC61","v":0.52775804323556275},null,null,null,"capacity"]
[null,null,null,null,null,null,null,null,null,null,null,null,null,null,null,null,null,null,null,null,null,null,null,null,null,null,null,null,null,null,null,null,null,null,null,null,null,null,null,null,null,null,null,null,null,null,null,null,null,null,null,null,null,null,null,null,null,null,null,null,null,null,null,null,null,null,null,null,"pc/h",{"$f":"IF(EB_2X2_slipON=\"No\",EBR_Master,0)","v":150},null,null,null,null,null,null,null,null,null,null,null,null,null,null,null,null,null,null,null,null,null,null,null,null,null,null,null,null,null,null,null,null,null,null,null,null,null,null,null,null,null,null,null,null,null,null,{"$f":"IF(NB_2X2_slipON=\"No\",\"n/a\",ROUND(FHV_NB*NB_fped_SL*DM59,1))","v":"n/a"}]
[null,null,null,null,null,null,null,{"$f":"IF(H54<=1,VLOOKUP(H56,LOS,2,TRUE),\"F\")","v":"A"},null,null,null,"LOS",null,null,null,null,null,null,null,null,null,null,null,null,null,null,null,null,null,null,null,null,null,null,null,null,null,null,null,null,null,null,null,null,null,null,null,null,null,{"$f":"IF(AX54<=1,VLOOKUP(AX56,LOS,2,TRUE),\"F\")","v":"B"},null,null,null,"LOS",null,null,null,null,null,null,null,null,null,null,null,null,null,null,null,null,null,null,null,null,null,null,null,null,null,null,null,null,null,null,null,null,null,null,null,null,null,null,null,null,null,null,null,null,null,null,null,null,null,null,null,null,null,null,null,"V/C RATIO",null,null,"V/C RATIO",null,null,null,"veh/h"]
[null,null,null,null,null,null,null,null,null,null,null,null,null,null,null,null,null,null,null,null,null,null,null,null,null,null,null,null,null,null,null,null,null,null,null,null,null,null,null,null,null,null,null,null,null,null,null,null,null,null,null,null,null,null,null,null,null,null,null,null,null,null,null,null,null,null,null,null,null,null,null,null,null,null,null,null,null,null,null,"pc/h",{"$f":"VLOOKUP(BO72,EB_1x2_LeftLane_VolProp,3,FALSE)","v":80},"veh/h",{"$f":"ROUND(FHV_EB*CC59,1)","v":80},"V/C RATIO",null,null,{"$f":"CE59/CF56","v":0.11283497884344147},null,1,null,null,null,null,null,null,null,null,null,null,null,1,null,null,null,{"$f":"$DF$7*EXP(-$DM$7*(CW66+CW64))","v":908.92253582569322},null,{"$f":"ROUND(FHV_NB*NB_fped_ML*DA59,1)","v":908.9},null,null,null,null,null,null,null,null,null,{"$f":"IF(NB_2X2_slipON=\"Yes\",NBR_Master,\"n/a\")","v":"n/a"}]
[null,null,null,null,null,null,null,{"$f":"ROUNDUP(900*0.25*(CI59-1+SQRT((CI59-1)^2+((3600/CF56)*CI59)/(150*0.25)))*(CF56/3600),0)","v":1},null,null,null,"Q95, veh",null,null,null,null,null,null,null,null,null,null,null,null,null,null,null,null,null,null,null,null,null,null,null,null,null,null,null,null,null,null,null,null,null,null,null,null,null,{"$f":"ROUNDUP(900*0.25*(DF56-1+SQRT((DF56-1)^2+((3600/DC59)*DF56)/(150*0.25)))*(DC59/3600),0)","v":4},null,null,null,"Q95, veh",null,null,null,null,null,null,null,null,null,null,null,null,null,null,null,null,null,null,null,null,null,null,null,null,null,null,null,null,null,null,null,null,null,null,null,null,null,null,null,null,null,null,null,null,null,null,null,null,null,null,null,null,null,null,null,null,null,null,null,null,null,null,"pc/h"]
[null,null,null,null,null,null,null,null,null,null,null,null,null,null,null,null,null,null,null,null,null,null,null,null,null,null,null,null,null,null,null,null,null,null,null,null,null,null,null,null,null,null,null,null,null,null,null,null,null,null,null,null,null,null,null,null,null,null,null,null,null,null,null,null,null,null,null,null,null,null,null,null,null,null,null,null,null,null,null,null,null,null,null,null,null,null,null,null,null,null,null,null,null,null,null,null,null,null,null,null,2,null,null,null,{"$f":"$DF$9*EXP(-$DM$9*(CW64+CW66))","v":985.26648782397808},null,{"$f":"ROUND(FHV_NB*NB_fped_ML*DA61,1)","v":985.3},null,null,{"$f":"ROUND(FHV_NB*DF63,1)","v":530},null,null,{"$f":"ROUND(FHV_NB*DI63,1)","v":520},null,null,null,"No"]
[null,null,null,"Lane 2",null,null,null,{"$f":"CI62","v":0.19152196118488252},null,null,null,"V/C",null,null,null,null,null,null,null,null,null,null,null,null,null,null,null,null,null,null,null,null,null,null,null,null,null,null,null,null,null,null,null,null,null,"Lane 2",null,null,null,{"$f":"DI56","v":0.52775804323556275},null,null,null,"V/C",null,null,null,null,null,null,null,null,null,null,"Right turn to Total Flow Ratio",null,"Roundabout Entry Lane Discipline",null,null,null,{"$f":"BR51+BR48","v":50},null,null,null,null,null,null,null,null,"pc/h",{"$f":"SUM(BR48:BR59)-CC59","v":150},"veh/h",{"$f":"ROUND(FHV_EB*CC62,1)","v":150},"V/C RATIO",null,null,{"$f":"CE62/CD56","v":0.19152196118488252},null,2,null,null,null,null,null,null,null,null,null,null,null,null,null,null,null,null,null,null,null,null,"veh/h",null,null,"veh/h"]
[null,null,null,null,null,null,null,null,null,null,null,null,null,null,null,null,null,null,null,null,null,null,null,null,null,null,null,null,null,null,null,null,null,null,null,null,null,null,null,null,null,null,null,null,null,null,null,null,null,null,null,null,null,null,null,null,null,null,null,null,null,null,null,null,null,null,null,null,null,null,null,null,null,null,null,null,null,null,null,null,null,null,null,null,null,null,null,null,null,null,null,null,null,null,null,null,null,null,null,null,"Lane Cap.",null,null,null,"pc/h",null,"veh/h",null,null,{"$f":"VLOOKUP(DM76,NB_2x2_Leftlane_VolProp,3,FALSE)","v":530},null,null,{"$f":"SUM(CP74:DA74)-DF63","v":520},null,null,null,"Type1a (yielding)"]
[null,null,null,null,null,null,null,{"$f":"ROUND(3600/CD56+900*0.25*(CI62-1+SQRT((CI62-1)^2+((3600/CD56)*CI62)/(450*0.25)))+(5*(MIN(CI62,1))),1)","v":6.6},null,null,null,"d, s/veh",null,null,null,null,null,null,null,null,null,null,null,null,null,null,null,null,null,null,null,null,null,null,null,null,null,null,null,null,null,null,null,null,null,null,null,null,null,{"$f":"ROUND(3600/DC61+900*0.25*(DI56-1+SQRT((DI56-1)^2+((3600/DC61)*DI56)/(450*0.25)))+(5*(MIN(DI56,1))),1)","v":10.3},null,null,null,"d, s/veh",null,null,null,null,null,null,null,null,null,null,null,null,null,null,null,null,null,null,null,null,null,null,null,null,null,null,null,null,null,null,null,null,null,null,null,null,null,null,null,null,null,null,null,null,null,null,{"$f":"BS62+BU65+BZ13+DL40","v":430},null,null,null,null,null,null,null,null,"pc/h",null,null,"pc/h"]
[null,null,null,null,null,null,null,null,null,null,null,null,null,null,null,null,null,null,null,null,null,null,null,null,null,null,null,null,null,null,null,null,null,null,null,null,null,null,null,null,null,null,null,null,null,null,null,null,null,null,null,null,null,null,null,null,null,null,null,null,null,null,null,null,null,null,null,null,null,null,null,null,{"$f":"CC59-BS62","v":30},null,null,null,null,null,null,null,null,null,null,null,null,null,null,null,null,null,null,null,null,null,null,null,null,null,null,null,null,null,null,null,null,null,null,null,null,null,null,null,null,null,null,null,"Right-turn Bypass Lane"]
[null,null,null,null,null,null,null,{"$f":"IF(H62<=1,VLOOKUP(H64,LOS,2,TRUE),\"F\")","v":"A"},null,null,null,"LOS",null,null,null,null,null,null,null,null,null,null,null,null,null,null,null,null,null,null,null,null,null,null,null,null,null,null,null,null,null,null,null,null,null,null,null,null,null,{"$f":"IF(AX62<1,VLOOKUP(AX64,LOS,2,TRUE),\"F\")","v":"B"},null,null,null,"LOS",null,null,null,null,null,null,null,null,null,null,null,null,null,null,null,null,null,null,null,null,null,"Right-turn Bypass Lane",null,"No",null,null,null,null,null,"pc/h",{"$f":"IF(EB_2X2_slipON=\"Yes\",EBR_Master,\"n/a\")","v":"n/a"},"veh/h",{"$f":"IF(EB_2X2_slipON=\"No\",\"n/a\",ROUND(CG66*FHV_EB*EB_fped_SL,1))","v":"n/a"},"capacity","pc/h",{"$f":"IF(EB_2X2_slipON=\"No\",\"n/a\",IF(EB_2X2_slipType=0,$DF$11*EXP(-$DM$11*NB_2x2_Leg_ExitFlow),IF(EB_2X2_slipType=1,$DF$13*EXP(-$DM$13*NB_2x2_Leg_ExitFlow),\"large\")))","v":"n/a"},"veh/h",{"$f":"IF(EB_2X2_slipON=\"No\",\"n/a\",IF(EB_2X2_slipType=2,\"large\",ROUND(FHV_EB*EB_fped_SL*CL66,1)))","v":"n/a"},"conflicting with",null,"pc/h",{"$f":"IF(EB_2X2_slipON=\"No\",\"n/a\",$CH$13+$DL$37+$CP$74)","v":"n/a"},"V/C Ratio",{"$f":"IF(EB_2X2_slipON=\"No\",\"n/a\",IF(AND(EB_2X2_slipON=\"Yes\",EB_2X2_slipType=2),0,CI66/CN66))","v":"n/a"},null,null,{"$f":"BU69","v":0}]
[]
[null,null,null,null,null,null,null,{"$f":"ROUNDUP(900*0.25*(CI62-1+SQRT((CI62-1)^2+((3600/CD56)*CI62)/(150*0.25)))*(CD56/3600),0)","v":1},null,null,null,"Q95, veh",null,null,null,null,null,null,null,null,null,null,null,null,null,null,null,null,null,null,null,null,null,null,null,null,null,null,null,null,null,null,null,null,null,null,null,null,null,{"$f":"ROUNDUP(900*0.25*(DI56-1+SQRT((DI56-1)^2+((3600/DC61)*DI56)/(150*0.25)))*(DC61/3600),0)","v":4},null,null,null,"Q95, veh",null,null,null,null,null,null,null,null,null,null,null,null,null,null,null,null,null,null,null,null,null,null,null,"Type2 (nonyielding)",null,null,null,null,null,null,null,null,null,null,null,null,null,null,null,null,null,null,null,null,null,null,"Conflicting flow"]
[null,null,null,null,null,null,null,null,null,null,null,null,null,null,null,null,null,null,null,null,null,null,null,null,null,null,null,null,null,null,null,null,null,null,null,null,null,null,null,null,null,null,null,null,null,null,null,null,null,null,null,null,null,null,null,null,null,null,null,null,null,null,null,null,null,null,null,null,null,null,null,null,{"$f":"CC62-BS72","v":0}]
[null,null,null,"Right-turn Bypass",null,null,null,{"$f":"IF(EB_2X2_slipON=\"NO\",\"n/a\",IF(AND(EB_2X2_slipON=\"Yes\",EB_2X2_slipType=2),0,CT66))","v":"n/a"},null,null,null,"V/C",null,null,null,null,null,null,null,null,null,null,null,null,null,null,null,null,null,null,null,null,null,null,null,null,null,null,null,null,null,null,null,null,null,"Right-turn Bypass",null,null,null,{"$f":"IF(NB_2X2_slipON=\"NO\",\"n/a\",IF(AND(NB_2X2_slipON=\"Yes\",NB_2X2_slipType=2),0,DM46))","v":"n/a"},null,null,null,"V/C",null,null,null,null,null,null,null,null,null,null,null,null,null,null,null,null,null,null,null,null,null,null,null,null,null,null,null,null,null,null,null,null,null,null,null,null,null,null,null,null,null,null,null,null,null,null,null,null,null,null,null,null,null,null,null,{"$f":"DF63-DC72","v":0},null,null,null,{"$f":"DI63-DM72","v":510}]
[]
[null,null,null,null,null,null,null,{"$f":"IF(EB_2X2_slipON=\"NO\",\"n/a\",IF(AND(EB_2X2_slipON=\"Yes\",EB_2X2_slipType=2),0,ROUND(3600/CN66+900*0.25*(CT66-1+SQRT((CT66-1)^2+((3600/CN66)*CT66)/(450*0.25)))+(5*(MIN(CT66,1))),1)))","v":"n/a"},null,null,null,"d, s/veh",null,null,null,null,null,null,null,null,null,null,null,null,null,null,null,null,null,null,null,null,null,null,null,null,null,null,null,null,null,null,null,null,null,null,null,null,null,{"$f":"IF(NB_2X2_slipON=\"NO\",\"n/a\",IF(AND(NB_2X2_slipON=\"Yes\",NB_2X2_slipType=2),0,ROUND(3600/DM52+900*0.25*(DM46-1+SQRT((DM46-1)^2+((3600/DM52)*DM46)/(450*0.25)))+(5*(MIN(DM46,1))),1)))","v":"n/a"},null,null,null,"d, s/veh",null,null,null,null,null,null,null,null,null,null,{"$f":"BR57/(BR57+BR54+BR51+BR48)","v":0.65217391304347827},null,{"$f":"VLOOKUP(EB_LaneDesig,EB_2x2_lanedesignate,2,FALSE)","v":"LT,R"},null,null,null,{"$f":"BR57","v":150},null,null,null,null,null,null,null,null,null,null,null,null,null,null,null,null,null,null,null,null,null,null,null,null,null,null,null,null,null,null,null,null,null,null,null,{"$f":"CP74+CS74","v":530},null,null,null,null,null,null,null,null,null,{"$f":"CY74","v":10}]
[]
[null,null,null,null,null,null,null,{"$f":"IF(EB_2X2_slipON=\"Yes\",VLOOKUP(H72,LOS,2,TRUE),\"n/a\")","v":"n/a"},null,null,null,"LOS",null,null,null,null,null,null,null,null,null,null,null,null,null,null,null,null,null,null,null,null,null,null,null,null,null,null,null,null,null,null,null,null,null,null,null,null,null,{"$f":"IF(NB_2X2_slipON=\"Yes\",VLOOKUP(AX72,LOS,2,TRUE),\"n/a\")","v":"n/a"},null,null,null,"LOS",null,null,null,null,null,null,null,null,null,null,null,null,null,null,null,null,null,null,null,null,null,null,null,null,null,null,null,null,null,null,null,null,null,null,null,null,null,null,null,{"$f":"NBU_Master","v":0},null,null,{"$f":"NBL_Master","v":530},null,null,{"$f":"NBT_Master","v":510},null,null,{"$f":"IF(NB_2X2_slipON=\"No\",NBR_Master,0)","v":10}]
[null,null,null,null,null,null,null,null,null,null,null,null,null,null,null,null,null,null,null,null,null,null,null,null,null,null,null,null,null,null,null,null,null,null,null,null,null,null,null,null,null,null,null,null,null,null,null,null,null,null,null,null,null,null,null,null,null,null,null,null,null,null,null,null,null,null,null,null,null,null,null,null,null,null,null,null,null,null,null,null,null,null,null,null,null,null,null,null,null,null,null,null,null,"pc/h",null,null,"pc/h",null,null,"pc/h",null,null,"pc/h"]
[null,null,null,null,null,null,null,{"$f":"IF(EB_2X2_slipON=\"NO\",\"n/a\",IF(AND(EB_2X2_slipON=\"yes\",EB_2X2_slipType=2),0,ROUNDUP(900*0.25*(CT66-1+SQRT((CT66-1)^2+((3600/CN66)*CT66)/(150*0.25)))*(CN66/3600),0)))","v":"n/a"},null,null,null,"Q95, veh",null,null,null,null,null,null,null,null,null,null,null,null,null,null,null,null,null,null,null,null,null,null,null,null,null,null,null,null,null,null,null,null,null,null,null,null,null,{"$f":"IF(NB_2X2_slipON=\"NO\",\"n/a\",IF(AND(NB_2X2_slipON=\"yes\",NB_2X2_slipType=2),0,ROUNDUP(900*0.25*(DM46-1+SQRT((DM46-1)^2+((3600/DM57)*DM46)/(150*0.25)))*(DM57/3600),0)))","v":"n/a"},null,null,null,"Q95, veh",null,null,null,null,null,null,null,null,null,null,null,null,null,null,null,null,null,null,null,null,null,null,null,null,null,null,null,null,null,null,null,null,null,null,null,null,null,null,null,null,null,null,null,null,null,null,null,null,null,null,null,null,"Roundabout Entry Lane         Discipline",null,null,null,null,null,null,null,null,null,{"$f":"VLOOKUP(NB_LaneDesig,NB_2x2_lanedesignate,2,FALSE)","v":"L,TR"}]
[]
[null,null,null,"Approach delay, s/veh",null,null,null,null,null,null,null,{"$f":"IF(EB_2X2_slipON=\"Yes\",(H72*CI66+H56*CE59+H64*CE62)/(CI66+CE59+CE62),(H56*CE59+H64*CE62)/(CE59+CE62))","v":6.4956521739130437},null,null,null,null,null,null,null,null,null,null,null,null,null,null,null,null,null,null,null,null,null,null,null,null,null,null,null,null,null,null,null,null,null,"Approach delay, s/veh",null,null,null,null,null,null,null,{"$f":"IF(NB_2X2_slipON=\"Yes\",(AX72*DM57+AX56*DF61+AX64*DI61)/(DM57+DF61+DI61),(AX56*DF61+AX64*DI61)/(DF61+DI61))","v":11.30952380952381},null,null,null,null,null,null,null,null,null,null,null,null,null,null,null,null,null,null,null,null,null,null,null,null,null,null,null,null,null,null,null,null,null,null,null,null,null,null,null,null,null,null,null,null,null,null,null,null,null,null,null,null,"Right turn to Total Flow Ratio",null,null,null,null,null,null,null,null,null,{"$f":"CY74/(CY74+CV74+CS74+CP74)","v":9.5238095238095247E-3}]

{"sheet":"Output Worksheet","index":7,"n_rows":39,"n_cols":93,"rows_kept":39,"cut":false,"hidden":false,"merged":[[22,92,23,92],[24,69,25,76],[24,62,25,68],[24,58,25,61],[24,7,25,13],[24,4,25,6],[22,22,23,25],[22,26,23,29],[22,30,23,33],[24,34,25,37],[24,18,25,21],[24,14,25,17],[24,26,25,29],[24,30,25,33],[24,22,25,25],[24,92,25,92],[20,69,23,76],[20,62,23,68],[20,26,21,37],[20,7,23,13],[20,4,23,6],[30,30,31,33],[28,46,29,49],[30,46,31,49],[28,38,29,41],[28,58,29,61],[28,30,29,33],[26,22,27,25],[26,7,27,13],[26,4,27,6],[26,26,27,29],[28,7,29,13],[28,54,29,57],[30,38,31,41],[30,50,31,53],[26,34,27,37],[28,34,29,37],[30,34,31,37],[30,4,31,6],[26,14,27,17],[28,14,29,17],[28,18,29,21],[30,14,31,17],[30,18,31,21],[26,18,27,21],[30,7,31,13],[28,4,29,6],[34,78,35,78],[32,78,33,78],[38,78,39,78],[24,42,25,45],[24,46,25,49],[26,42,27,45],[26,46,27,49],[26,38,27,41],[24,38,25,41],[26,58,27,61],[30,58,31,61],[24,54,25,57],[24,50,25,53],[28,50,29,53],[30,69,31,76],[28,42,29,45],[30,42,31,45],[36,78,37,78],[28,69,29,76],[26,69,27,76],[26,62,27,68],[28,62,29,68],[0,1,1,79],[2,1,3,79],[8,4,9,11],[6,12,7,52],[8,12,9,52],[10,12,11,52],[12,12,13,52],[10,4,11,11],[12,4,13,11],[6,4,7,11],[6,53,13,76],[18,4,19,76],[28,92,29,92],[26,30,27,33],[30,54,31,57],[26,54,27,57],[26,50,27,53],[28,26,29,29],[30,26,31,29],[22,14,23,17],[22,18,23,21],[22,54,23,57],[22,34,23,37],[22,38,23,41],[22,42,23,45],[22,46,23,49],[22,50,23,53],[20,14,21,25],[20,38,21,49],[20,50,21,61],[22,58,23,61],[28,22,29,25],[30,22,31,25],[30,62,31,68],[26,92,27,92]]}
[null,"Capacity Analysis for Planning of Roundabouts"]
[]
[null,"Output Worksheet"]
[]
[]
[]
[null,null,null,null,"Project Name:",null,null,null,null,null,null,null,{"$f":"P_Name","v":0}]
[]
[null,null,null,null,"Project Number:",null,null,null,null,null,null,null,{"$f":"P_Number","v":"Enter the Project Number here (Input worksheet)"}]
[]
[null,null,null,null,"Location",null,null,null,null,null,null,null,{"$f":"Location","v":"Enter the Project Location here (Input worksheet)"}]
[]
[null,null,null,null,"Date",null,null,null,null,null,null,null,{"$f":"Date","v":"Enter the date here (Input worksheet)"}]
[]
[]
[]
[]
[]
[null,null,null,null,"Results for Roundabouts"]
[]
[null,null,null,null,"#",null,null,"TYPE OF ROUNDABOUT",null,null,null,null,null,null,"Zone 1 (North)",null,null,null,null,null,null,null,null,null,null,null,"Zone 3 (West)",null,null,null,null,null,null,null,null,null,null,null,"Zone 2 (South)",null,null,null,null,null,null,null,null,null,null,null,"Zone 4 (Eest)",null,null,null,null,null,null,null,null,null,null,null,"Consolidated LOS",null,null,null,null,null,null,"Ranking",null,null,null,null,null,null,null,null,null,null,null,null,null,null,null,null,null,null,null,null,null,null,"Rank"]
[]
[null,null,null,null,null,null,null,null,null,null,null,null,null,null,"Lane 1",null,null,null,"Lane 2",null,null,null,"Bypass Lane",null,null,null,"Lane 1",null,null,null,"Lane 2",null,null,null,"Bypass Lane",null,null,null,"Lane 1",null,null,null,"Lane 2",null,null,null,"Bypass Lane",null,null,null,"Lane 1",null,null,null,"Lane 2",null,null,null,"Bypass Lane",null,null,null,null,null,null,null,null,null,null,null,null,null,null,null,null,null,null,null,null,null,null,null,null,null,null,null,null,null,null,null,null,null,{"$f":"IF(BK25=\"LOS A\",1,IF(BK25=\"LOS B\",2,IF(BK25=\"LOS C\",3,IF(BK25=\"LOS D\",4,IF(BK25=\"LOS E\",5,6)))))","v":6}]
[]
[null,null,null,null,1,null,null,"1 X 1",null,null,null,null,null,null,{"$f":"\"LOS\"&\" \"&SB_1x1_LOS_lane1","v":"LOS D"},null,null,null,null,null,null,null,{"$f":"IF(SB_slipON=\"Yes\",\"LOS\"&\" \"&SB_1x1_LOS_sliplane,\"n/a\")","v":"LOS A"},null,null,null,{"$f":"\"LOS\"&\" \"&EB_1x1_LOS_lane1","v":"LOS B"},null,null,null,null,null,null,null,{"$f":"IF(EB_SlipON=\"Yes\",\"LOS\"&\" \"&EB_1x1_LOS_sliplane,\"n/a\")","v":"LOS A"},null,null,null,{"$f":"\"LOS\"&\" \"&NB_1x1_LOS_lane1","v":"LOS F"},null,null,null,null,null,null,null,{"$f":"IF(NB_slipON=\"Yes\",\"LOS\"&\" \"&NB_1x1_LOS_sliplane,\"n/a\")","v":"LOS A"},null,null,null,{"$f":"\"LOS\"&\" \"&WB_1x1_LOS_lane1","v":"LOS B"},null,null,null,null,null,null,null,{"$f":"IF(WB_slipON=\"Yes\",\"LOS\"&\" \"&WB_1x1_LOS_sliplane,\"n/a\")","v":"LOS A"},null,null,null,{"$f":"\"LOS\"&\" \"&Oval_1x1_LOS","v":"LOS F"},null,null,null,null,null,null,{"$f":"RANK(CO23,(CO23:CO30),1)","v":4},null,null,null,null,null,null,null,null,null,null,null,null,null,null,null,null,null,null,null,null,null,null,{"$f":"IF(BK27=\"LOS A\",1,IF(BK27=\"LOS B\",2,IF(BK27=\"LOS C\",3,IF(BK27=\"LOS D\",4,IF(BK27=\"LOS E\",5,6)))))","v":5}]
[]
[null,null,null,null,1.2,null,null,"1 X 2",null,null,null,null,null,null,{"$f":"\"LOS\"&\" \"&SB_1x2_LOS_lane1","v":"LOS C"},null,null,null,null,null,null,null,{"$f":"IF(SB_1x2_slipON=\"Yes\",\"LOS\"&\" \"&SB_1x2_LOS_sliplane,\"n/a\")","v":"LOS A"},null,null,null,{"$f":"\"LOS\"&\" \"&EB_1x2_LOS_lane1","v":"LOS A"},null,null,null,{"$f":"\"LOS\"&\" \"&EB_1x2_LOS_lane2","v":"LOS A"},null,null,null,{"$f":"IF(EB_1x2_slipON=\"Yes\",\"LOS\"&\" \"&EB_1x2_LOS_sliplane,\"n/a\")","v":"LOS A"},null,null,null,{"$f":"\"LOS\"&\" \"&NB_1x2_LOS_lane1","v":"LOS F"},null,null,null,null,null,null,null,{"$f":"IF(NB_1x2_slipON=\"Yes\",\"LOS\"&\" \"&NB_1x2_LOS_sliplane,\"n/a\")","v":"n/a"},null,null,null,{"$f":"\"LOS\"&\" \"&WB_1x2_LOS_lane1","v":"LOS A"},null,null,null,{"$f":"\"LOS\"&\" \"&WB_1x2_LOS_lane2","v":"LOS A"},null,null,null,{"$f":"IF(WB_1x2_slipON=\"Yes\",\"LOS\"&\" \"&WB_1x2_LOS_sliplane,\"n/a\")","v":"LOS B"},null,null,null,{"$f":"\"LOS\"&\" \"&Oval_1x2_LOS","v":"LOS E"},null,null,null,null,null,null,{"$f":"RANK(CO25,(CO23:CO30),1)","v":3},null,null,null,null,null,null,null,null,null,null,null,null,null,null,null,null,null,null,null,null,null,null,{"$f":"IF(BK29=\"LOS A\",1,IF(BK29=\"LOS B\",2,IF(BK29=\"LOS C\",3,IF(BK29=\"LOS D\",4,IF(BK29=\"LOS E\",5,6)))))","v":1}]
[]
[null,null,null,null,1.3,null,null,"2 X 1",null,null,null,null,null,null,{"$f":"\"LOS\"&\" \"&SB_2x1_LOS_lane1","v":"LOS A"},null,null,null,{"$f":"\"LOS\"&\" \"&SB_2x1_LOS_lane2","v":"LOS A"},null,null,null,{"$f":"IF(SB_2x1_slipON=\"Yes\",\"LOS\"&\" \"&SB_2x1_LOS_sliplane,\"n/a\")","v":"LOS A"},null,null,null,{"$f":"\"LOS\"&\" \"&EB_2x1_LOS_lane1","v":"LOS A"},null,null,null,null,null,null,null,{"$f":"IF(EB_2x1_slipON=\"Yes\",\"LOS\"&\" \"&EB_2x1_LOS_sliplane,\"n/a\")","v":"n/a"},null,null,null,{"$f":"\"LOS\"&\" \"&NB_2x1_LOS_lane1","v":"LOS B"},null,null,null,{"$f":"\"LOS\"&\" \"&NB_2x1_LOS_lane2","v":"LOS B"},null,null,null,{"$f":"IF(NB_2X2_slipON=\"Yes\",\"LOS\"&\" \"&NB_2x1_LOS_sliplane,\"n/a\")","v":"n/a"},null,null,null,{"$f":"\"LOS\"&\" \"&WB_2x1_LOS_lane1","v":"LOS A"},null,null,null,null,null,null,null,{"$f":"IF(WB_2x1_slipON=\"Yes\",\"LOS\"&\" \"&WB_2x1_LOS_sliplane,\"n/a\")","v":"LOS B"},null,null,null,{"$f":"\"LOS\"&\" \"&Oval_2x1_LOS","v":"LOS A"},null,null,null,null,null,null,{"$f":"RANK(CO27,(CO23:CO30),1)","v":1},null,null,null,null,null,null,null,null,null,null,null,null,null,null,null,null,null,null,null,null,null,null,{"$f":"IF(BK31=\"LOS A\",1,IF(BK31=\"LOS B\",2,IF(BK31=\"LOS C\",3,IF(BK31=\"LOS D\",4,IF(BK31=\"LOS E\",5,6)))))","v":2}]
[null,{"$f":"IF(O25>1,1,0)","v":1},{"$f":"IF(AA25>1,1,0)","v":1}]
[null,{"$f":"IF(AM25>1,1,0)","v":1},{"$f":"IF(AY25>1,1,0)","v":1},null,1.4,null,null,"2 X 2",null,null,null,null,null,null,{"$f":"\"LOS\"&\" \"&SB_2x2_LOS_lane1","v":"LOS B"},null,null,null,{"$f":"\"LOS\"&\" \"&SB_2x2_LOS_lane2","v":"LOS B"},null,null,null,{"$f":"IF(SB_2X2_slipON=\"Yes\",\"LOS\"&\" \"&SB_2x2_LOS_sliplane,\"n/a\")","v":"n/a"},null,null,null,{"$f":"\"LOS\"&\" \"&EB_2x2_LOS_lane1","v":"LOS A"},null,null,null,{"$f":"\"LOS\"&\" \"&EB_2x2_LOS_lane2","v":"LOS A"},null,null,null,{"$f":"IF(EB_2X2_slipON=\"Yes\",\"LOS\"&\" \"&EB_2x2_LOS_sliplane,\"n/a\")","v":"n/a"},null,null,null,{"$f":"\"LOS\"&\" \"&NB_2x2_LOS_lane1","v":"LOS B"},null,null,null,{"$f":"\"LOS\"&\" \"&NB_2x2_LOS_lane2","v":"LOS B"},null,null,null,{"$f":"IF(NB_2X2_slipON=\"Yes\",\"LOS\"&\" \"&NB_2x2_LOS_sliplane,\"n/a\")","v":"n/a"},null,null,null,{"$f":"\"LOS\"&\" \"&WB_2x2_LOS_lane1","v":"LOS A"},null,null,null,{"$f":"\"LOS\"&\" \"&WB_2x2_LOS_lane2","v":"LOS C"},null,null,null,{"$f":"IF(WB_2X2_slipON=\"Yes\",\"LOS\"&\" \"&WB_2x2_LOS_sliplane,\"n/a\")","v":"n/a"},null,null,null,{"$f":"\"LOS\"&\" \"&Oval_2x2_LOS","v":"LOS B"},null,null,null,null,null,null,{"$f":"RANK(CO29,CO23:CO30,1)","v":2}]
[]
[null,null,null,null,null,null,null,null,null,null,null,null,null,null,null,null,null,null,null,null,null,null,null,null,null,null,null,null,null,null,null,null,null,null,null,null,null,null,null,null,null,null,null,null,null,null,null,null,null,null,null,null,null,null,null,null,null,null,null,null,null,null,null,null,null,null,null,null,null,null,null,null,null,null,null,null,null,null,{"$f":"MAX(O25:BJ26)","v":0}]
[null,{"$f":"IF(AY29>1,1,0)","v":1},{"$f":"IF(AA29>1,1,0)","v":1}]
[null,{"$f":"IF(OR(O29>1, S29>1),1,0)","v":1},{"$f":"IF(OR(AM29>1,AQ29>1),1,0)","v":1},null,null,null,null,null,null,null,null,null,null,null,null,null,null,null,null,null,null,null,null,null,null,null,null,null,null,null,null,null,null,null,null,null,null,null,null,null,null,null,null,null,null,null,null,null,null,null,null,null,null,null,null,null,null,null,null,null,null,null,null,null,null,null,null,null,null,null,null,null,null,null,null,null,null,null,{"$f":"MAX(O27:BJ28)","v":0}]
[]
[null,null,null,null,null,null,null,null,null,null,null,null,null,null,null,null,null,null,null,null,null,null,null,null,null,null,null,null,null,null,null,null,null,null,null,null,null,null,null,null,null,null,null,null,null,null,null,null,null,null,null,null,null,null,null,null,null,null,null,null,null,null,null,null,null,null,null,null,null,null,null,null,null,null,null,null,null,null,{"$f":"MAX(O29:BJ30)","v":0}]
[null,{"$f":"IF(OR(O31>1, S31>1),1,0)","v":1},{"$f":"IF(OR(AY31>1,BC31>1),1,0)","v":1}]
[null,{"$f":"IF(OR(AM31>1, AQ31>1),1,0)","v":1},{"$f":"IF(OR(AA31>1, AE31>1),1,0)","v":1},null,null,null,null,null,null,null,null,null,null,null,null,null,null,null,null,null,null,null,null,null,null,null,null,null,null,null,null,null,null,null,null,null,null,null,null,null,null,null,null,null,null,null,null,null,null,null,null,null,null,null,null,null,null,null,null,null,null,null,null,null,null,null,null,null,null,null,null,null,null,null,null,null,null,null,{"$f":"MAX(O31:BJ32)","v":0}]